Department,Entity,Date,Expense Type,Expense Area,Supplier,Transaction Number,Amount,Description,Supplier Post Code,
Department for Transport,Department for Transport,01/04/2014,Agency Staff Costs,Group Communication,MICHAEL PAGE INTERNATIONAL,2000000078,9599.6,#,SL1 3SA,
Department for Transport,Department for Transport,01/04/2014,Agency Staff Costs,Group Human Resource,HAYS PERSONNEL SERVICE LTD,2000000063,4281.6,#,KT3 4JQ,
Department for Transport,Department for Transport,01/04/2014,Agency Staff Costs,Group Finance,ALLEN LANE FINANCIAL RECRUITMENT,2000000066,4036.38,#,BN11 2BW,
Department for Transport,Department for Transport,01/04/2014,Agency Staff Costs,Group Finance,MICHAEL PAGE INTERNATIONAL,2000000078,3852,#,SL1 3SA,
Department for Transport,Department for Transport,01/04/2014,Agency Staff Costs,Group Finance,ALLEN LANE FINANCIAL RECRUITMENT,2000000066,2463.84,#,BN11 2BW,
Department for Transport,Department for Transport,01/04/2014,Agency Staff Costs,Group Finance,SPRING TECHNOLOGY LTD  ALSO T/A,2000000081,939.78,#,B37 7YE,
Department for Transport,Department for Transport,01/04/2014,Agency Staff Costs,Group Finance,SPRING TECHNOLOGY LTD  ALSO T/A,2000000081,1566.3,#,B37 7YE,
Department for Transport,Department for Transport,01/04/2014,Agency Staff Costs,Rail Commercial & Programme Office,MICHAEL PAGE INTERNATIONAL,2000000078,1332,#,SL1 3SA,
Department for Transport,Department for Transport,01/04/2014,Cap Grt Loc Auth,"Energy, Technology and International",Rolec Services Limited,2000000087,700000,Rolec   #700k,PE20 1Q,
Department for Transport,Department for Transport,01/04/2014,Cap Grt Pri Sec-Cos.,"Energy, Technology and International",ASHWOODS AUTOMOTIVE LTD,2000000083,137200,LCVPPP 29th Payment 40 Vehicles,EX4 8DS,
Department for Transport,Department for Transport,01/04/2014,Cap Grt Pri Sec-Cos.,"Energy, Technology and International",Meridian Environmental Limited,2000000091,10996.39,Meridan Environmental Feb 2014 #10996.39,BH15 4QB,
Department for Transport,Department for Transport,01/04/2014,Computer Consumables,Motoring Services,XMA LIMITED GOSC,2000000085,599.98,#,NG11 7EP,
Department for Transport,Department for Transport,01/04/2014,Computer equipment,Motoring Services,SPECIALIST COMPUTER CENTRES PLC,2000000080,18131.01,#,B11 2LE,
Department for Transport,Department for Transport,01/04/2014,Financial Consultanc,Rail Franchising,PRICEWATERHOUSECOOPERS LLP,2000000072,40640.4,#,E14 9SQ,
Department for Transport,Department for Transport,01/04/2014,Maintenance Other,"Motoring, Freight & London",TDC SYSTEMS LIMITED,2000000075,1935,#,BS24 9BP,
Department for Transport,Department for Transport,01/04/2014,Maintenance Other,"Motoring, Freight & London",TDC SYSTEMS LIMITED,2000000075,8900,#,BS24 9BP,
Department for Transport,Department for Transport,01/04/2014,Maintenance Other,"Motoring, Freight & London",TDC SYSTEMS LIMITED,2000000075,480,#,BS24 9BP,
Department for Transport,Department for Transport,01/04/2014,Maintenance Other,"Motoring, Freight & London",TDC SYSTEMS LIMITED,2000000075,2750,#,BS24 9BP,
Department for Transport,Department for Transport,01/04/2014,Maintenance Other,"Motoring, Freight & London",TDC SYSTEMS LIMITED,2000000075,3000,#,BS24 9BP,
Department for Transport,Department for Transport,01/04/2014,Maintenance Other,"Motoring, Freight & London",TDC SYSTEMS LIMITED,2000000075,5690,#,BS24 9BP,
Department for Transport,Department for Transport,01/04/2014,Postage,"Policy, Legislation and Funding",ROYAL MAIL,2000000074,1271.11,#,PE4 5PG,
Department for Transport,Department for Transport,01/04/2014,Publicity,Principal Priv. Secretary & Head of Private Office,CHUBB SYSTEMS LIMITED,2000000068,4799.1,#,BB1 2PR,
Department for Transport,Department for Transport,01/04/2014,Publicity,Group Communication,ABBOTT MEAD VICKERS BBDO LTD,2000000065,12000,#,NW1 5QE,
Department for Transport,Department for Transport,01/04/2014,Publicity,Group Communication,ABBOTT MEAD VICKERS BBDO LTD,2000000065,25000,PO 8000127945,NW1 5QE,
Department for Transport,Department for Transport,01/04/2014,Publicity,Group Communication,ABBOTT MEAD VICKERS BBDO LTD,2000000065,-25000,PO 8000127945,NW1 5QE,
Department for Transport,Department for Transport,01/04/2014,Publicity,Group Communication,TNS UK LTD,2000000076,13950,#,W5 1UA,
Department for Transport,Department for Transport,01/04/2014,Rent - L&B (non-PFI),Group Procurement & Estate,DWP SHARED SERVICES,2000000000,1073.24,#,CF14 3UW,
Department for Transport,Department for Transport,01/04/2014,Small Software,Motoring Services,ORACLE CORPORATION UK LTD,2000000071,2985.74,#,RG6 1RA,
Department for Transport,Department for Transport,01/04/2014,Small Software,Motoring Services,ORACLE CORPORATION UK LTD,2000000071,2403.54,#,RG6 1RA,
Department for Transport,Department for Transport,01/04/2014,Storage & Distributi,General Counsel's Office,COMMUNITIES AND LOCAL GOVERNMENT,2000000001,65590.55,#,HP2 4XN,
Department for Transport,Department for Transport,01/04/2014,Storage & Distributi,General Counsel's Office,COMMUNITIES AND LOCAL GOVERNMENT,2000000001,65001.68,#,HP2 4XN,
Department for Transport,Department for Transport,01/04/2014,Storage & Distributi,General Counsel's Office,COMMUNITIES AND LOCAL GOVERNMENT,2000000001,62834.66,#,HP2 4XN,
Department for Transport,Department for Transport,01/04/2014,Subscriptions to Pro,Group Human Resource,WHITEHALL & INDUSTRY GROUP,2000000077,5160,#,SW1H 9AA,
Department for Transport,Department for Transport,01/04/2014,Support Services,General Counsel's Office,Charles Lucas & Marshall,2000000088,70107.58,#,RG14 5EU,
Department for Transport,Department for Transport,01/04/2014,Support Services,Group Finance,DD ACCRAILWAY PENS TRUSTEE,2000000079,701.94,#,DL3 6XR,
Department for Transport,Department for Transport,01/04/2014,Transport  Consult,Major Projects & Growth,JACOBS UK LTD,2000000069,180019.8,#,G2 7HX,
Department for Transport,Department for Transport,01/04/2014,Transport  Consult,Major Projects & Growth,ATKINS LTD (TRANSPORT PLANNING),2000000067,884,#,WR5 1TX,
Department for Transport,Department for Transport,01/04/2014,Transport  Consult,Rail Franchising,ATKINS LTD (TRANSPORT PLANNING),2000000067,41284.86,#,WR5 1TX,
Department for Transport,Department for Transport,02/04/2014,Agency Staff Costs,Air Accident Investigation Branch,BROOK STREET (UK) LIMITED,2000000199,557.05,#,AL1 4JB,
Department for Transport,Department for Transport,02/04/2014,Agency Staff Costs,Corporate Governance,BADENOCH & CLARK,2000000177,3098.2,#,EC4V 4BG,
Department for Transport,Department for Transport,02/04/2014,Agency Staff Costs,Corporate Governance,BADENOCH & CLARK,2000000177,3442.44,#,EC4V 4BG,
Department for Transport,Department for Transport,02/04/2014,Agency Staff Costs,Group Finance,BADENOCH & CLARK,2000000177,4843.66,#,EC4V 4BG,
Department for Transport,Department for Transport,02/04/2014,Agency Staff Costs,Group Finance,BADENOCH & CLARK,2000000177,3347.7,#,EC4V 4BG,
Department for Transport,Department for Transport,02/04/2014,Agency Staff Costs,Group Finance,MICHAEL PAGE INTERNATIONAL,2000000202,4080,#,SL1 3SA,
Department for Transport,Department for Transport,02/04/2014,Agency Staff Costs,Group Finance,MICHAEL PAGE INTERNATIONAL,2000000202,2304,#,SL1 3SA,
Department for Transport,Department for Transport,02/04/2014,Agency Staff Costs,Group Finance,MICHAEL PAGE INTERNATIONAL,2000000202,3210,#,SL1 3SA,
Department for Transport,Department for Transport,02/04/2014,Agency Staff Costs,Group Finance,MICHAEL PAGE INTERNATIONAL,2000000202,2880,#,SL1 3SA,
Department for Transport,Department for Transport,02/04/2014,Agency Staff Costs,Programme Office,BADENOCH & CLARK,2000000177,1755.66,#,EC4V 4BG,
Department for Transport,Department for Transport,02/04/2014,Agency Staff Costs,Major Projects & Growth,SPRING TECHNOLOGY LTD  ALSO T/A,2000000211,1056,#,B37 7YE,
Department for Transport,Department for Transport,02/04/2014,Agency Staff Costs,Rail Commercial & Programme Office,CAPITA RESOURCING LTD,2000000203,-37095,#,DL1 9HN,
Department for Transport,Department for Transport,02/04/2014,Agency Staff Costs,Rail Commercial & Programme Office,CAPITA RESOURCING LTD,2000000203,37095,#,DL1 9HN,
Department for Transport,Department for Transport,02/04/2014,Agency Staff Costs,Rail Commercial & Programme Office,MORGAN HUNT UK LTD,2000000190,4311.38,#,EC4M 7EG,
Department for Transport,Department for Transport,02/04/2014,Agency Staff Costs,Group Finance,ALLEN LANE FINANCIAL RECRUITMENT,2000000173,2463.84,#,BN11 2BW,
Department for Transport,Department for Transport,02/04/2014,Agency Staff Costs,Group Finance,REED SPECIALIST RECRUITMENT LTD,2000000195,2264.4,#,SW20 0BA,
Department for Transport,Department for Transport,02/04/2014,Agency Staff Costs,Group Finance,SPRING TECHNOLOGY LTD  ALSO T/A,2000000211,1566.3,#,B37 7YE,
Department for Transport,Department for Transport,02/04/2014,Agency Staff Costs,Rail Franchising,CAPITA RESOURCING LTD,2000000203,15000.32,#,DL1 9HN,
Department for Transport,Department for Transport,02/04/2014,Agency Staff Costs,Rail Franchising,CAPITA RESOURCING LTD,2000000203,17280,#,DL1 9HN,
Department for Transport,Department for Transport,02/04/2014,Agency Staff Costs,Rail Franchising,CAPITA RESOURCING LTD,2000000203,4740,#,DL1 9HN,
Department for Transport,Department for Transport,02/04/2014,Agency Staff Costs,Strategic Roads & Smart Ticketing,EXPERIS LTD,2000000184,12265.44,#,EC1R 3DR,
Department for Transport,Department for Transport,02/04/2014,Agency Staff Costs,Rail Franchising,MICHAEL PAGE INTERNATIONAL,2000000202,3333,#,SL1 3SA,
Department for Transport,Department for Transport,02/04/2014,Agents Fees,Group Finance,RAILWAYS PENSION MANAGEMENT LT,2000000205,634958.36,#,DL3 6EH,
Department for Transport,Department for Transport,02/04/2014,Audit Fees (cash),Group Internal Audit,PRICEWATERHOUSECOOPERS LLP,2000000194,19950,#,E14 9SQ,
Department for Transport,Department for Transport,02/04/2014,Audit Fees (cash),Group Internal Audit,PRICEWATERHOUSECOOPERS LLP,2000000194,211724.38,#,E14 9SQ,
Department for Transport,Department for Transport,02/04/2014,Basic Franchise Pay,Rail Commercial & Programme Office,CROSS COUNTRY TRAINS LTD,2000000210,24000,1413 Wk4 RPI adjust and Fares Flex cap 2013_14 - A,B5 4HA,
Department for Transport,Department for Transport,02/04/2014,Basic Franchise Rec,Rail Commercial & Programme Office,ARRIVA TRAINS WALES,2000000207,244109.57,1413 Wk4 West Coast TT on A/C Payment P1413 - ARRI,CF10 5DJ,
Department for Transport,Department for Transport,02/04/2014,Basic Franchise Rec,Rail Commercial & Programme Office,C2C RAIL LIMITED,2000000206,9000,1413 Wk4 RPI Adjust and Fares Flex Cap 2013_14 - C,EC1V 9NR,
Department for Transport,Department for Transport,02/04/2014,Cap Grt Pri Sec-Cos.,Major Projects & Growth,LONDON UNDERGROUND,2000000214,184469,"""LUL P6-12, 2013/147""",NW1 2AH,
Department for Transport,Department for Transport,02/04/2014,Cap Grt Pri Sec-Cos.,Major Projects & Growth,NETWORK RAIL INFRASTRUCTURE LTD,2000000213,2297846.53,"""NR WP1,App5""",M60 7WY,
Department for Transport,Department for Transport,02/04/2014,Cap Grt Pri Sec-Cos.,"Energy, Technology and International",Athena Electrical,2000000234,1000,Athena Electrical Feb 2014 #1k,E5 8AJ,
Department for Transport,Department for Transport,02/04/2014,Car Hire and Leasing,Principal Priv. Secretary & Head of Private Office,GOVERNMENT CAR & DESPATCH AGENCY,100000247,6972.66,Ministerial Car Pool Service - Car 1 Jan 2014,SW8 5AX,
Department for Transport,Department for Transport,02/04/2014,Car Hire and Leasing,Principal Priv. Secretary & Head of Private Office,GOVERNMENT CAR & DESPATCH AGENCY,100000247,-6972.66,Credit doc 5105978784 (5105984345),SW8 5AX,
Department for Transport,Department for Transport,02/04/2014,Car Hire and Leasing,Motoring Services,LEX AUTOLEASE LTD,2000000167,878.8,#,BL9 8RT,
Department for Transport,Department for Transport,02/04/2014,Car Hire and Leasing,Motoring Services,LEX AUTOLEASE LTD,2000000167,760.1,#,BL9 8RT,
Department for Transport,Department for Transport,02/04/2014,Cars Maintenance,Motoring Services,CAMBRIA AUTOMOBILES SOUTH EAST LTD,2000000231,534.38,#,CR2 6EE,
Department for Transport,Department for Transport,02/04/2014,Cars Maintenance,Motoring Services,CAMBRIA AUTOMOBILES SOUTH EAST LTD,2000000231,1309.56,#,CR2 6EE,
Department for Transport,Department for Transport,02/04/2014,Cars Maintenance,Motoring Services,Professional Auto Centre Ltd,2000000228,1293.48,#,SW8 1RY,
Department for Transport,Department for Transport,02/04/2014,Computer Consumables,Aviation,XMA LIMITED GOSC,2000000225,624.71,INK CARTRIDGES,NG11 7EP,
Department for Transport,Department for Transport,02/04/2014,Computer Consumables,Aviation,XMA LIMITED GOSC,2000000225,-624.72,Credit Against 5105984479,NG11 7EP,
Department for Transport,Department for Transport,02/04/2014,Computer Consumables,Motoring Services,XMA LIMITED GOSC,2000000225,184.61,A33K150 Konica Minolta Black toner,NG11 7EP,
Department for Transport,Department for Transport,02/04/2014,Computer Consumables,Motoring Services,XMA LIMITED GOSC,2000000225,442.46,A33K250 Konica Minolta yellow toner,NG11 7EP,
Department for Transport,Department for Transport,02/04/2014,Computer Consumables,Motoring Services,XMA LIMITED GOSC,2000000225,221.23,A33K350 Konica Minolta Magenta Toner,NG11 7EP,
Department for Transport,Department for Transport,02/04/2014,Computer Consumables,Motoring Services,XMA LIMITED GOSC,2000000225,442.46,A33K450 Konica Minolta Cyan toner,NG11 7EP,
Department for Transport,Department for Transport,02/04/2014,Computer Consumables,Motoring Services,XMA LIMITED GOSC,2000000225,4724.64,A2N0TD Konica Colour Drums C364e,NG11 7EP,
Department for Transport,Department for Transport,02/04/2014,Computer equipment,Air Accident Investigation Branch,SOFTWARE BOX LTD,2000000166,2201.96,#,YO61 1ET,
Department for Transport,Department for Transport,02/04/2014,Conferences / Semina,Maritime,FCO FOREIGN & COMMONWEALTH OFFICE,2000000164,9681.59,#,MK10 1PX,
Department for Transport,Department for Transport,02/04/2014,Contract Cleaning,Air Accident Investigation Branch,INTERSERVE,2000000219,2173.5,#,BS32 4NH,
Department for Transport,Department for Transport,02/04/2014,Contract Cleaning,Marine Accident Investigation Branch,PROGRESS CLEANING SERVICES,2000000170,702,#,SO30 2FQ,
Department for Transport,Department for Transport,02/04/2014,Data Supply - TD,Transport Direct&Travel,LANDMARK INFORMATION GROUP LTD,2000000188,8629.5,#,EX2 7HY,
Department for Transport,Department for Transport,02/04/2014,Data Supply - TD,Transport Direct&Travel,LANDMARK INFORMATION GROUP LTD,2000000188,15050.6,#,EX2 7HY,
Department for Transport,Department for Transport,02/04/2014,Data Supply - TD,"Motoring, Freight & London",TRL LTD,2000000171,3771.6,#,RG40 3GA,
Department for Transport,Department for Transport,02/04/2014,Eurotunnel Admin Pay,Rail Commercial & Programme Office,SNCF Caisse Generale,2000000123,5508602.79,SNCF FUNDS FOR MARCH  2014,93633,
Department for Transport,Department for Transport,02/04/2014,Eurotunnel Admin Pay,Rail Commercial & Programme Office,SNCF TRESORERIE ENC RHT VFE,2000000124,5657818,SNCF FUNDS FOR MARCH  2014,75014,
Department for Transport,Department for Transport,02/04/2014,Financial Consultanc,Major Projects & Growth,PRICEWATERHOUSECOOPERS LLP,2000000194,186137.76,#,E14 9SQ,
Department for Transport,Department for Transport,02/04/2014,Financial Consultanc,Group Finance,RAILWAYS PENSION MANAGEMENT LT,2000000205,972,#,DL3 6EH,
Department for Transport,Department for Transport,02/04/2014,Furniture & Fittings,Air Accident Investigation Branch,SENATOR INTERNATIONAL LTD,2000000197,2729.4,#,BB5 5YE,
Department for Transport,Department for Transport,02/04/2014,HR Consultancy,Group Human Resource,EMPLOYEE ADVISORY RESOURCE LTD,2000000185,1074.25,#,W4 5YB,
Department for Transport,Department for Transport,02/04/2014,Indexation Receipts,Rail Commercial & Programme Office,ARRIVA TRAINS WALES,2000000207,9424.63,1413 Wk4 West Coast TT on A/C Payment Indexation P,CF10 5DJ,
Department for Transport,Department for Transport,02/04/2014,IT Consultancy,Marine Accident Investigation Branch,AVENCA LTD,2000000175,15906,#,SP5 3PJ,
Department for Transport,Department for Transport,02/04/2014,IT Ser Running Costs,Transport Direct&Travel,MENTZ DATENVERARBEITUNG GMBH,2000000163,1320,#,81675,
Department for Transport,Department for Transport,02/04/2014,IT Ser Running Costs,Transport Direct&Travel,MENTZ DATENVERARBEITUNG GMBH,2000000163,-2353.52,#,81675,
Department for Transport,Department for Transport,02/04/2014,IT Ser Running Costs,Aviation,CACI INFORMATION SOLUTIONS LTD,2000000178,3840,#,W14 8TS,
Department for Transport,Department for Transport,02/04/2014,IT Ser Running Costs,Rail Franchising,CONNECT INTERNET SOLUTIONS LTD,2000000180,4240.8,#,L2 6SG,
Department for Transport,Department for Transport,02/04/2014,IT Ser Running Costs,Rail Franchising,CONNECT INTERNET SOLUTIONS LTD,2000000180,2980.8,#,L2 6SG,
Department for Transport,Department for Transport,02/04/2014,Legal Consultancy,Group Human Resource,TREASURY SOLICITOR,2000000160,19332,#,WC2B 4TS,
Department for Transport,Department for Transport,02/04/2014,Legal Consultancy,Group Human Resource,TREASURY SOLICITOR,2000000160,14927.52,#,WC2B 4TS,
Department for Transport,Department for Transport,02/04/2014,Legal Consultancy,Group Human Resource,TREASURY SOLICITOR,2000000160,20090.53,#,WC2B 4TS,
Department for Transport,Department for Transport,02/04/2014,Legal Consultancy,Group Human Resource,TREASURY SOLICITOR,2000000160,5029.08,#,WC2B 4TS,
Department for Transport,Department for Transport,02/04/2014,Machinery Rental,General Counsel's Office,DANWOOD GROUP LTD,2000000182,1219.33,#,LN6 3DG,
Department for Transport,Department for Transport,02/04/2014,Machinery Rental,General Counsel's Office,DANWOOD GROUP LTD,2000000182,1060.32,#,LN6 3DG,
Department for Transport,Department for Transport,02/04/2014,Machinery Rental,General Counsel's Office,DANWOOD GROUP LTD,2000000182,2159.17,#,LN6 3DG,
Department for Transport,Department for Transport,02/04/2014,Other Advertising,Local,PENNA COMMUNICATIONS,2000000216,3367.41,#,EC4M 7RD,
Department for Transport,Department for Transport,02/04/2014,Other Advertising,Local,PENNA COMMUNICATIONS,2000000216,4550.61,#,EC4M 7RD,
Department for Transport,Department for Transport,02/04/2014,Other Professional F,Group Finance,CIPFA Business Ltd,2000000172,11900,#,WC1A 9GR,
Department for Transport,Department for Transport,02/04/2014,Other Sprs - Ptoc,Rail Commercial & Programme Office,LONDON & SOUTH EASTERN RAILWAY,2000000208,694300.87,1413 Wk4 Perpetuum Phase 1 Costs - LONDON  & SOUTH,SE1 8PG,
Department for Transport,Department for Transport,02/04/2014,Printing,"Policy, Legislation and Funding",WILLIAMS LEA LIMITED,2000000222,11343.97,#,NR3 1PD,
Department for Transport,Department for Transport,02/04/2014,Property Maintenance,Air Accident Investigation Branch,INTERSERVE,2000000219,53345.59,#,BS32 4NH,
Department for Transport,Department for Transport,02/04/2014,Publicity,"Motoring, Freight & London",Munro Market Research Limited,2000000233,8101.2,#,HP13 6AE,
Department for Transport,Department for Transport,02/04/2014,Rates,Rail Accident Investigation Branch,DERBY CITY COUNCIL (NNDR),2000000183,2873.1,Derby City - 1.4.14 to 1.4.15,DE1 2XG,
Department for Transport,Department for Transport,02/04/2014,Rent - L&B (non-PFI),Group Procurement & Estate,DWP SHARED SERVICES,2000000161,1073.24,#,CF14 3UW,
Department for Transport,Department for Transport,02/04/2014,Research,Major Projects & Growth,TRANSPORT RESEARCH LABORATORY,2000000198,11979.15,#,RG40 3GA,
Department for Transport,Department for Transport,02/04/2014,Research,Major Projects & Growth,TRANSPORT RESEARCH LABORATORY,2000000198,10997.41,#,RG40 3GA,
Department for Transport,Department for Transport,02/04/2014,Research,Motoring Services,CABINET OFFICE,2000000215,50000,#,CF14 3UW,
Department for Transport,Department for Transport,02/04/2014,Research,Local,TRANSPORT RESEARCH LABORATORY,2000000198,4789.25,#,RG40 3GA,
Department for Transport,Department for Transport,02/04/2014,Schedule 8 Fixed Per,Rail Commercial & Programme Office,ARRIVA TRAINS WALES,2000000207,721116.15,1413 Wk4 CP2SR P1412 - ARRIVA TRAINS WALES LIMITED,CF10 5DJ,
Department for Transport,Department for Transport,02/04/2014,Schedule 8 Fixed Per,Rail Commercial & Programme Office,ARRIVA TRAINS WALES,2000000207,2042.52,1413 Wk4 PIP_Adjustment_P1411 - ARRIVA TRAINS WALE,CF10 5DJ,
Department for Transport,Department for Transport,02/04/2014,Schedule 8 Fixed Per,Rail Commercial & Programme Office,ARRIVA TRAINS WALES,2000000207,-74410.85,1413 Wk4 RTMRE_P1412 - ARRIVA TRAINS WALES LIMITED,CF10 5DJ,
Department for Transport,Department for Transport,02/04/2014,Schedule 8 Fixed Per,Rail Commercial & Programme Office,ARRIVA TRAINS WALES,2000000207,57985.75,1413 Wk4 TS8A_P1412 - ARRIVA TRAINS WALES LIMITED,CF10 5DJ,
Department for Transport,Department for Transport,02/04/2014,Services prov by OGD,"Motoring, Freight & London",VEHICLE & OPERATOR SERVICES AGENCY,2000000162,4339243,#,SA1 8AN,
Department for Transport,Department for Transport,02/04/2014,Services prov by OGD,Transport Security Strategy,DEFENCE BUSINESS SERVICES,2000000220,2164.22,#,YO10 4AS,
Department for Transport,Department for Transport,02/04/2014,Services prov by OGD,Aviation,DEPARTMENT FOR ENVIRONMENT,2000000181,8803.2,#,YO1 7PX,
Department for Transport,Department for Transport,02/04/2014,Software Lic Cap,Transport Direct&Travel,MENTZ DATENVERARBEITUNG GMBH,2000000163,7014,#,81675,
Department for Transport,Department for Transport,02/04/2014,Storage & Distributi,Group Communication,NEAL DISPLAY LTD,2000000192,7500,#,SG13 7BJ,
Department for Transport,Department for Transport,02/04/2014,Support Services,"Motoring, Freight & London",HIGHWAYS AGENCY,2000000165,6796.05,#,B1 1RN,
Department for Transport,Department for Transport,02/04/2014,Support Services,Principal Priv. Secretary & Head of Private Office,FCO FOREIGN & COMMONWEALTH OFFICE,100000246,2626.02,#,MK10 1PX,
Department for Transport,Department for Transport,02/04/2014,Support Services,Principal Priv. Secretary & Head of Private Office,FCO FOREIGN & COMMONWEALTH OFFICE,100000246,-2626.02,#,MK10 1PX,
Department for Transport,Department for Transport,02/04/2014,Support Services,Aviation,ENVIRONMENT AGENCY,2000000212,8500,#,PE2 8YD,
Department for Transport,Department for Transport,02/04/2014,Support Services,Aviation,ENVIRONMENT AGENCY,2000000212,3000,#,PE2 8YD,
Department for Transport,Department for Transport,02/04/2014,Support Services,Aviation,ENVIRONMENT AGENCY,2000000212,11000,#,PE2 8YD,
Department for Transport,Department for Transport,02/04/2014,Support Services,Aviation,CIVIL AVIATION AUTHORITY,2000000179,2850,#,RH10 0YR,
Department for Transport,Department for Transport,02/04/2014,Support Services,Aviation,CIVIL AVIATION AUTHORITY,2000000179,575175.93,#,RH10 0YR,
Department for Transport,Department for Transport,02/04/2014,Support Services,Environment & International Transport Analysis,BMT RELIABILITY CONSULTANTS LTD,100000248,37708.5,#,PO15 5SU,
Department for Transport,Department for Transport,02/04/2014,Support Services,Environment & International Transport Analysis,BMT RELIABILITY CONSULTANTS LTD,100000248,-37708.5,#,PO15 5SU,
Department for Transport,Department for Transport,02/04/2014,Support Services,Aviation,FCO FOREIGN & COMMONWEALTH OFFICE,2000000164,1187.02,#,MK10 1PX,
Department for Transport,Department for Transport,02/04/2014,Support Services,Group Finance,RAILWAYS PENSION MANAGEMENT LT,2000000205,233735.11,#,DL3 6EH,
Department for Transport,Department for Transport,02/04/2014,Training,Air Accident Investigation Branch,HELI AIR LIMITED,2000000224,508,#,CV35 9EU,
Department for Transport,Department for Transport,02/04/2014,Training,"Motoring, Freight & London",Peter East Associates Ltd,2000000193,470,#,WD6 3FG,
Department for Transport,Department for Transport,02/04/2014,Training,Marine Accident Investigation Branch,KELVIN HUGHES LTD,2000000187,833.33,#,IG6 2UR,
Department for Transport,Department for Transport,02/04/2014,Training,Analysis & Strategy,NATIONAL CENTRE FOR SOCIAL RESEARCH,2000000191,5080,#,EC1V 0AX,
Department for Transport,Department for Transport,02/04/2014,Transport  Consult,Aviation,MANCHESTER METROPOLITAN UNIV,2000000189,81631.2,#,M1 5GD,
Department for Transport,Department for Transport,02/04/2014,Transport  Consult,Aviation,MANCHESTER METROPOLITAN UNIV,2000000189,55314,#,M1 5GD,
Department for Transport,Department for Transport,02/04/2014,Transport  Consult,Major Projects & Growth,FIRST GREATER WESTERN,2000000209,73400.63,#,SN1 1HL,
Department for Transport,Department for Transport,02/04/2014,Transport  Consult,Rail Strategy & Funding,URS INFRASTRUCTURE &,2000000196,2427.8,#,RG21 4JG,
Department for Transport,Department for Transport,02/04/2014,Transport  Consult,Rail Commercial & Programme Office,TRANSPORT RESEARCH LABORATORY,2000000198,26902.99,#,RG40 3GA,
Department for Transport,Department for Transport,02/04/2014,Transport  Consult,Rail Commercial & Programme Office,TRANSPORT RESEARCH LABORATORY,2000000198,33993.67,#,RG40 3GA,
Department for Transport,Department for Transport,02/04/2014,Transport  Consult,Rail Franchising,ATKINS LTD (TRANSPORT PLANNING),2000000174,8046.31,#,WR5 1TX,
Department for Transport,Department for Transport,02/04/2014,Transport  Consult,Maritime,FRAZER-NASH CONSULTANCY LTD,2000000223,25584.82,#,RH4 1HJ,
Department for Transport,Department for Transport,02/04/2014,Travel Expenses UK,Group Human Resource,TREASURY SOLICITOR,2000000160,50,#,WC2B 4TS,
Department for Transport,Department for Transport,02/04/2014,Travel Expenses UK,Group Human Resource,TREASURY SOLICITOR,2000000160,30.6,#,WC2B 4TS,
Department for Transport,Department for Transport,02/04/2014,Waste disposal/Refus,Group Procurement & Estate,Banner Business Services Ltd,100000249,906.75,#,NR3 1QU,
Department for Transport,Department for Transport,02/04/2014,Waste disposal/Refus,Group Procurement & Estate,Banner Business Services Ltd,100000249,-906.75,#,NR3 1QU,
Department for Transport,Department for Transport,03/04/2014,Agency Staff Costs,Motoring Services,COMPUTACENTER (UK) LTD,2000000333,25810.96,#,AL10 9TW,
Department for Transport,Department for Transport,03/04/2014,Agency Staff Costs,Motoring Services,COMPUTACENTER (UK) LTD,2000000333,14976,#,AL10 9TW,
Department for Transport,Department for Transport,03/04/2014,Agency Staff Costs,Motoring Services,COMPUTACENTER (UK) LTD,2000000333,27600,#,AL10 9TW,
Department for Transport,Department for Transport,03/04/2014,Agency Staff Costs,Rail Franchising,CAPITA RESOURCING LTD,2000000350,18468,#,DL1 9HN,
Department for Transport,Department for Transport,03/04/2014,Agency Staff Costs,Strategic Roads & Smart Ticketing,EXPERIS LTD,2000000336,3399.66,#,EC1R 3DR,
Department for Transport,Department for Transport,03/04/2014,Agency Staff Costs,Rail Commercial & Programme Office,MICHAEL PAGE INTERNATIONAL,2000000349,723.9,#,SL1 3SA,
Department for Transport,Department for Transport,03/04/2014,Audit Fees (cash),Group Internal Audit,PRICEWATERHOUSECOOPERS LLP,100001875,212811.88,#,E14 9SQ,
Department for Transport,Department for Transport,03/04/2014,Audit Fees (cash),Group Internal Audit,PRICEWATERHOUSECOOPERS LLP,100001875,-212811.88,#,E14 9SQ,
Department for Transport,Department for Transport,03/04/2014,Cap Grt Loc Auth,Local,Lincolnshire County Council,2000000360,235500,LSTF Payments to LINCOLNSHIRE CC 2013-14 Q3,LN1 1DN,
Department for Transport,Department for Transport,03/04/2014,Cap Grt Pri Sec-Cos.,"Energy, Technology and International",Solar Solutions,2000000362,999.67,Solar Solutions Jan 2014 #999.67,NE28 7RP,
Department for Transport,Department for Transport,03/04/2014,CurrGrt Las in AEF/A,"Motoring, Freight & London",GREATER LONDON AUTHORITY,2000000326,134188846,GLA Transport Grant - April 14/15,SE1 2UT,
Department for Transport,Department for Transport,03/04/2014,CurrGrt Las in AEF/A,Local,Lincolnshire County Council,2000000360,458500,LSTF Payments to LINCOLNSHIRE CC 2013-14 Q3,LN1 1DN,
Department for Transport,Department for Transport,03/04/2014,CurrGrtOth to NDPBs,Group Finance,CTRL SECTION 1 FINANCE PLC,2000000353,27878052.23,TAS/SFS/CTRL Section 1 Finance,NW1 1AY,
Department for Transport,Department for Transport,03/04/2014,CurrGrtPriSec-P&NPIS,"Motoring, Freight & London",BRAKE,2000000347,5243,4008429 BRAKE,HD1 2XZ,
Department for Transport,Department for Transport,03/04/2014,CurrGrtPriSec-P&NPIS,"Motoring, Freight & London",ROSPA ENTERPRISES LTD,2000000348,51213,4008597 ROSPA ENTERPRISES LTD,B15 1RP,
Department for Transport,Department for Transport,03/04/2014,Eurotunnel Admin Pay,Rail Commercial & Programme Office,EUROTUNNEL,2000000257,4831272.91,Opex & Usage Charges - March 14,CT18 8XY,
Department for Transport,Department for Transport,03/04/2014,Eurotunnel Admin Pay,Rail Commercial & Programme Office,EUROTUNNEL (EURO PAYMENTS),2000000256,5097090.08,"Opex & Usage Charges - March 14 (7,385,071.81Eur)",CT18 8X,
Department for Transport,Department for Transport,03/04/2014,Eurotunnel Admin Pay,Rail Commercial & Programme Office,SNCF Caisse Generale,2000000258,35058.69,SNCF Funds - March 14 GBP Exchange plus TVA,93633,
Department for Transport,Department for Transport,03/04/2014,Eurotunnel Admin Pay,Rail Commercial & Programme Office,SNCF TRESORERIE ENC RHT VFE,2000000259,10825.81,"SNCF Funds - March 14 - 13,057.09 Euro Exchange",75014,
Department for Transport,Department for Transport,03/04/2014,IT Equip Cap Cost,Motoring Services,KONICA MINOLTA BUS. SOLUTIONS  (UK),2000000328,2110.7,#,SS14 3AR,
Department for Transport,Department for Transport,03/04/2014,IT Equip Cap Cost,Motoring Services,KONICA MINOLTA BUS. SOLUTIONS  (UK),2000000328,2110.7,#,SS14 3AR,
Department for Transport,Department for Transport,03/04/2014,IT Ser Running Costs,Environment & International Transport Analysis,ELEMENT ENERGY LTD,2000000356,2940,#,CB1 2JD,
Department for Transport,Department for Transport,03/04/2014,Legal Consultancy,Major Projects & Growth,DLA PIPER UK LLP,2000000335,23269.44,#,M2 3DL,
Department for Transport,Department for Transport,03/04/2014,Legal Consultancy,Rail Franchising,DLA PIPER UK LLP,2000000335,9447.36,#,M2 3DL,
Department for Transport,Department for Transport,03/04/2014,Legal Consultancy,Rail Franchising,DLA PIPER UK LLP,2000000335,4630.08,#,M2 3DL,
Department for Transport,Department for Transport,03/04/2014,Legal Consultancy,Rail Franchising,Eversheds LLP,2000000354,111346.8,#,EC2V 7WS,
Department for Transport,Department for Transport,03/04/2014,Legal Consultancy,Rail Franchising,Eversheds LLP,2000000354,262813.8,#,EC2V 7WS,
Department for Transport,Department for Transport,03/04/2014,Mobile Phone charges,RTL DG's Office,VODAFONE LTD,2000000346,3160.94,Vodafone -Various March 2014   Acc 60423232442,RG14 5FF,
Department for Transport,Department for Transport,03/04/2014,Mobile Phone charges,RTL DG's Office,VODAFONE LTD,2000000346,12000.6,Vodafone Various Feb 2014,RG14 5FF,
Department for Transport,Department for Transport,03/04/2014,Mobile Phone charges,Centrally held prog-NATs,VODAFONE LTD,2000000346,9694.87,Vodafone -Various March 2014   Acc 604232362,RG14 5FF,
Department for Transport,Department for Transport,03/04/2014,Mobile Phone charges,Group Finance,T-MOBILE (UK) LTD,2000000341,762.83,T-MOBILE - A/C 43361515,AL10 9BW,
Department for Transport,Department for Transport,03/04/2014,Mobile Phone charges,Group Finance,VODAFONE LTD,2000000346,7339.35,Vodafone -Various March 2014   604232420,RG14 5FF,
Department for Transport,Department for Transport,03/04/2014,Recruitment,Group Human Resource,HM REVENUE & CUSTOMS,2000000321,6991.97,#,BN12 4XH,
Department for Transport,Department for Transport,03/04/2014,Recruitment,Group Human Resource,HM REVENUE & CUSTOMS,2000000321,8839.62,#,BN12 4XH,
Department for Transport,Department for Transport,03/04/2014,Recruitment,Group Human Resource,HM REVENUE & CUSTOMS,2000000321,1864.84,#,BN12 4XH,
Department for Transport,Department for Transport,03/04/2014,Recruitment,Group Human Resource,HM REVENUE & CUSTOMS,2000000321,1832.67,#,BN12 4XH,
Department for Transport,Department for Transport,03/04/2014,Recruitment,Group Human Resource,HM REVENUE & CUSTOMS,2000000321,1911.08,#,BN12 4XH,
Department for Transport,Department for Transport,03/04/2014,Recruitment,General Counsel's Office,TMP UK LTD,2000000329,3000,#,W1T 7RQ,
Department for Transport,Department for Transport,03/04/2014,Recruitment Fees,Rail Accident Investigation Branch,SHL Group Ltd,2000000363,792,#,KT7 0NE,
Department for Transport,Department for Transport,03/04/2014,Research,Aviation,CIVIL AVIATION AUTHORITY,2000000332,49336,#,RH10 0YR,
Department for Transport,Department for Transport,03/04/2014,Research,Local,Modeshift,2000000361,1080,#,ST16 9JN,
Department for Transport,Department for Transport,03/04/2014,Research,Strategic Roads & Smart Ticketing,OFFICE OF RAIL REGULATION,2000000322,24761.09,#,WC2B 4AN,
Department for Transport,Department for Transport,03/04/2014,Research,"Energy, Technology and International",LOUGHBOROUGH UNIVERSITY,2000000337,235033.49,#,LE11 3TU,
Department for Transport,Department for Transport,03/04/2014,Security,Group Human Resource,HM REVENUE & CUSTOMS,2000000321,2025,#,BN12 4XH,
Department for Transport,Department for Transport,03/04/2014,Services prov by OGD,"Motoring, Freight & London",DRIVING STANDARDS AGENCY,2000000320,623344.34,#,NG1 6LP,
Department for Transport,Department for Transport,03/04/2014,Services prov by OGD,Group Human Resource,CABINET OFFICE,2000000352,248349.6,#,CF14 3UW,
Department for Transport,Department for Transport,03/04/2014,Services prov by OGD,"Motoring, Freight & London",VEHICLE CERTIFICATION AGENCY,2000000343,11937.17,#,BS5 6XX,
Department for Transport,Department for Transport,03/04/2014,Software Lic Cap,Transport Direct&Travel,MENTZ DATENVERARBEITUNG GMBH,2000000323,51300,#,81675,
Department for Transport,Department for Transport,03/04/2014,Support Services,Aviation,CIVIL AVIATION AUTHORITY,2000000332,94111.35,#,RH10 0YR,
Department for Transport,Department for Transport,03/04/2014,Support Services,Aviation,CIVIL AVIATION AUTHORITY,2000000332,7310.25,#,RH10 0YR,
Department for Transport,Department for Transport,03/04/2014,Support Services,Strategic Roads & Smart Ticketing,HIGHWAYS AGENCY,2000000325,4078.31,#,B1 1RN,
Department for Transport,Department for Transport,03/04/2014,Support Services,Maritime,ENTERPRISE RENT-A-CAR,2000000355,556.06,#,TW20 8RX,
Department for Transport,Department for Transport,03/04/2014,Support Services,Aviation,DEPARTMENT FOR ENVIRONMENT,2000000334,9912,#,YO1 7PX,
Department for Transport,Department for Transport,03/04/2014,Support Services,"Policy, Legislation and Funding",HIGH SPEED TWO (HS2) LTD,2000000358,195347.81,#,SW1E 5DU,
Department for Transport,Department for Transport,03/04/2014,Training,Group Finance,ELIESHA TRAINING,2000000327,3844.2,#,NE4 7YB,
Department for Transport,Department for Transport,03/04/2014,Transport  Consult,Rail Commercial & Programme Office,TRANSPORT RESEARCH LABORATORY,2000000342,9081.47,#,RG40 3GA,
Department for Transport,Department for Transport,03/04/2014,Transport  Consult,Major Projects & Growth,PARSONS BRINCKERHOFF LTD,2000000339,10842.14,#,NE4 7YQ,
Department for Transport,Department for Transport,03/04/2014,Transport  Consult,Rail Franchising,ATKINS LTD (TRANSPORT PLANNING),2000000331,417496.39,#,WR5 1TX,
Department for Transport,Department for Transport,03/04/2014,Transport  Consult,Rail Franchising,ATKINS LTD (TRANSPORT PLANNING),2000000331,211837.31,#,WR5 1TX,
Department for Transport,Department for Transport,03/04/2014,Transport  Consult,Aviation,FRAZER-NASH CONSULTANCY LTD,2000000357,4008.29,#,RH4 1HJ,
Department for Transport,Department for Transport,03/04/2014,Transport  Consult,Rail Franchising,GRANT THORNTON UK LLP,2000000351,4416,#,NN4 7YE,
Department for Transport,Department for Transport,03/04/2014,Transport  Consult,Strategic Roads & Smart Ticketing,PA CONSULTING SERVICES LIMITED,2000000338,78204,#,SW1W 9SR,
Department for Transport,Department for Transport,04/04/2014,Agency Staff Costs,Local,BROOK STREET (UK) LIMITED,2000000441,555.89,#,AL1 4JB,
Department for Transport,Department for Transport,04/04/2014,Agency Staff Costs,Group Finance,ALLEN LANE FINANCIAL RECRUITMENT,2000000426,2719.38,#,BN11 2BW,
Department for Transport,Department for Transport,04/04/2014,Agency Staff Costs,Group Finance,ALLEN LANE FINANCIAL RECRUITMENT,2000000426,2719.38,#,BN11 2BW,
Department for Transport,Department for Transport,04/04/2014,Agency Staff Costs,Group Finance,ALLEN LANE FINANCIAL RECRUITMENT,2000000426,2719.38,#,BN11 2BW,
Department for Transport,Department for Transport,04/04/2014,Agency Staff Costs,Group Finance,MICHAEL PAGE INTERNATIONAL,2000000452,3240,#,SL1 3SA,
Department for Transport,Department for Transport,04/04/2014,Agency Staff Costs,Group Finance,MICHAEL PAGE INTERNATIONAL,2000000452,4494,#,SL1 3SA,
Department for Transport,Department for Transport,04/04/2014,Agency Staff Costs,Major Projects & Growth,SPRING TECHNOLOGY LTD  ALSO T/A,2000000455,1320,#,B37 7YE,
Department for Transport,Department for Transport,04/04/2014,Agency Staff Costs,Group Finance,SPRING TECHNOLOGY LTD  ALSO T/A,2000000455,1566.3,#,B37 7YE,
Department for Transport,Department for Transport,04/04/2014,Agency Staff Costs,Rail Franchising,MICHAEL PAGE INTERNATIONAL,2000000452,3333,#,SL1 3SA,
Department for Transport,Department for Transport,04/04/2014,Agency Staff Costs,Group Finance,PARITY RESOURCES LTD,2000000453,14040,#,SW19 3RU,
Department for Transport,Department for Transport,04/04/2014,Agents Fees,Motoring Services,DRIVER & VEHICLE LICENSING AGENCY,2000000431,4026.9,#,SA6 7JL,
Department for Transport,Department for Transport,04/04/2014,Building Service Cha,Group Procurement & Estate,Amey Community Ltd,2000000473,13521.48,#,OX4 4DQ,
Department for Transport,Department for Transport,04/04/2014,Building Service Cha,Group Procurement & Estate,Amey Community Ltd,2000000473,225358.01,#,OX4 4DQ,
Department for Transport,Department for Transport,04/04/2014,Cap Grt Loc Auth,Local,Lincolnshire County Council,2000000471,235500,LSTF PaymentLincoln  Q3 2013/14,LN1 1DN,
Department for Transport,Department for Transport,04/04/2014,Computer equipment,Group Communication,CREATIVE VIDEO PRODUCTIONS LIMITED,2000000442,2448,Sony PMW-100//C1 (PMW100) Camera,TW8 9EX,
Department for Transport,Department for Transport,04/04/2014,Conferences / Semina,Group Communication,CENTRAL HALL WESTMINSTER LTD,2000000430,5376,#,SW1H 9NH,
Department for Transport,Department for Transport,04/04/2014,Contract Cleaning,Air Accident Investigation Branch,INTERSERVE,2000000463,2173.5,#,BS32 4NH,
Department for Transport,Department for Transport,04/04/2014,Contract Cleaning,Rail Accident Investigation Branch,OFFICE CARE LTD,2000000462,1279.75,#,DE24 8AN,
Department for Transport,Department for Transport,04/04/2014,CurrGrt Las in AEF/A,Local,Lincolnshire County Council,2000000471,458500,LSTF PaymentLincoln  Q3 2013/14,LN1 1DN,
Department for Transport,Department for Transport,04/04/2014,CurrGrt Las in AEF/A,Local,STEER DAVIES & GLEAVE LTD,2000000465,4000000,Steer Davies (SDG) 1st Payment 2014/15,SE1 9PD,
Department for Transport,Department for Transport,04/04/2014,CurrGrtPriSec-P&NPIS,Local,CORNWALL MOBILITY CENTRE LTD,2000000443,60158,Mobility Centres Payments Q1 2014-15,TR1 3LJ,
Department for Transport,Department for Transport,04/04/2014,CurrGrtPriSec-P&NPIS,Local,DERBY HOSPITALS,2000000444,51518,Mobility Centres Payments Q1 2014-15,DE1 2QY,
Department for Transport,Department for Transport,04/04/2014,CurrGrtPriSec-P&NPIS,Local,DISABLED LIVING CENTRE,2000000445,51812,Mobility Centres Payments Q1 2014-15,BS16 2QQ,
Department for Transport,Department for Transport,04/04/2014,CurrGrtPriSec-P&NPIS,Local,EAST ANGLIAN DRIVEABILITY,2000000446,82045,Mobility Centres Payments Q1 2014-15,IP24 3RL,
Department for Transport,Department for Transport,04/04/2014,CurrGrtPriSec-P&NPIS,Local,FORUM OF MOBILITY CENTRES,2000000457,25373,Mobility Centres Payments Q1 2014-15,IP24 3RL,
Department for Transport,Department for Transport,04/04/2014,CurrGrtPriSec-P&NPIS,Local,HERTFORDSHIRE ACTION ON DISABILITY,2000000456,35948,Mobility Centres Payments Q1 2014-15,AL7 4DD,
Department for Transport,Department for Transport,04/04/2014,CurrGrtPriSec-P&NPIS,Local,KENT COMMUNITY HEALTH NHS TRUST,2000000478,65663,Mobility Centres Payments Q1 2014-15,CT1 3NG,
Department for Transport,Department for Transport,04/04/2014,CurrGrtPriSec-P&NPIS,Local,N. West Driving Assessment Service,2000000477,62264,Mobility Centres Payments Q1 2014-15,WA11 9SJ,
Department for Transport,Department for Transport,04/04/2014,CurrGrtPriSec-P&NPIS,Local,NORTHUMBERLAND TYNE & WEAR NHS TRUS,2000000447,45860,Mobility Centres Payments Q1 2014-15,NE3 3XT,
Department for Transport,Department for Transport,04/04/2014,CurrGrtPriSec-P&NPIS,Local,QUEEN ELIZABETHS FOUNDATION,2000000448,82132,Mobility Centres Payments Q1 2014-15,SM5 4NR,
Department for Transport,Department for Transport,04/04/2014,CurrGrtPriSec-P&NPIS,Local,REGIONAL DRIVING ASSESSMENT CENTRE,2000000449,112834,Mobility Centres Payments Q1 2014-15,B8 1AU,
Department for Transport,Department for Transport,04/04/2014,CurrGrtPriSec-P&NPIS,Local,WESSEX DRIVEABILITY,2000000450,46957,Mobility Centres Payments Q1 2014-15,SO17 2LJ,
Department for Transport,Department for Transport,04/04/2014,CurrGrtPriSec-P&NPIS,Local,WILLIAM MERRITT DISABLED LIVING,2000000451,45421,Mobility Centres Payments Q1 2014-15,LS12 3QE,
Department for Transport,Department for Transport,04/04/2014,Data Supply - TD,Transport Direct&Travel,BASEMAP LIMITED,2000000468,2848.99,#,GU2 7YG,
Department for Transport,Department for Transport,04/04/2014,Data Supply - TD,Transport Direct&Travel,Rail Settlement Plan,2000000435,1755.6,#,EC1A 4HD,
Department for Transport,Department for Transport,04/04/2014,Estate Management,Group Procurement & Estate,Amey Community Ltd,2000000473,124240.46,#,OX4 4DQ,
Department for Transport,Department for Transport,04/04/2014,Eurocontrol Contr,Aviation,EUROCONTROL,2000000424,10113111.34,#,1130,
Department for Transport,Department for Transport,04/04/2014,IT Ser Running Costs,Rail Accident Investigation Branch,Ninian Solutions Ltd T/A Huddle,2000000470,4500,#,E1 8EP,
Department for Transport,Department for Transport,04/04/2014,Machinery Maintenanc,Marine Accident Investigation Branch,ZIP HEATERS (UK) LTD,2000000439,1172.52,#,NR19 1TE,
Department for Transport,Department for Transport,04/04/2014,Printing,"Policy, Legislation and Funding",WILLIAMS LEA LIMITED,2000000467,2101,#,NR3 1PD,
Department for Transport,Department for Transport,04/04/2014,Prog&ProjMgmt Consul,Major Projects & Growth,ATKINS LTD (TRANSPORT PLANNING),2000000427,5284.75,#,WR5 1TX,
Department for Transport,Department for Transport,04/04/2014,Prog&ProjMgmt Consul,Strategic Roads & Smart Ticketing,Rail Settlement Plan,2000000435,247335.6,#,EC1A 4HD,
Department for Transport,Department for Transport,04/04/2014,Property Maintenance,Air Accident Investigation Branch,INTERSERVE,2000000463,12404.87,#,BS32 4NH,
Department for Transport,Department for Transport,04/04/2014,Recruitment,"Motoring, Freight & London",OFFICE FOR NATIONAL STATISTICS,2000000476,5000,#,NP10 8XG,
Department for Transport,Department for Transport,04/04/2014,Research,Analysis & Strategy,CABINET OFFICE,2000000461,30000,#,SW1A 2WH,
Department for Transport,Department for Transport,04/04/2014,Research,Major Projects & Growth,PARSONS BRINCKERHOFF LTD,2000000433,11385.88,#,NE4 7YQ,
Department for Transport,Department for Transport,04/04/2014,Research,Analysis & Strategy,ATKINS LTD (TRANSPORT PLANNING),2000000427,16901.07,#,WR5 1TX,
Department for Transport,Department for Transport,04/04/2014,Services prov by OGD,Transport Security Strategy,FCO SERVICES,2000000475,18567.6,#,MK19 7BH,
Department for Transport,Department for Transport,04/04/2014,Services prov by OGD,Transport Security Strategy,FCO SERVICES,2000000475,22515.6,#,MK19 7BH,
Department for Transport,Department for Transport,04/04/2014,Storage & Distributi,Group Communication,NEAL DISPLAY LTD,2000000432,2416.04,#,SG13 7BJ,
Department for Transport,Department for Transport,04/04/2014,Storage & Distributi,Group Communication,NEAL DISPLAY LTD,2000000432,534.6,#,SG13 7BJ,
Department for Transport,Department for Transport,04/04/2014,Support Services,Aviation,CORNWALL AIRPORT LTD,2000000459,29988,#,TR8 4RQ,
Department for Transport,Department for Transport,04/04/2014,Support Services,Group Finance,EXEL PLC,2000000425,420000,#,MK40 2UB,
Department for Transport,Department for Transport,04/04/2014,Training,Group Human Resource,SCT CONSULTANTS LTD,2000000466,4000,#,W8 5RL,
Department for Transport,Department for Transport,04/04/2014,Transport  Consult,Major Projects & Growth,PARSONS BRINCKERHOFF LTD,2000000433,14874,#,NE4 7YQ,
Department for Transport,Department for Transport,04/04/2014,Transport  Consult,Rail Franchising,ATOS IT SERVICES UK LTD,2000000428,16407.6,#,WV10 6UH,
Department for Transport,Department for Transport,04/04/2014,Transport  Consult,Motoring Services,Frost & Sullivan Ltd,2000000472,4800,#,OX4 2GX,
Department for Transport,Department for Transport,04/04/2014,Transport  Consult,Aviation,PRICEWATERHOUSECOOPERS LLP,2000000434,69682.8,#,E14 9SQ,
Department for Transport,Department for Transport,04/04/2014,Travel Expenses UK,Group Finance,REDFERN TRAVEL LTD,2000000460,140714.52,Redfern Travel - March 2014,BD1 3AZ,
Department for Transport,Department for Transport,07/04/2014,Agency Staff Costs,Group Communication,NETWORKERS INTERNATIONAL (UK) PLC,2000000559,1013.52,#,BR1 1HP,
Department for Transport,Department for Transport,07/04/2014,Agency Staff Costs,Group Finance,NETWORKERS INTERNATIONAL (UK) PLC,2000000559,3393.6,#,BR1 1HP,
Department for Transport,Department for Transport,07/04/2014,Agency Staff Costs,Group Human Resource,EXPERIS LTD,2000000542,3834.72,#,EC1R 3DR,
Department for Transport,Department for Transport,07/04/2014,Agency Staff Costs,Local,SPRING TECHNOLOGY LTD  ALSO T/A,2000000560,762.48,#,B37 7YE,
Department for Transport,Department for Transport,07/04/2014,Agency Staff Costs,Major Projects & Growth,SPRING TECHNOLOGY LTD  ALSO T/A,2000000560,1320,#,B37 7YE,
Department for Transport,Department for Transport,07/04/2014,Agency Staff Costs,Major Projects & Growth,EXPERIS LTD,2000000542,12080.04,#,EC1R 3DR,
Department for Transport,Department for Transport,07/04/2014,Agency Staff Costs,Rail Commercial & Programme Office,METHODS CONSULTING LTD,2000000547,11025.76,#,WC2H 8AD,
Department for Transport,Department for Transport,07/04/2014,Agency Staff Costs,Rail Commercial & Programme Office,NETWORKERS INTERNATIONAL (UK) PLC,2000000559,4182.54,#,BR1 1HP,
Department for Transport,Department for Transport,07/04/2014,Agency Staff Costs,Rail Commercial & Programme Office,EXPERIS LTD,2000000542,6534.14,#,EC1R 3DR,
Department for Transport,Department for Transport,07/04/2014,Agency Staff Costs,Rail Commercial & Programme Office,METHODS CONSULTING LTD,2000000547,2417.94,#,WC2H 8AD,
Department for Transport,Department for Transport,07/04/2014,Agency Staff Costs,Rail Commercial & Programme Office,METHODS CONSULTING LTD,2000000547,1934.35,#,WC2H 8AD,
Department for Transport,Department for Transport,07/04/2014,Agency Staff Costs,Rail Commercial & Programme Office,MORGAN HUNT UK LTD,2000000548,5487.22,#,EC4M 7EG,
Department for Transport,Department for Transport,07/04/2014,Agency Staff Costs,Rail Commercial & Programme Office,MORGAN HUNT UK LTD,2000000548,4703.33,#,EC4M 7EG,
Department for Transport,Department for Transport,07/04/2014,Agency Staff Costs,Motoring Services,SPRING TECHNOLOGY LTD  ALSO T/A,2000000560,3182.4,#,B37 7YE,
Department for Transport,Department for Transport,07/04/2014,Agency Staff Costs,Group Finance,NETWORKERS INTERNATIONAL (UK) PLC,2000000559,861,#,BR1 1HP,
Department for Transport,Department for Transport,07/04/2014,Agency Staff Costs,Group Finance,NETWORKERS INTERNATIONAL (UK) PLC,2000000559,1689.24,#,BR1 1HP,
Department for Transport,Department for Transport,07/04/2014,Agency Staff Costs,Group Finance,REED SPECIALIST RECRUITMENT LTD,2000000553,2264.4,#,SW20 0BA,
Department for Transport,Department for Transport,07/04/2014,Agency Staff Costs,Group Finance,SPRING TECHNOLOGY LTD  ALSO T/A,2000000560,626.52,#,B37 7YE,
Department for Transport,Department for Transport,07/04/2014,Agency Staff Costs,Group Finance,SPRING TECHNOLOGY LTD  ALSO T/A,2000000560,2166.3,#,B37 7YE,
Department for Transport,Department for Transport,07/04/2014,Agency Staff Costs,Rail Franchising,EXPERIS LTD,2000000542,10500.77,#,EC1R 3DR,
Department for Transport,Department for Transport,07/04/2014,Agency Staff Costs,Rail Franchising,EXPERIS LTD,2000000542,8941.44,#,EC1R 3DR,
Department for Transport,Department for Transport,07/04/2014,Agency Staff Costs,Group Finance,EXPERIS LTD,2000000542,3850.32,#,EC1R 3DR,
Department for Transport,Department for Transport,07/04/2014,Agency Staff Costs,Rail Franchising,LA INTERNATIONAL COMPUTER,100002004,-1306.08,#,ST1 5UB,
Department for Transport,Department for Transport,07/04/2014,Agency Staff Costs,Rail Franchising,LA INTERNATIONAL COMPUTER,100002004,1306.08,#,ST1 5UB,
Department for Transport,Department for Transport,07/04/2014,Agency Staff Costs,Rail Franchising,METHODS CONSULTING LTD,2000000547,15336.65,#,WC2H 8AD,
Department for Transport,Department for Transport,07/04/2014,Agency Staff Costs,Group Finance,MICHAEL PAGE INTERNATIONAL,2000000557,4608,#,SL1 3SA,
Department for Transport,Department for Transport,07/04/2014,Agency Staff Costs,Group Finance,MICHAEL PAGE INTERNATIONAL,2000000557,864,#,SL1 3SA,
Department for Transport,Department for Transport,07/04/2014,Agency Staff Costs,Rail Franchising,NETWORKERS INTERNATIONAL (UK) PLC,2000000559,2367.84,#,BR1 1HP,
Department for Transport,Department for Transport,07/04/2014,Agents Fees,Group Communication,GROUPM UK LIMITED,2000000564,92.01,#,WC1X 8RX,
Department for Transport,Department for Transport,07/04/2014,Agents Fees,Group Communication,GROUPM UK LIMITED,2000000564,101.36,#,WC1X 8RX,
Department for Transport,Department for Transport,07/04/2014,Audit Fees (cash),Group Finance,PRICEWATERHOUSECOOPERS LLP,2000000552,15755,#,E14 9SQ,
Department for Transport,Department for Transport,07/04/2014,Building Service Cha,Group Procurement & Estate,Amey Community Ltd,2000000573,67015.68,#,OX4 4DQ,
Department for Transport,Department for Transport,07/04/2014,Cars Maintenance,Motoring Services,Goodyear Dunlop Tyres UK Ltd,2000000566,432.44,#,B24 9HY,
Department for Transport,Department for Transport,07/04/2014,Computer equipment,Group Communication,CREATIVE VIDEO PRODUCTIONS LIMITED,2000000555,2274,#,TW8 9EX,
Department for Transport,Department for Transport,07/04/2014,IT Equip Cap Cost,Motoring Services,KONICA MINOLTA BUS. SOLUTIONS  (UK),2000000536,47423.04,#,SS14 3AR,
Department for Transport,Department for Transport,07/04/2014,IT Equip Cap Cost,Motoring Services,KONICA MINOLTA BUS. SOLUTIONS  (UK),2000000536,643.27,#,SS14 3AR,
Department for Transport,Department for Transport,07/04/2014,IT Ser Running Costs,Analysis & Strategy,NETFUNDI LTD,2000000549,8970,#,LA1 1SQ,
Department for Transport,Department for Transport,07/04/2014,IT Ser Running Costs,Analysis & Strategy,NETFUNDI LTD,2000000549,810,#,LA1 1SQ,
Department for Transport,Department for Transport,07/04/2014,L&B Excl Dwellings,Maritime,FAITHFUL & GOULD LTD,2000000572,3630.4,#,CF24 0AD,
Department for Transport,Department for Transport,07/04/2014,Medals,DG's Office,COMMUNITIES AND LOCAL GOVERNMENT,2000000575,25369.89,#,HP2 4XN,
Department for Transport,Department for Transport,07/04/2014,Publicity,Group Communication,GROUPM UK LIMITED,2000000564,110414.96,#,WC1X 8RX,
Department for Transport,Department for Transport,07/04/2014,Publicity,Group Communication,GROUPM UK LIMITED,2000000564,121632.35,#,WC1X 8RX,
Department for Transport,Department for Transport,07/04/2014,Research,"Energy, Technology and International",INSPEC INTERNATIONAL LTD,2000000543,1308.63,#,M6 6AJ,
Department for Transport,Department for Transport,07/04/2014,Research,Transport Security Strategy,DEFENCE SCIENCE & TECHNOLOGY,2000000541,84206.4,#,PO14 9HL,
Department for Transport,Department for Transport,07/04/2014,Research,Transport Security Strategy,DEFENCE SCIENCE & TECHNOLOGY,2000000541,230945,#,PO14 9HL,
Department for Transport,Department for Transport,07/04/2014,Research,Major Projects & Growth,TRANSPORT RESEARCH LABORATORY,2000000554,3659.09,#,RG40 3GA,
Department for Transport,Department for Transport,07/04/2014,Storage & Distributi,General Counsel's Office,IRON MOUNTAIN,2000000544,4505.56,#,EH54 7DF,
Department for Transport,Department for Transport,07/04/2014,Support Services,Air Accident Investigation Branch,ITS TESTING SERVICES (UK) LTD,2000000545,2400,#,RM20 3NL,
Department for Transport,Department for Transport,07/04/2014,Support Services,Aviation,CIVIL AVIATION AUTHORITY,2000000540,26218,#,RH10 0YR,
Department for Transport,Department for Transport,07/04/2014,Support Services,"Motoring, Freight & London",Environmental Scientifics Group,2000000537,5208,#,OX9 3SZ,
Department for Transport,Department for Transport,07/04/2014,Support Services,Aviation,NORWICH AIRPORT LTD,2000000550,29988,#,NR6 6JA,
Department for Transport,Department for Transport,07/04/2014,Support Services,General Counsel's Office,CABINET OFFICE,2000000574,16094,#,CF14 3UW,
Department for Transport,Department for Transport,07/04/2014,Support Services,Environment & International Transport Analysis,BMT RELIABILITY CONSULTANTS LTD,2000000539,37708.5,#,PO15 5SU,
Department for Transport,Department for Transport,07/04/2014,Support Services,General Counsel's Office,Crawford & Co Adjusters (UK) Ltd,2000000570,628544.87,#,B2 2PF,
Department for Transport,Department for Transport,07/04/2014,Support Services,Group Finance,DD ACCRAILWAY PENS TRUSTEE,2000000558,3246.61,#,DL3 6XR,
Department for Transport,Department for Transport,07/04/2014,Transport  Consult,Rail Commercial & Programme Office,PARSONS BRINCKERHOFF LTD,2000000551,27359.26,#,NE4 7YQ,
Department for Transport,Department for Transport,07/04/2014,Transport  Consult,Analysis & Strategy,OFFICE FOR NATIONAL STATISTICS,2000000576,2944.5,#,NP10 8XG,
Department for Transport,Department for Transport,07/04/2014,Transport  Consult,Rail Franchising,ATKINS LTD (TRANSPORT PLANNING),2000000538,9618.52,#,WR5 1TX,
Department for Transport,Department for Transport,07/04/2014,Transport  Consult,Rail Franchising,ATKINS LTD (TRANSPORT PLANNING),2000000538,45183.07,#,WR5 1TX,
Department for Transport,Department for Transport,08/04/2014,Agency Staff Costs,Group Communication,NETWORKERS INTERNATIONAL (UK) PLC,2000000671,1013.52,#,BR1 1HP,
Department for Transport,Department for Transport,08/04/2014,Agency Staff Costs,Commercial & Technical,BADENOCH & CLARK,100002105,5638.2,#,EC4V 4BG,
Department for Transport,Department for Transport,08/04/2014,Agency Staff Costs,Commercial & Technical,BADENOCH & CLARK,100002105,-5638.2,#,EC4V 4BG,
Department for Transport,Department for Transport,08/04/2014,Agency Staff Costs,Commercial & Technical,BADENOCH & CLARK,2000000648,5638.2,#,EC4V 4BG,
Department for Transport,Department for Transport,08/04/2014,Agency Staff Costs,Commercial & Technical,BADENOCH & CLARK,2000000648,5638.2,#,EC4V 4BG,
Department for Transport,Department for Transport,08/04/2014,Agency Staff Costs,Commercial & Technical,BADENOCH & CLARK,2000000648,4510.56,#,EC4V 4BG,
Department for Transport,Department for Transport,08/04/2014,Agency Staff Costs,Commercial & Technical,BADENOCH & CLARK,2000000648,4510.56,#,EC4V 4BG,
Department for Transport,Department for Transport,08/04/2014,Agency Staff Costs,Commercial & Technical,BADENOCH & CLARK,2000000648,4510.56,#,EC4V 4BG,
Department for Transport,Department for Transport,08/04/2014,Agency Staff Costs,Commercial & Technical,BADENOCH & CLARK,2000000648,3382.92,#,EC4V 4BG,
Department for Transport,Department for Transport,08/04/2014,Agency Staff Costs,Commercial & Technical,BADENOCH & CLARK,2000000648,5638.2,#,EC4V 4BG,
Department for Transport,Department for Transport,08/04/2014,Agency Staff Costs,Group Procurement & Estate,NETWORKERS INTERNATIONAL (UK) PLC,2000000671,8008.69,#,BR1 1HP,
Department for Transport,Department for Transport,08/04/2014,Agency Staff Costs,Group Finance,MICHAEL PAGE INTERNATIONAL,2000000667,4080,#,SL1 3SA,
Department for Transport,Department for Transport,08/04/2014,Agency Staff Costs,Group Finance,NETWORKERS INTERNATIONAL (UK) PLC,2000000671,4072.32,#,BR1 1HP,
Department for Transport,Department for Transport,08/04/2014,Agency Staff Costs,Programme Office,BADENOCH & CLARK,2000000648,1755.66,#,EC4V 4BG,
Department for Transport,Department for Transport,08/04/2014,Agency Staff Costs,Group Human Resource,REED SPECIALIST RECRUITMENT LTD,2000000661,894,#,SW20 0BA,
Department for Transport,Department for Transport,08/04/2014,Agency Staff Costs,Major Projects & Growth,BADENOCH & CLARK,2000000648,3088.8,#,EC4V 4BG,
Department for Transport,Department for Transport,08/04/2014,Agency Staff Costs,Major Projects & Growth,SPRING TECHNOLOGY LTD  ALSO T/A,2000000672,1056,#,B37 7YE,
Department for Transport,Department for Transport,08/04/2014,Agency Staff Costs,Rail Commercial & Programme Office,NETWORKERS INTERNATIONAL (UK) PLC,2000000671,4182.54,#,BR1 1HP,
Department for Transport,Department for Transport,08/04/2014,Agency Staff Costs,Rail Strategy & Funding,CAPITA RESOURCING LTD,2000000668,4026,#,DL1 9HN,
Department for Transport,Department for Transport,08/04/2014,Agency Staff Costs,Rail Strategy & Funding,EXPERIS LTD,2000000650,1999.8,#,EC1R 3DR,
Department for Transport,Department for Transport,08/04/2014,Agency Staff Costs,Group Finance,NETWORKERS INTERNATIONAL (UK) PLC,2000000671,1689.24,#,BR1 1HP,
Department for Transport,Department for Transport,08/04/2014,Agency Staff Costs,Group Finance,MICHAEL PAGE INTERNATIONAL,2000000667,2400,#,SL1 3SA,
Department for Transport,Department for Transport,08/04/2014,Agency Staff Costs,Strategic Roads & Smart Ticketing,BADENOCH & CLARK,2000000648,5225.76,#,EC4V 4BG,
Department for Transport,Department for Transport,08/04/2014,Agency Staff Costs,Rail Franchising,CAPITA RESOURCING LTD,2000000668,17262.18,#,DL1 9HN,
Department for Transport,Department for Transport,08/04/2014,Agency Staff Costs,Rail Franchising,CAPITA RESOURCING LTD,2000000668,5932.44,#,DL1 9HN,
Department for Transport,Department for Transport,08/04/2014,Agency Staff Costs,Rail Franchising,CAPITA RESOURCING LTD,2000000668,7560,#,DL1 9HN,
Department for Transport,Department for Transport,08/04/2014,Agency Staff Costs,Rail Franchising,CAPITA RESOURCING LTD,2000000668,1896,#,DL1 9HN,
Department for Transport,Department for Transport,08/04/2014,Agency Staff Costs,Rail Franchising,CAPITA RESOURCING LTD,2000000668,20136.17,#,DL1 9HN,
Department for Transport,Department for Transport,08/04/2014,Agency Staff Costs,Rail Franchising,CAPITA RESOURCING LTD,2000000668,22848,#,DL1 9HN,
Department for Transport,Department for Transport,08/04/2014,Agency Staff Costs,Rail Franchising,CAPITA RESOURCING LTD,2000000668,18499.97,#,DL1 9HN,
Department for Transport,Department for Transport,08/04/2014,Agency Staff Costs,Rail Franchising,CAPITA RESOURCING LTD,2000000668,34277.29,#,DL1 9HN,
Department for Transport,Department for Transport,08/04/2014,Agency Staff Costs,Rail Franchising,CAPITA RESOURCING LTD,2000000668,19428.53,#,DL1 9HN,
Department for Transport,Department for Transport,08/04/2014,Agency Staff Costs,Rail Franchising,CAPITA RESOURCING LTD,2000000668,48562.5,#,DL1 9HN,
Department for Transport,Department for Transport,08/04/2014,Cap Grt Loc Auth,Local,NORTH EAST LINCOLN DC,2000000666,165000,Additional Highway Maintenance Block for 2014/15,DN35 8LN,
Department for Transport,Department for Transport,08/04/2014,Cap Grt Loc Auth,Local,NOTTINGHAM CITY COUNCIL,2000000670,179000,Additional Highway Maintenance Block for 2014/15,NG1 5NT,
Department for Transport,Department for Transport,08/04/2014,Cap Grt Pri Sec-Cos.,"Energy, Technology and International",Ridge Jones Electrical,2000000695,20499.18,Ridge Jones Electrical Jan/Feb #20.5k,BH23 1HG,
Department for Transport,Department for Transport,08/04/2014,Cap Grt Pri Sec-Cos.,"Energy, Technology and International",Solar Solutions,2000000694,74975.4,Solar Solutions Feb 2014 #74975.4k,NE28 7RP,
Department for Transport,Department for Transport,08/04/2014,CapGrtPriSec-P&NPISH,"Energy, Technology and International",CENEX,2000000675,4875,CEN-PR- 738 #4875.00,LE11 3TU,
Department for Transport,Department for Transport,08/04/2014,Cars Maintenance,Motoring Services,Goodyear Dunlop Tyres UK Ltd,2000000683,1598.8,#,B24 9HY,
Department for Transport,Department for Transport,08/04/2014,Cars Maintenance,Motoring Services,Quarterman Windscreen Ltd,2000000686,540,#,DA1 1JZ,
Department for Transport,Department for Transport,08/04/2014,Catering,Rail Franchising,Leith's,2000000655,18746.52,#,B45 9PZ,
Department for Transport,Department for Transport,08/04/2014,Computer Consumables,Motoring Services,XMA LIMITED GOSC,2000000682,707.76,CB390A HP LaserJet CM6030 /CM6030f /CM60,NG11 7EP,
Department for Transport,Department for Transport,08/04/2014,Computer Consumables,Motoring Services,XMA LIMITED GOSC,2000000682,1218.72,CB386A Hp (CB386A) Or Compatible Yellow,NG11 7EP,
Department for Transport,Department for Transport,08/04/2014,Data Supply - TD,Transport Direct&Travel,INRIX MEDIA LTD,100002107,-18499.2,#,WA14 1EP,
Department for Transport,Department for Transport,08/04/2014,Data Supply - TD,Transport Direct&Travel,INRIX MEDIA LTD,100002107,18499.2,#,WA14 1EP,
Department for Transport,Department for Transport,08/04/2014,EU Cap Grt Pri Sec-C,"Energy, Technology and International",NETWORK RAIL INFRASTRUCTURE LTD,2000000677,1184838.23,Final payment-2009-UK-26029-E Felixstowe-Nuneaton,N1 9AG,
Department for Transport,Department for Transport,08/04/2014,Financial Consultanc,Motoring Services,BDO LLP,2000000693,14902.92,#,W1U 7EU,
Department for Transport,Department for Transport,08/04/2014,Furniture & Fittings,Air Accident Investigation Branch,SENATOR INTERNATIONAL LTD,2000000662,3066.62,#,BB5 5YE,
Department for Transport,Department for Transport,08/04/2014,HR Consultancy,Group Human Resource,BENEFEX LIMITED,2000000673,68308.75,#,SO15 2JU,
Department for Transport,Department for Transport,08/04/2014,Investigation Servic,Motoring Services,CH&I Associates Ltd,2000000690,1238.64,#,SK11 8AA,
Department for Transport,Department for Transport,08/04/2014,Investigation Servic,Motoring Services,CH&I Associates Ltd,2000000690,984.36,#,SK11 8AA,
Department for Transport,Department for Transport,08/04/2014,Investigation Servic,Motoring Services,CH&I Associates Ltd,2000000690,801.84,#,SK11 8AA,
Department for Transport,Department for Transport,08/04/2014,Investigation Servic,Motoring Services,CH&I Associates Ltd,2000000690,2352.48,#,SK11 8AA,
Department for Transport,Department for Transport,08/04/2014,IT Equip Cap Cost,Motoring Services,KONICA MINOLTA BUS. SOLUTIONS  (UK),2000000645,1194.65,#,SS14 3AR,
Department for Transport,Department for Transport,08/04/2014,IT Equip Cap Cost,Motoring Services,KONICA MINOLTA BUS. SOLUTIONS  (UK),2000000645,7866.72,#,SS14 3AR,
Department for Transport,Department for Transport,08/04/2014,IT Ser Running Costs,Group Procurement & Estate,DUN & BRADSTREET LTD,2000000646,6394.2,#,SL7 1AJ,
Department for Transport,Department for Transport,08/04/2014,Legal Consultancy,Rail Franchising,DLA PIPER UK LLP,2000000649,2378.88,#,M2 3DL,
Department for Transport,Department for Transport,08/04/2014,Legal Consultancy,"Policy, Legislation and Funding",WINCKWORTH SHERWOOD,2000000664,70149.6,#,SE1 9BB,
Department for Transport,Department for Transport,08/04/2014,Minor Developments,"Energy, Technology and International",TRIAD GROUP PLC,2000000663,10968.75,#,GU7 1XE,
Department for Transport,Department for Transport,08/04/2014,Other Professional F,Local,VEHICLE & OPERATOR SERVICES AGENCY,2000000643,3119.42,#,SA1 8AN,
Department for Transport,Department for Transport,08/04/2014,Other Professional F,Local,VEHICLE & OPERATOR SERVICES AGENCY,2000000643,269155.33,#,SA1 8AN,
Department for Transport,Department for Transport,08/04/2014,Publicity,Group Communication,FORSTER LAMOND LTD,2000000679,3424,#,SE1 1RU,
Department for Transport,Department for Transport,08/04/2014,Publicity,Strategic Roads & Smart Ticketing,ABBOTT MEAD VICKERS BBDO LTD,2000000647,6929.72,#,NW1 5QE,
Department for Transport,Department for Transport,08/04/2014,Research,Rail Strategy & Funding,PARSONS BRINCKERHOFF LTD,2000000660,4574.45,#,NE4 7YQ,
Department for Transport,Department for Transport,08/04/2014,Research,Major Projects & Growth,OVE ARUP & PARTNERS,2000000658,9977,#,NE1 3PL,
Department for Transport,Department for Transport,08/04/2014,Research,Analysis & Strategy,LEEDS UNIVERSITY,2000000654,5017,#,LS2 9JT,
Department for Transport,Department for Transport,08/04/2014,Small Software,Environment & International Transport Analysis,ESRI (UK) LIMITED,2000000651,930,#,HP21 7QG,
Department for Transport,Department for Transport,08/04/2014,Storage & Distributi,General Counsel's Office,IRON MOUNTAIN,2000000652,3980.39,#,EH54 7DF,
Department for Transport,Department for Transport,08/04/2014,Storage & Distributi,General Counsel's Office,IRON MOUNTAIN,2000000652,4370.14,#,EH54 7DF,
Department for Transport,Department for Transport,08/04/2014,Support Services,Aviation,NEWCASTLE INTERNATIONAL AIRPORT LTD,2000000656,29988,#,NE13 8BZ,
Department for Transport,Department for Transport,08/04/2014,Support Services,General Counsel's Office,IRON MOUNTAIN,2000000652,49.75,#,EH54 7DF,
Department for Transport,Department for Transport,08/04/2014,Support Services,General Counsel's Office,IRON MOUNTAIN,2000000652,54.63,#,EH54 7DF,
Department for Transport,Department for Transport,08/04/2014,Training,Air Accident Investigation Branch,Cae Training & Services UK Ltd,2000000659,1900,#,RH10 9UH,
Department for Transport,Department for Transport,08/04/2014,Transport  Consult,Local,ALPINE INTERIM,2000000674,1000,#,EC4A 2AB,
Department for Transport,Department for Transport,08/04/2014,Transport  Consult,Rail Commercial & Programme Office,GRANT THORNTON UK LLP,100002106,-182896,PO 8000123351,NN4 7YE,
Department for Transport,Department for Transport,08/04/2014,Transport  Consult,Rail Commercial & Programme Office,GRANT THORNTON UK LLP,100002106,182896,PO 8000123351,NN4 7YE,
Department for Transport,Department for Transport,08/04/2014,Transport  Consult,Motoring Services,QinetiQ Commerce Decisions Ltd,2000000669,5022,#,OX4 4GE,
Department for Transport,Department for Transport,09/04/2014,Agency Staff Costs,Corporate Governance,BADENOCH & CLARK,2000000821,3442.44,#,EC4V 4BG,
Department for Transport,Department for Transport,09/04/2014,Agency Staff Costs,Corporate Governance,BADENOCH & CLARK,2000000821,3442.44,#,EC4V 4BG,
Department for Transport,Department for Transport,09/04/2014,Agency Staff Costs,Group Finance,ALLEN LANE FINANCIAL RECRUITMENT,2000000820,4036.38,#,BN11 2BW,
Department for Transport,Department for Transport,09/04/2014,Agency Staff Costs,Group Finance,BADENOCH & CLARK,2000000821,3347.7,#,EC4V 4BG,
Department for Transport,Department for Transport,09/04/2014,Agency Staff Costs,Group Finance,BADENOCH & CLARK,2000000821,2678.16,#,EC4V 4BG,
Department for Transport,Department for Transport,09/04/2014,Agency Staff Costs,Group Finance,BADENOCH & CLARK,2000000821,5650.93,#,EC4V 4BG,
Department for Transport,Department for Transport,09/04/2014,Agency Staff Costs,Major Projects & Growth,CAPITA RESOURCING LTD,2000000858,6847.2,#,DL1 9HN,
Department for Transport,Department for Transport,09/04/2014,Agency Staff Costs,Major Projects & Growth,EXPERIS LTD,2000000826,3832.8,#,EC1R 3DR,
Department for Transport,Department for Transport,09/04/2014,Agency Staff Costs,General Counsel's Office,BADENOCH & CLARK,2000000821,3098.16,#,EC4V 4BG,
Department for Transport,Department for Transport,09/04/2014,Agency Staff Costs,General Counsel's Office,BADENOCH & CLARK,2000000821,3098.16,#,EC4V 4BG,
Department for Transport,Department for Transport,09/04/2014,Agency Staff Costs,General Counsel's Office,BADENOCH & CLARK,2000000821,3098.16,#,EC4V 4BG,
Department for Transport,Department for Transport,09/04/2014,Agency Staff Costs,General Counsel's Office,BADENOCH & CLARK,2000000821,3098.16,#,EC4V 4BG,
Department for Transport,Department for Transport,09/04/2014,Agency Staff Costs,Rail Franchising,BADENOCH & CLARK,2000000821,2592,#,EC4V 4BG,
Department for Transport,Department for Transport,09/04/2014,Agency Staff Costs,Motoring Services,BADENOCH & CLARK,2000000821,3705,#,EC4V 4BG,
Department for Transport,Department for Transport,09/04/2014,Agency Staff Costs,Rail Franchising,BADENOCH & CLARK,2000000821,3249.6,#,EC4V 4BG,
Department for Transport,Department for Transport,09/04/2014,Agency Staff Costs,Strategic Roads & Smart Ticketing,BADENOCH & CLARK,2000000821,5225.76,#,EC4V 4BG,
Department for Transport,Department for Transport,09/04/2014,Agency Staff Costs,Rail Franchising,BADENOCH & CLARK,2000000821,3545.7,#,EC4V 4BG,
Department for Transport,Department for Transport,09/04/2014,Agency Staff Costs,Strategic Roads & Smart Ticketing,BADENOCH & CLARK,2000000821,3135.46,#,EC4V 4BG,
Department for Transport,Department for Transport,09/04/2014,Agency Staff Costs,Rail Franchising,BADENOCH & CLARK,2000000821,2592,#,EC4V 4BG,
Department for Transport,Department for Transport,09/04/2014,Agency Staff Costs,Motoring Services,BADENOCH & CLARK,2000000821,3705,#,EC4V 4BG,
Department for Transport,Department for Transport,09/04/2014,Agency Staff Costs,Rail Franchising,BADENOCH & CLARK,2000000821,1418.28,#,EC4V 4BG,
Department for Transport,Department for Transport,09/04/2014,Agency Staff Costs,Motoring Services,BADENOCH & CLARK,2000000821,3705,#,EC4V 4BG,
Department for Transport,Department for Transport,09/04/2014,Agency Staff Costs,Motoring Services,BADENOCH & CLARK,2000000821,3705,#,EC4V 4BG,
Department for Transport,Department for Transport,09/04/2014,Agency Staff Costs,Rail Franchising,BADENOCH & CLARK,2000000821,2592,#,EC4V 4BG,
Department for Transport,Department for Transport,09/04/2014,Agency Staff Costs,Motoring Services,BADENOCH & CLARK,2000000821,3705,#,EC4V 4BG,
Department for Transport,Department for Transport,09/04/2014,Agency Staff Costs,Rail Franchising,BADENOCH & CLARK,2000000821,1555.2,#,EC4V 4BG,
Department for Transport,Department for Transport,09/04/2014,Agency Staff Costs,Rail Franchising,BADENOCH & CLARK,2000000821,3786.66,#,EC4V 4BG,
Department for Transport,Department for Transport,09/04/2014,Agency Staff Costs,Rail Franchising,BADENOCH & CLARK,2000000821,2592,#,EC4V 4BG,
Department for Transport,Department for Transport,09/04/2014,Agency Staff Costs,Rail Franchising,BADENOCH & CLARK,2000000821,1555.2,#,EC4V 4BG,
Department for Transport,Department for Transport,09/04/2014,Agency Staff Costs,Rail Franchising,BADENOCH & CLARK,2000000821,3545.7,#,EC4V 4BG,
Department for Transport,Department for Transport,09/04/2014,Agency Staff Costs,Rail Franchising,BADENOCH & CLARK,2000000821,1555.2,#,EC4V 4BG,
Department for Transport,Department for Transport,09/04/2014,Agency Staff Costs,Rail Franchising,BADENOCH & CLARK,2000000821,3545.7,#,EC4V 4BG,
Department for Transport,Department for Transport,09/04/2014,Agency Staff Costs,Rail Franchising,BADENOCH & CLARK,2000000821,2592,#,EC4V 4BG,
Department for Transport,Department for Transport,09/04/2014,Agency Staff Costs,Rail Franchising,BADENOCH & CLARK,2000000821,2592,#,EC4V 4BG,
Department for Transport,Department for Transport,09/04/2014,Agency Staff Costs,Rail Franchising,BADENOCH & CLARK,2000000821,2592,#,EC4V 4BG,
Department for Transport,Department for Transport,09/04/2014,Agency Staff Costs,Rail Franchising,BADENOCH & CLARK,2000000821,2592,#,EC4V 4BG,
Department for Transport,Department for Transport,09/04/2014,Agency Staff Costs,Rail Franchising,BADENOCH & CLARK,2000000821,2592,#,EC4V 4BG,
Department for Transport,Department for Transport,09/04/2014,Agency Staff Costs,Rail Franchising,BADENOCH & CLARK,2000000821,2592,#,EC4V 4BG,
Department for Transport,Department for Transport,09/04/2014,Agency Staff Costs,Rail Franchising,CAPITA RESOURCING LTD,2000000858,4860,#,DL1 9HN,
Department for Transport,Department for Transport,09/04/2014,Agency Staff Costs,Portfolio Office,CAPITA RESOURCING LTD,2000000858,5906.69,#,DL1 9HN,
Department for Transport,Department for Transport,09/04/2014,Agency Staff Costs,Rail Commercial & Programme Office,MICHAEL PAGE INTERNATIONAL,2000000857,723.9,#,SL1 3SA,
Department for Transport,Department for Transport,09/04/2014,Agents Fees,Group Finance,RAILWAYS PENSION MANAGEMENT LT,2000000859,694693.54,#,DL3 6EH,
Department for Transport,Department for Transport,09/04/2014,Cap Grt Loc Auth,Local,BARNSLEY MBC,2000000831,306000,Additional Highway Maintenance Block for 2014/15,S70 2AQ,
Department for Transport,Department for Transport,09/04/2014,Cap Grt Loc Auth,Local,BATH & NE SOMERSET DC,2000000735,353000,Additional Highway Maintenance Block for 2014/15,BA1 5AW,
Department for Transport,Department for Transport,09/04/2014,Cap Grt Loc Auth,Local,BEDFORD BC,2000000832,277000,Additional Highway Maintenance Block for 2014/15,MK40 1SJ,
Department for Transport,Department for Transport,09/04/2014,Cap Grt Loc Auth,Local,BLACKBURN WITH DARWEN BC,2000000798,171000,Additional Highway Maintenance Block for 2014/15,BB1 7DY,
Department for Transport,Department for Transport,09/04/2014,Cap Grt Loc Auth,Local,BLACKPOOL COUNCIL,2000000873,143000,Additional Highway Maintenance Block for 2014/15,FY3 7HW,
Department for Transport,Department for Transport,09/04/2014,Cap Grt Loc Auth,Local,BOLTON MBC,2000000733,338000,Additional Highway Maintenance Block for 2014/15,BL1 1RX,
Department for Transport,Department for Transport,09/04/2014,Cap Grt Loc Auth,Local,BOURNEMOUTH BC,2000000736,139000,Additional Highway Maintenance Block for 2014/15,BH2 6DY,
Department for Transport,Department for Transport,09/04/2014,Cap Grt Loc Auth,Local,BRACKNELL FOREST BC,2000000822,143000,Additional Highway Maintenance Block for 2014/15,RG12 1AQ,
Department for Transport,Department for Transport,09/04/2014,Cap Grt Loc Auth,Local,BRADFORD MBC,2000000833,540000,Additional Highway Maintenance Block for 2014/15,BD1 1HX,
Department for Transport,Department for Transport,09/04/2014,Cap Grt Loc Auth,Local,BRIGHTON & HOVE COUNCIL,2000000737,325000,Additional Highway Maintenance Block for 2014/15,BN3 2SR,
Department for Transport,Department for Transport,09/04/2014,Cap Grt Loc Auth,Local,BRISTOL CITY COUNCIL,2000000738,307000,Additional Highway Maintenance Block for 2014/15,BS99 7BL,
Department for Transport,Department for Transport,09/04/2014,Cap Grt Loc Auth,Local,BUCKINGHAMSHIRE CC (REVENUE),2000000739,749000,Additional Highway Maintenance Block for 2014/15,HP20 1UD,
Department for Transport,Department for Transport,09/04/2014,Cap Grt Loc Auth,Local,BURY METROPOLITAN BOROUGH,2000000740,175000,Additional Highway Maintenance Block for 2014/15,BL9 0SW,
Department for Transport,Department for Transport,09/04/2014,Cap Grt Loc Auth,Local,CALDERDALE MBC,2000000741,347000,Additional Highway Maintenance Block for 2014/15,HX1 1TP,
Department for Transport,Department for Transport,09/04/2014,Cap Grt Loc Auth,Local,CAMBRIDGESHIRE COUNTY COUNCIL,2000000742,1040000,Additional Highway Maintenance Block for 2014/15,CB3 0AP,
Department for Transport,Department for Transport,09/04/2014,Cap Grt Loc Auth,Local,CENTRAL BEDFORDSHIRE COUNCIL,2000000864,367000,Additional Highway Maintenance Block for 2014/15,MK42 9BD,
Department for Transport,Department for Transport,09/04/2014,Cap Grt Loc Auth,Local,CHESHIRE EAST BOROUGH COUNCIL,2000000862,795000,Additional Highway Maintenance Block for 2014/15,CW11 1HZ,
Department for Transport,Department for Transport,09/04/2014,Cap Grt Loc Auth,Local,CHESHIRE WEST &,2000000863,596000,Additional Highway Maintenance Block for 2014/15,CH1 9PS,
Department for Transport,Department for Transport,09/04/2014,Cap Grt Loc Auth,Local,CITY OF YORK COUNCIL,2000000743,173000,Additional Highway Maintenance Block for 2014/15,Y01 7WH,
Department for Transport,Department for Transport,09/04/2014,Cap Grt Loc Auth,Local,CORNWALL COUNTY COUNCIL,2000000808,1683000,Additional Highway Maintenance Block for 2014/15,TR1 38D,
Department for Transport,Department for Transport,09/04/2014,Cap Grt Loc Auth,Local,COVENTRY CITY COUNCIL,2000000834,1007000,Additional Highway Maintenance Block for 2014/15,CV1 2QL,
Department for Transport,Department for Transport,09/04/2014,Cap Grt Loc Auth,Local,CUMBRIA COUNTY COUNCIL,2000000744,290000,Additional Highway Maintenance Block for 2014/15,CA3 8NA,
Department for Transport,Department for Transport,09/04/2014,Cap Grt Loc Auth,Local,DARLINGTON BC,2000000745,2082000,Additional Highway Maintenance Block for 2014/15,TS19 1JA,
Department for Transport,Department for Transport,09/04/2014,Cap Grt Loc Auth,Local,DERBY CITY COUNCIL,2000000746,145000,Additional Highway Maintenance Block for 2014/15,DE1 2YL,
Department for Transport,Department for Transport,09/04/2014,Cap Grt Loc Auth,Local,DERBYSHIRE COUNTY COUNCIL,2000000747,174000,Additional Highway Maintenance Block for 2014/15,DE4 3AH,
Department for Transport,Department for Transport,09/04/2014,Cap Grt Loc Auth,Local,DEVON COUNTY COUNCIL,2000000748,1405000,Additional Highway Maintenance Block for 2014/15,EX2 4QJ,
Department for Transport,Department for Transport,09/04/2014,Cap Grt Loc Auth,Local,DONCASTER MBC,2000000835,3225000,Additional Highway Maintenance Block for 2014/15,DN1 1ER,
Department for Transport,Department for Transport,09/04/2014,Cap Grt Loc Auth,Local,DORSET COUNTY COUNCIL,2000000749,354000,Additional Highway Maintenance Block for 2014/15,DT1 1XJ,
Department for Transport,Department for Transport,09/04/2014,Cap Grt Loc Auth,Local,DUDLEY MBC,2000000836,1056000,Additional Highway Maintenance Block for 2014/15,DY1 1HF,
Department for Transport,Department for Transport,09/04/2014,Cap Grt Loc Auth,Local,DURHAM COUNTY COUNCIL,2000000750,253000,Additional Highway Maintenance Block for 2014/15,DH1 5UE,
Department for Transport,Department for Transport,09/04/2014,Cap Grt Loc Auth,Local,EAST RIDING OF YORKSHIRE COUNCIL,2000000837,921000,Additional Highway Maintenance Block for 2014/15,HU17 9BA,
Department for Transport,Department for Transport,09/04/2014,Cap Grt Loc Auth,Local,EAST SUSSEX COUNTY COUNCIL,2000000811,812000,Additional Highway Maintenance Block for 2014/15,BN7 1UE,
Department for Transport,Department for Transport,09/04/2014,Cap Grt Loc Auth,Local,ESSEX COUNTY COUNCIL,2000000751,1854000,Additional Highway Maintenance Block for 2014/15,CM1 1LX,
Department for Transport,Department for Transport,09/04/2014,Cap Grt Loc Auth,Local,GATESHEAD MBC,2000000799,217000,Additional Highway Maintenance Block for 2014/15,NE8 1HH,
Department for Transport,Department for Transport,09/04/2014,Cap Grt Loc Auth,Local,GLOUCESTERSHIRE COUNTY COUNCIL,2000000734,1434000,Additional Highway Maintenance Block for 2014/15,GL1 2TJ,
Department for Transport,Department for Transport,09/04/2014,Cap Grt Loc Auth,Local,HALTON BC,2000000752,187000,Additional Highway Maintenance Block for 2014/15,WA8 6NB,
Department for Transport,Department for Transport,09/04/2014,Cap Grt Loc Auth,Local,HAMPSHIRE COUNTY COUNCIL,2000000753,2136000,Additional Highway Maintenance Block for 2014/15,SO23 8UB,
Department for Transport,Department for Transport,09/04/2014,Cap Grt Loc Auth,Local,HARTLEPOOL BOROUGH COUNCIL,2000000754,79000,Additional Highway Maintenance Block for 2014/15,TS24 7BT,
Department for Transport,Department for Transport,09/04/2014,Cap Grt Loc Auth,Local,HEREFORDSHIRE COUNCIL,2000000838,857000,Additional Highway Maintenance Block for 2014/15,HR4 0XH,
Department for Transport,Department for Transport,09/04/2014,Cap Grt Loc Auth,Local,Hertfordshire County Council,2000000755,1720000,Additional Highway Maintenance Block for 2014/15,SG13 8DN,
Department for Transport,Department for Transport,09/04/2014,Cap Grt Loc Auth,Local,KENT COUNTY COUNCIL,2000000756,2198000,Additional Highway Maintenance Block for 2014/15,ME14 1XQ,
Department for Transport,Department for Transport,09/04/2014,Cap Grt Loc Auth,Local,KINGSTON UPON HULL CITY COUNCIL,2000000839,179000,Additional Highway Maintenance Block for 2014/15,HU1 2AB,
Department for Transport,Department for Transport,09/04/2014,Cap Grt Loc Auth,Local,KIRKLEES MBC,2000000757,548000,Additional Highway Maintenance Block for 2014/15,HD1 2YU,
Department for Transport,Department for Transport,09/04/2014,Cap Grt Loc Auth,Local,KNOWSLEY MBC,2000000758,157000,Additional Highway Maintenance Block for 2014/15,L32 1TX,
Department for Transport,Department for Transport,09/04/2014,Cap Grt Loc Auth,Local,LANCASHIRE COUNTY COUNCIL,2000000759,1904000,Additional Highway Maintenance Block for 2014/15,PR1 0LD,
Department for Transport,Department for Transport,09/04/2014,Cap Grt Loc Auth,Local,LEEDS CITY COUNCIL,2000000840,705000,Additional Highway Maintenance Block for 2014/15,LS2 8JR,
Department for Transport,Department for Transport,09/04/2014,Cap Grt Loc Auth,Local,LEICESTER CITY COUNCIL,2000000760,200000,Additional Highway Maintenance Block for 2014/15,LE1 6ZG,
Department for Transport,Department for Transport,09/04/2014,Cap Grt Loc Auth,Local,LEICESTERSHIRE COUNTY COUNCIL,2000000800,1058000,Additional Highway Maintenance Block for 2014/15,LE3 8RB,
Department for Transport,Department for Transport,09/04/2014,Cap Grt Loc Auth,Local,Lincolnshire County Council,2000000877,2246000,Additional Highway Maintenance Block for 2014/15,LN1 1DN,
Department for Transport,Department for Transport,09/04/2014,Cap Grt Loc Auth,Local,LIVERPOOL CITY COUNCIL,2000000841,319000,Additional Highway Maintenance Block for 2014/15,L2 2DH,
Department for Transport,Department for Transport,09/04/2014,Cap Grt Loc Auth,Local,LUTON BOROUGH COUNCIL,2000000761,106000,Additional Highway Maintenance Block for 2014/15,LU1 2BQ,
Department for Transport,Department for Transport,09/04/2014,Cap Grt Loc Auth,Local,MANCHESTER CITY COUNCIL,2000000812,315000,Additional Highway Maintenance Block for 2014/15,M60 2JX,
Department for Transport,Department for Transport,09/04/2014,Cap Grt Loc Auth,Local,MEDWAY COUNCIL,2000000809,218000,Additional Highway Maintenance Block for 2014/15,ME4 4TR,
Department for Transport,Department for Transport,09/04/2014,Cap Grt Loc Auth,Local,MIDDLESBROUGH BC,2000000732,161000,Additional Highway Maintenance Block for 2014/15,TS1 2QQ,
Department for Transport,Department for Transport,09/04/2014,Cap Grt Loc Auth,Local,MILTON KEYNES BC,2000000762,490000,Additional Highway Maintenance Block for 2014/15,MK9 3EE,
Department for Transport,Department for Transport,09/04/2014,Cap Grt Loc Auth,Local,NEWCASTLE CITY COUNCIL,2000000842,219000,Additional Highway Maintenance Block for 2014/15,NE99 1RD,
Department for Transport,Department for Transport,09/04/2014,Cap Grt Loc Auth,Local,NORFOLK COUNTY COUNCIL,2000000773,1977000,Additional Highway Maintenance Block for 2014/15,NR1 2UG,
Department for Transport,Department for Transport,09/04/2014,Cap Grt Loc Auth,Local,NORTH LINCOLNSHIRE DC,2000000801,334000,Additional Highway Maintenance Block for 2014/15,DN16 1AB,
Department for Transport,Department for Transport,09/04/2014,Cap Grt Loc Auth,Local,North Somerset Council,2000000763,329000,Additional Highway Maintenance Block for 2014/15,BS23 1UJ,
Department for Transport,Department for Transport,09/04/2014,Cap Grt Loc Auth,Local,NORTH TYNESIDE COUNCIL,2000000764,176000,Additional Highway Maintenance Block for 2014/15,NE27 0BY,
Department for Transport,Department for Transport,09/04/2014,Cap Grt Loc Auth,Local,NORTH YORKSHIRE CC,2000000843,2108000,Additional Highway Maintenance Block for 2014/15,DL7 8AL,
Department for Transport,Department for Transport,09/04/2014,Cap Grt Loc Auth,Local,NORTHAMPTONSHIRE CC,2000000765,1315000,Additional Highway Maintenance Block for 2014/15,NN4 7DB,
Department for Transport,Department for Transport,09/04/2014,Cap Grt Loc Auth,Local,NORTHUMBERLAND CC,2000000844,1412000,Additional Highway Maintenance Block for 2014/15,NE61 2EF,
Department for Transport,Department for Transport,09/04/2014,Cap Grt Loc Auth,Local,NOTTINGHAMSHIRE CC,2000000845,1082000,Additional Highway Maintenance Block for 2014/15,NG2 7LA,
Department for Transport,Department for Transport,09/04/2014,Cap Grt Loc Auth,Local,OLDHAM MBC,2000000766,216000,Additional Highway Maintenance Block for 2014/15,OL1 1QJ,
Department for Transport,Department for Transport,09/04/2014,Cap Grt Loc Auth,Local,OXFORDSHIRE CC,2000000767,1239000,Additional Highway Maintenance Block for 2014/15,OX1 1TH,
Department for Transport,Department for Transport,09/04/2014,Cap Grt Loc Auth,Local,PETERBOROUGH CITY COUNCIL,2000000768,303000,Additional Highway Maintenance Block for 2014/15,PE1 1FF,
Department for Transport,Department for Transport,09/04/2014,Cap Grt Loc Auth,Local,PLYMOUTH CITY COUNCIL,2000000769,202000,Additional Highway Maintenance Block for 2014/15,PL1 2AA,
Department for Transport,Department for Transport,09/04/2014,Cap Grt Loc Auth,Local,POOLE BC,2000000770,145000,Additional Highway Maintenance Block for 2014/15,BH15 2RZ,
Department for Transport,Department for Transport,09/04/2014,Cap Grt Loc Auth,Local,PORTSMOUTH CITY COUNCIL,2000000802,98000,Additional Highway Maintenance Block for 2014/15,PO1 2BG,
Department for Transport,Department for Transport,09/04/2014,Cap Grt Loc Auth,Local,READING BC,2000000771,238000,Additional Highway Maintenance Block for 2014/15,RG1 7TD,
Department for Transport,Department for Transport,09/04/2014,Cap Grt Loc Auth,Local,REDCAR & CLEVELAND BC,2000000803,152000,Additional Highway Maintenance Block for 2014/15,TS6 9AR,
Department for Transport,Department for Transport,09/04/2014,Cap Grt Loc Auth,Local,ROCHDALE MBC,2000000772,233000,Additional Highway Maintenance Block for 2014/15,OL16 1XL,
Department for Transport,Department for Transport,09/04/2014,Cap Grt Loc Auth,Local,ROTHERHAM MBC,2000000846,282000,Additional Highway Maintenance Block for 2014/15,S60 1SN,
Department for Transport,Department for Transport,09/04/2014,Cap Grt Loc Auth,Local,RUTLAND COUNTY COUNCIL,2000000774,139000,Additional Highway Maintenance Block for 2014/15,LE15 6HP,
Department for Transport,Department for Transport,09/04/2014,Cap Grt Loc Auth,Local,SALFORD CITY COUNCIL,2000000775,242000,Additional Highway Maintenance Block for 2014/15,M27 5AW,
Department for Transport,Department for Transport,09/04/2014,Cap Grt Loc Auth,Local,SANDWELL MBC,2000000849,321000,Additional Highway Maintenance Block for 2014/15,B69 3BS,
Department for Transport,Department for Transport,09/04/2014,Cap Grt Loc Auth,Local,SEFTON MBC,2000000776,219000,Additional Highway Maintenance Block for 2014/15,PR8 1DA,
Department for Transport,Department for Transport,09/04/2014,Cap Grt Loc Auth,Local,SHROPSHIRE COUNTY COUNCIL,2000000850,1227000,Additional Highway Maintenance Block for 2014/15,SY2 6ND,
Department for Transport,Department for Transport,09/04/2014,Cap Grt Loc Auth,Local,SLOUGH BC,2000000777,79000,Additional Highway Maintenance Block for 2014/15,SL1 3UF,
Department for Transport,Department for Transport,09/04/2014,Cap Grt Loc Auth,Local,SOLIHULL MBC,2000000851,235000,Additional Highway Maintenance Block for 2014/15,B91 9EG,
Department for Transport,Department for Transport,09/04/2014,Cap Grt Loc Auth,Local,SOMERSET COUNTY COUNCIL,2000000778,1751000,Additional Highway Maintenance Block for 2014/15,TA1 4DY,
Department for Transport,Department for Transport,09/04/2014,Cap Grt Loc Auth,Local,SOUTH GLOUCESTERSHIRE COUNCIL,2000000779,424000,Additional Highway Maintenance Block for 2014/15,BS15 9DW,
Department for Transport,Department for Transport,09/04/2014,Cap Grt Loc Auth,Local,SOUTH TYNESIDE MBC,2000000804,130000,Additional Highway Maintenance Block for 2014/15,NE33 4JP,
Department for Transport,Department for Transport,09/04/2014,Cap Grt Loc Auth,Local,SOUTHAMPTON CITY COUNCIL,2000000810,169000,Additional Highway Maintenance Block for 2014/15,SO14 7LF,
Department for Transport,Department for Transport,09/04/2014,Cap Grt Loc Auth,Local,SOUTHEND-ON-SEA BC,2000000852,157000,Additional Highway Maintenance Block for 2014/15,SS2 6AN,
Department for Transport,Department for Transport,09/04/2014,Cap Grt Loc Auth,Local,ST HELENS MBC,2000000780,166000,Additional Highway Maintenance Block for 2014/15,WA10 1UQ,
Department for Transport,Department for Transport,09/04/2014,Cap Grt Loc Auth,Local,STAFFORDSHIRE COUNTY COUNCIL,2000000848,1573000,Additional Highway Maintenance Block for 2014/15,ST16 2NF,
Department for Transport,Department for Transport,09/04/2014,Cap Grt Loc Auth,Local,Stockport MBC,2000000781,248000,Additional Highway Maintenance Block for 2014/15,SK1 3XE,
Department for Transport,Department for Transport,09/04/2014,Cap Grt Loc Auth,Local,STOCKTON ON TEES BC,2000000782,197000,Additional Highway Maintenance Block for 2014/15,TS23 2YS,
Department for Transport,Department for Transport,09/04/2014,Cap Grt Loc Auth,Local,Stoke-On-Trent City Council,2000000853,191000,Additional Highway Maintenance Block for 2014/15,ST4 4TS,
Department for Transport,Department for Transport,09/04/2014,Cap Grt Loc Auth,Local,SUFFOLK COUNTY COUNCIL,2000000813,1648000,Additional Highway Maintenance Block for 2014/15,IP1 2DH,
Department for Transport,Department for Transport,09/04/2014,Cap Grt Loc Auth,Local,SUNDERLAND CITY COUNCIL,2000000783,284000,Additional Highway Maintenance Block for 2014/15,SR2 7DN,
Department for Transport,Department for Transport,09/04/2014,Cap Grt Loc Auth,Local,SURREY COUNTY COUNCIL,2000000784,1574000,Additional Highway Maintenance Block for 2014/15,KT1 2DN,
Department for Transport,Department for Transport,09/04/2014,Cap Grt Loc Auth,Local,SWINDON BC,2000000785,247000,Additional Highway Maintenance Block for 2014/15,SN1 2JH,
Department for Transport,Department for Transport,09/04/2014,Cap Grt Loc Auth,Local,TAMESIDE MBC,2000000786,192000,Additional Highway Maintenance Block for 2014/15,OL6 6DL,
Department for Transport,Department for Transport,09/04/2014,Cap Grt Loc Auth,Local,TELFORD & WREKIN DC,2000000805,257000,Additional Highway Maintenance Block for 2014/15,TF3 4LF,
Department for Transport,Department for Transport,09/04/2014,Cap Grt Loc Auth,Local,THURROCK DC,2000000787,167000,Additional Highway Maintenance Block for 2014/15,RM17 6LT,
Department for Transport,Department for Transport,09/04/2014,Cap Grt Loc Auth,Local,TORBAY BC,2000000788,113000,Additional Highway Maintenance Block for 2014/15,TQ1 3DS,
Department for Transport,Department for Transport,09/04/2014,Cap Grt Loc Auth,Local,TRAFFORD MBC,2000000789,213000,Additional Highway Maintenance Block for 2014/15,M32 0YY,
Department for Transport,Department for Transport,09/04/2014,Cap Grt Loc Auth,Local,TRANSPORT FOR LONDON,2000000854,3780000,Additional Highway Maintenance Block for 2014/15,SE10 1AJ,
Department for Transport,Department for Transport,09/04/2014,Cap Grt Loc Auth,Local,WAKEFIELD MDC,2000000855,306000,Additional Highway Maintenance Block for 2014/15,WF10 4JH,
Department for Transport,Department for Transport,09/04/2014,Cap Grt Loc Auth,Local,WALSALL MBC,2000000790,188000,Additional Highway Maintenance Block for 2014/15,WS1 1TW,
Department for Transport,Department for Transport,09/04/2014,Cap Grt Loc Auth,Local,WARRINGTON BC,2000000791,303000,Additional Highway Maintenance Block for 2014/15,WA1 1BN,
Department for Transport,Department for Transport,09/04/2014,Cap Grt Loc Auth,Local,Warwickshire County Council,2000000806,977000,Additional Highway Maintenance Block for 2014/15,CV34 4RH,
Department for Transport,Department for Transport,09/04/2014,Cap Grt Loc Auth,Local,WEST BERKSHIRE DC,2000000792,321000,Additional Highway Maintenance Block for 2014/15,RG14 2AF,
Department for Transport,Department for Transport,09/04/2014,Cap Grt Loc Auth,Local,West Sussex County Council,2000000793,1033000,Additional Highway Maintenance Block for 2014/15,PO19 1RG,
Department for Transport,Department for Transport,09/04/2014,Cap Grt Loc Auth,Local,WIGAN MBC,2000000794,257000,Additional Highway Maintenance Block for 2014/15,WN1 3DS,
Department for Transport,Department for Transport,09/04/2014,Cap Grt Loc Auth,Local,WILTSHIRE COUNTY COUNCIL,2000000795,1257000,Additional Highway Maintenance Block for 2014/15,BA14 8JJ,
Department for Transport,Department for Transport,09/04/2014,Cap Grt Loc Auth,Local,WINDSOR & MAIDENHEAD,2000000796,185000,Additional Highway Maintenance Block for 2014/15,SL6 1RF,
Department for Transport,Department for Transport,09/04/2014,Cap Grt Loc Auth,Local,WOKINGHAM DC,2000000797,257000,Additional Highway Maintenance Block for 2014/15,RG40 1JW,
Department for Transport,Department for Transport,09/04/2014,Cap Grt Loc Auth,Local,WOLVERHAMPTON CITY COUNCIL,2000000856,184000,Additional Highway Maintenance Block for 2014/15,WRV 1RL,
Department for Transport,Department for Transport,09/04/2014,Cap Grt Loc Auth,Local,WORCESTERSHIRE COUNTY COUNCIL,2000000807,1119000,Additional Highway Maintenance Block for 2014/15,WR5 2NP,
Department for Transport,Department for Transport,09/04/2014,Cap Grt Pri Sec-Cos.,Major Projects & Growth,MERSEYRAIL ELECTRONICS 2002 LTD,2000000866,225258,Merseyrail SSF12/13,L1 1JF,
Department for Transport,Department for Transport,09/04/2014,Computer equipment,Motoring Services,SPECIALIST COMPUTER CENTRES PLC,2000000860,12135.36,#,B11 2LE,
Department for Transport,Department for Transport,09/04/2014,IT Equip Cap Cost,Motoring Services,KELWAY LTD,2000000870,143820,#,SA1 8PL,
Department for Transport,Department for Transport,09/04/2014,IT Equip Cap Cost,Motoring Services,SPECIALIST COMPUTER CENTRES PLC,2000000860,9.24,Delivery Charge,B11 2LE,
Department for Transport,Department for Transport,09/04/2014,IT Equip Cap Cost,Motoring Services,SPECIALIST COMPUTER CENTRES PLC,2000000860,1951.2,Lenovo W540 Special Build Notebook,B11 2LE,
Department for Transport,Department for Transport,09/04/2014,IT Equip Cap Cost,Motoring Services,SPECIALIST COMPUTER CENTRES PLC,2000000860,24376.46,#,B11 2LE,
Department for Transport,Department for Transport,09/04/2014,IT Equip Cap Cost,Motoring Services,SPECIALIST COMPUTER CENTRES PLC,2000000860,17331.24,#,B11 2LE,
Department for Transport,Department for Transport,09/04/2014,IT Ser Running Costs,Group Communication,WILLIAMS LEA LIMITED,2000000872,8220,#,NR3 1PD,
Department for Transport,Department for Transport,09/04/2014,Legal Consultancy,Major Projects & Growth,HOGAN LOVELLS,2000000871,176161.8,#,EC1A 2FG,
Department for Transport,Department for Transport,09/04/2014,Legal Consultancy,Major Projects & Growth,HOGAN LOVELLS,2000000871,153475.74,#,EC1A 2FG,
Department for Transport,Department for Transport,09/04/2014,Legal Consultancy,Major Projects & Growth,HOGAN LOVELLS,2000000871,77920.2,#,EC1A 2FG,
Department for Transport,Department for Transport,09/04/2014,Printing,Group Communication,WILLIAMS LEA LIMITED,2000000872,632.5,#,NR3 1PD,
Department for Transport,Department for Transport,09/04/2014,Printing,Air Accident Investigation Branch,WILLIAMS LEA LIMITED,2000000872,3146,#,NR3 1PD,
Department for Transport,Department for Transport,09/04/2014,Printing,Group Communication,WILLIAMS LEA LIMITED,2000000872,2918.3,#,NR3 1PD,
Department for Transport,Department for Transport,09/04/2014,Printing,Group Communication,WILLIAMS LEA LIMITED,2000000872,5126,#,NR3 1PD,
Department for Transport,Department for Transport,09/04/2014,Printing,Group Communication,WILLIAMS LEA LIMITED,2000000872,6116,#,NR3 1PD,
Department for Transport,Department for Transport,09/04/2014,Printing,Group Communication,WILLIAMS LEA LIMITED,2000000872,1375.88,#,NR3 1PD,
Department for Transport,Department for Transport,09/04/2014,Printing,Group Communication,WILLIAMS LEA LIMITED,2000000872,898.7,#,NR3 1PD,
Department for Transport,Department for Transport,09/04/2014,Property Maintenance,Air Accident Investigation Branch,Elan Sales Limited,2000000867,1037.86,ELAN SERVICE SWEEPER 2014,SO50 4NU,
Department for Transport,Department for Transport,09/04/2014,Rates,Rail Accident Investigation Branch,RUSHMOOR BOROUGH COUNCIL,2000000847,29643,Rushmoor BC - 1.4.14 to 31.3.15,GU14 7JU,
Department for Transport,Department for Transport,09/04/2014,Rates,Rail Accident Investigation Branch,DERBY CITY COUNCIL (NNDR),2000000824,41150.72,Derby City - 1.4.14 to 1.4.15,DE1 2XG,
Department for Transport,Department for Transport,09/04/2014,Research,"Energy, Technology and International",LOUGHBOROUGH UNIVERSITY,2000000827,304675.14,#,LE11 3TU,
Department for Transport,Department for Transport,09/04/2014,Research,Transport Security Strategy,HOME OFFICE SHARED SERVICE CENTRE,2000000816,33323.22,#,NP20 9BB,
Department for Transport,Department for Transport,09/04/2014,Research,Transport Security Strategy,HOME OFFICE SHARED SERVICE CENTRE,2000000816,101066.92,#,NP20 9BB,
Department for Transport,Department for Transport,09/04/2014,Room Hire,Rail Strategy & Funding,Retro Catering Ltd,2000000829,840,#,SW1V 3JY,
Department for Transport,Department for Transport,09/04/2014,Services prov by OGD,Group Procurement & Estate,VEHICLE & OPERATOR SERVICES AGENCY,2000000817,240750.06,#,SA1 8AN,
Department for Transport,Department for Transport,09/04/2014,Services prov by OGD,Analysis & Strategy,GOVERNMENT ACTUARY'S DEPARTMENT,2000000814,4797,#,EC4A 1AB,
Department for Transport,Department for Transport,09/04/2014,Services prov by OGD,Portfolio Office,HM REVENUE & CUSTOMS,2000000815,2593.84,#,BN12 4XH,
Department for Transport,Department for Transport,09/04/2014,Training,Marine Accident Investigation Branch,March on Stress Ltd,2000000878,650,#,PO16 9XS,
Department for Transport,Department for Transport,09/04/2014,Transport  Consult,Rail Commercial & Programme Office,PARSONS BRINCKERHOFF LTD,2000000828,11768.58,#,NE4 7YQ,
Department for Transport,Department for Transport,09/04/2014,Transport  Consult,Rail Commercial & Programme Office,PARSONS BRINCKERHOFF LTD,2000000828,19079.87,#,NE4 7YQ,
Department for Transport,Department for Transport,09/04/2014,Transport  Consult,Major Projects & Growth,PARSONS BRINCKERHOFF LTD,2000000828,8324.26,#,NE4 7YQ,
Department for Transport,Department for Transport,09/04/2014,Transport  Consult,Rail Franchising,PARSONS BRINCKERHOFF LTD,2000000828,255450.54,#,NE4 7YQ,
Department for Transport,Department for Transport,09/04/2014,Travel Expenses UK,Marine Accident Investigation Branch,CLYDE TRAVEL,2000000823,1392.6,Shetland Islands - Glasgow - 28/03/14,G51 1HJ,
Department for Transport,Department for Transport,09/04/2014,Travel Expenses UK,Marine Accident Investigation Branch,CLYDE TRAVEL,2000000823,1412.76,#,G51 1HJ,
Department for Transport,Department for Transport,10/04/2014,Agency Staff Costs,Air Accident Investigation Branch,BROOK STREET (UK) LIMITED,2000000930,620.98,#,AL1 4JB,
Department for Transport,Department for Transport,10/04/2014,Agency Staff Costs,Group Human Resource,HAYS PERSONNEL SERVICE LTD,2000000899,5352,#,KT3 4JQ,
Department for Transport,Department for Transport,10/04/2014,Agency Staff Costs,Group Finance,MICHAEL PAGE INTERNATIONAL,2000000932,3240,#,SL1 3SA,
Department for Transport,Department for Transport,10/04/2014,Agency Staff Costs,Group Finance,MICHAEL PAGE INTERNATIONAL,2000000932,3210,#,SL1 3SA,
Department for Transport,Department for Transport,10/04/2014,Agency Staff Costs,Programme Office,BADENOCH & CLARK,2000000906,1404.53,#,EC4V 4BG,
Department for Transport,Department for Transport,10/04/2014,Agency Staff Costs,General Counsel's Office,BADENOCH & CLARK,2000000906,3098.16,#,EC4V 4BG,
Department for Transport,Department for Transport,10/04/2014,Agency Staff Costs,Rail Franchising,BADENOCH & CLARK,2000000906,3249.6,#,EC4V 4BG,
Department for Transport,Department for Transport,10/04/2014,Agency Staff Costs,Rail Franchising,BADENOCH & CLARK,2000000906,3953.9,#,EC4V 4BG,
Department for Transport,Department for Transport,10/04/2014,Agency Staff Costs,Rail Franchising,BADENOCH & CLARK,2000000906,3953.9,#,EC4V 4BG,
Department for Transport,Department for Transport,10/04/2014,Agency Staff Costs,"Policy, Legislation and Funding",BADENOCH & CLARK,2000000906,3660,#,EC4V 4BG,
Department for Transport,Department for Transport,10/04/2014,Agency Staff Costs,Strategic Roads & Smart Ticketing,BADENOCH & CLARK,2000000906,5225.76,#,EC4V 4BG,
Department for Transport,Department for Transport,10/04/2014,Agency Staff Costs,Strategic Roads & Smart Ticketing,BADENOCH & CLARK,2000000906,5225.76,#,EC4V 4BG,
Department for Transport,Department for Transport,10/04/2014,Agency Staff Costs,"Policy, Legislation and Funding",BADENOCH & CLARK,2000000906,3660,#,EC4V 4BG,
Department for Transport,Department for Transport,10/04/2014,Agency Staff Costs,"Policy, Legislation and Funding",BADENOCH & CLARK,2000000906,3660,#,EC4V 4BG,
Department for Transport,Department for Transport,10/04/2014,Agency Staff Costs,"Policy, Legislation and Funding",BADENOCH & CLARK,2000000906,3660,#,EC4V 4BG,
Department for Transport,Department for Transport,10/04/2014,Agency Staff Costs,Rail Franchising,BADENOCH & CLARK,2000000906,3953.9,#,EC4V 4BG,
Department for Transport,Department for Transport,10/04/2014,Agency Staff Costs,Rail Franchising,BADENOCH & CLARK,2000000906,3786.66,#,EC4V 4BG,
Department for Transport,Department for Transport,10/04/2014,Agency Staff Costs,Rail Franchising,BADENOCH & CLARK,2000000906,4062,#,EC4V 4BG,
Department for Transport,Department for Transport,10/04/2014,Agency Staff Costs,Rail Franchising,BADENOCH & CLARK,2000000906,4942.38,#,EC4V 4BG,
Department for Transport,Department for Transport,10/04/2014,Agency Staff Costs,Rail Franchising,BADENOCH & CLARK,2000000906,4062,#,EC4V 4BG,
Department for Transport,Department for Transport,10/04/2014,Agency Staff Costs,Rail Franchising,BADENOCH & CLARK,2000000906,2592,#,EC4V 4BG,
Department for Transport,Department for Transport,10/04/2014,Agency Staff Costs,Rail Franchising,BADENOCH & CLARK,2000000906,3249.6,#,EC4V 4BG,
Department for Transport,Department for Transport,10/04/2014,Agency Staff Costs,Rail Franchising,BADENOCH & CLARK,2000000906,-3249.6,#,EC4V 4BG,
Department for Transport,Department for Transport,10/04/2014,Agency Staff Costs,Rail Franchising,BADENOCH & CLARK,2000000906,3249.6,#,EC4V 4BG,
Department for Transport,Department for Transport,10/04/2014,Agency Staff Costs,Rail Franchising,BADENOCH & CLARK,2000000906,4062,#,EC4V 4BG,
Department for Transport,Department for Transport,10/04/2014,Agency Staff Costs,Rail Franchising,BADENOCH & CLARK,2000000906,3545.7,#,EC4V 4BG,
Department for Transport,Department for Transport,10/04/2014,Agency Staff Costs,Strategic Roads & Smart Ticketing,BADENOCH & CLARK,2000000906,5225.76,#,EC4V 4BG,
Department for Transport,Department for Transport,10/04/2014,Agency Staff Costs,Rail Franchising,MICHAEL PAGE INTERNATIONAL,2000000932,8970,#,SL1 3SA,
Department for Transport,Department for Transport,10/04/2014,Agency Staff Costs,Rail Franchising,MICHAEL PAGE INTERNATIONAL,2000000932,16146,#,SL1 3SA,
Department for Transport,Department for Transport,10/04/2014,Audit Fees (cash),Corporate Governance,PRICEWATERHOUSECOOPERS LLP,2000000923,141955,#,E14 9SQ,
Department for Transport,Department for Transport,10/04/2014,Cap Grt Pri Sec-Cos.,"Policy, Legislation and Funding",Eversheds LLP,2000000956,358207.04,HS2 Property Purchase 51 Kentish Town Rd,CF10 5BT,
Department for Transport,Department for Transport,10/04/2014,Cap Grt Pri Sec-Cos.,"Energy, Technology and International",K Glackin Electrics,2000000959,105905.02,K Glackin Electrics Feb & March 2014 #105905.02,BT45 8JH,
Department for Transport,Department for Transport,10/04/2014,Car Hire and Leasing,Group Finance,ENTERPRISE RENT-A-CAR,2000000947,12678.01,Car rental - March 2014,TW20 8RX,
Department for Transport,Department for Transport,10/04/2014,Cars Fuel,Motoring Services,ALLSTAR BUSINESS SOLUTIONS LIMITED,2000000904,14038.68,#,SN5 6PS,
Department for Transport,Department for Transport,10/04/2014,Computer Consumables,Motoring Services,XMA LIMITED GOSC,2000000952,774.31,#,NG11 7EP,
Department for Transport,Department for Transport,10/04/2014,Computer equipment,Environment & International Transport Analysis,SPECIALIST COMPUTER CENTRES PLC,2000000936,7574.94,#,B11 2LE,
Department for Transport,Department for Transport,10/04/2014,Computer equipment,Environment & International Transport Analysis,SPECIALIST COMPUTER CENTRES PLC,2000000936,-2659.4,#,B11 2LE,
Department for Transport,Department for Transport,10/04/2014,Grt Aid to NDPBs,"Policy, Legislation and Funding",High Speed Two (HS2) Ltd,2000000943,10000000,HS2 April  2014 2ndTranche,SW1E 5DU,
Department for Transport,Department for Transport,10/04/2014,IT Equip Cap Cost,Air Accident Investigation Branch,BASSOM COMPUTER CONSULTANCY,2000000908,11026.36,#,GU9 8LS,
Department for Transport,Department for Transport,10/04/2014,IT Equip Cap Cost,Motoring Services,Probrand Ltd,2000000902,188.14,Safestick 16GB USB Drives,B1 3BP,
Department for Transport,Department for Transport,10/04/2014,IT Equip Cap Cost,Motoring Services,Probrand Ltd,2000000902,380.28,Safestick 4GB USB Drive,B1 3BP,
Department for Transport,Department for Transport,10/04/2014,IT Equip Cap Cost,Motoring Services,Probrand Ltd,2000000902,6,Shipping Charge,B1 3BP,
Department for Transport,Department for Transport,10/04/2014,IT Ser Running Costs,Strategic Roads & Smart Ticketing,SELEX ES LTD,2000000948,1172.4,#,BS16 1EJ,
Department for Transport,Department for Transport,10/04/2014,Legal Consultancy,Strategic Roads & Smart Ticketing,xxxxxx,2000000917,4488,#,xxxxxx,
Department for Transport,Department for Transport,10/04/2014,Legal Consultancy,Major Projects & Growth,FRESHFIELDS,2000000934,1212,#,EC4Y 1HS,
Department for Transport,Department for Transport,10/04/2014,Legal Consultancy,General Counsel's Office,MORTON FRASER LLP,2000000901,1218.84,#,EH3 9GL,
Department for Transport,Department for Transport,10/04/2014,Legal Consultancy,Rail Franchising,BEVAN BRITTAN,2000000909,28576.8,#,BS2 0HQ,
Department for Transport,Department for Transport,10/04/2014,Machinery Rental,Marine Accident Investigation Branch,CANON (UK) LTD,2000000911,948.73,#,RH2 8BF,
Department for Transport,Department for Transport,10/04/2014,Maintenance Other,"Motoring, Freight & London",TDC SYSTEMS LIMITED,2000000926,8900,#,BS24 9BP,
Department for Transport,Department for Transport,10/04/2014,Maintenance Other,"Motoring, Freight & London",TDC SYSTEMS LIMITED,2000000926,1256.4,#,BS24 9BP,
Department for Transport,Department for Transport,10/04/2014,Maintenance Other,"Motoring, Freight & London",TDC SYSTEMS LIMITED,2000000926,16187.5,#,BS24 9BP,
Department for Transport,Department for Transport,10/04/2014,Maintenance Other,"Motoring, Freight & London",TDC SYSTEMS LIMITED,2000000926,1686,#,BS24 9BP,
Department for Transport,Department for Transport,10/04/2014,Maintenance Other,"Motoring, Freight & London",TDC SYSTEMS LIMITED,2000000926,539.1,#,BS24 9BP,
Department for Transport,Department for Transport,10/04/2014,Maintenance Other,"Motoring, Freight & London",TDC SYSTEMS LIMITED,2000000926,557.7,#,BS24 9BP,
Department for Transport,Department for Transport,10/04/2014,Mobile Phone charges,Group Finance,T-MOBILE (UK) LTD,2000000927,655.82,"T-Mobile Acc No. 43361515, 29/03/2014",AL10 9BW,
Department for Transport,Department for Transport,10/04/2014,Other Professional F,Group Finance,CIPFA Business Ltd,2000000903,5950,#,WC1A 9GR,
Department for Transport,Department for Transport,10/04/2014,Other Professional F,Group Finance,CIPFA Business Ltd,2000000903,22100,#,WC1A 9GR,
Department for Transport,Department for Transport,10/04/2014,Other Professional F,Group Finance,CIPFA Business Ltd,2000000903,5950,#,WC1A 9GR,
Department for Transport,Department for Transport,10/04/2014,Printing,Air Accident Investigation Branch,WILLIAMS LEA LIMITED,2000000950,4004.24,#,NR3 1PD,
Department for Transport,Department for Transport,10/04/2014,Printing,Marine Accident Investigation Branch,WILLIAMS LEA LIMITED,2000000950,1672,#,NR3 1PD,
Department for Transport,Department for Transport,10/04/2014,Prog&ProjMgmt Consul,"Policy, Legislation and Funding",PARSONS BRINCKERHOFF LTD,2000000922,114389.34,#,NE4 7YQ,
Department for Transport,Department for Transport,10/04/2014,Publications for Res,Group Communication,CREATIVE CHOICE CIC,2000000949,833,#,SW1H 0DJ,
Department for Transport,Department for Transport,10/04/2014,Purchasing Card Char,Centrally held prog-NATs,BARCLAYS BANK PLC,2000000907,37532.95,Barclays - DfT/ISE - March 2014,NN4 7SG,
Department for Transport,Department for Transport,10/04/2014,Purchasing Card Char,Centrally held prog-NATs,BARCLAYS BANK PLC,2000000907,36879.01,Barclays - DfT/ISE - March 2014,NN4 7SG,
Department for Transport,Department for Transport,10/04/2014,Purchasing Card Char,Group Finance,BARCLAYS BANK PLC,2000000907,47079.11,Barclays - DfT/R&S - March 2014,NN4 7SG,
Department for Transport,Department for Transport,10/04/2014,Purchasing Card Char,Group Finance,BARCLAYS BANK PLC,2000000907,1856.95,Barclays - DfT/R&S - March 2014,NN4 7SG,
Department for Transport,Department for Transport,10/04/2014,Purchasing Card Char,Group Finance,BARCLAYS BANK PLC,2000000907,8300.2,Barclays - DfT/Rail Group  - March 2014,NN4 7SG,
Department for Transport,Department for Transport,10/04/2014,Purchasing Card Char,Group Finance,BARCLAYS BANK PLC,2000000907,754.62,Barclays - DfT/Rail Group CC - March 2014,NN4 7SG,
Department for Transport,Department for Transport,10/04/2014,Recruitment,Strategic Roads & Smart Ticketing,RUSSELL REYNOLDS ASSOCIATES LTD,2000000940,20500,#,SW1Y 4HZ,
Department for Transport,Department for Transport,10/04/2014,Research,"Energy, Technology and International",OVE ARUP & PARTNERS,2000000921,56033.82,#,NE1 3PL,
Department for Transport,Department for Transport,10/04/2014,Research,"Motoring, Freight & London",HALCROW GROUP LTD,2000000915,14768.77,#,W6 7EF,
Department for Transport,Department for Transport,10/04/2014,Research,Rail Commercial & Programme Office,PARSONS BRINCKERHOFF LTD,2000000922,9775.69,#,NE4 7YQ,
Department for Transport,Department for Transport,10/04/2014,Research,Analysis & Strategy,Henry G Overman,2000000957,2667,#,SE22 9ES,
Department for Transport,Department for Transport,10/04/2014,Small Software,Transport Direct&Travel,TRAPEZE GROUP (UK) LTD,2000000929,17293.2,#,BA14 6PH,
Department for Transport,Department for Transport,10/04/2014,Small Software,Group Communication,"Zendesk, Inc",2000000898,2835.31,"Manual Payment - $4,752",94103,
Department for Transport,Department for Transport,10/04/2014,Small Software,Motoring Services,INSIGHT DIRECT (UK) LTD,2000000900,763.2,#,UB8 1PH,
Department for Transport,Department for Transport,10/04/2014,Storage & Distributi,General Counsel's Office,IRON MOUNTAIN,2000000916,4073.82,#,EH54 7DF,
Department for Transport,Department for Transport,10/04/2014,Storage & Distributi,General Counsel's Office,IRON MOUNTAIN,2000000916,4115.56,#,EH54 7DF,
Department for Transport,Department for Transport,10/04/2014,Storage & Distributi,Group Communication,WILLIAMS LEA LIMITED,2000000950,8637.97,#,NR3 1PD,
Department for Transport,Department for Transport,10/04/2014,Storage & Distributi,Group Communication,WILLIAMS LEA LIMITED,2000000950,12483.32,#,NR3 1PD,
Department for Transport,Department for Transport,10/04/2014,Subscriptions to Pro,Group Human Resource,Diversityjobs.co.uk Ltd,2000000958,12000,#,TW1 4JR,
Department for Transport,Department for Transport,10/04/2014,Subscriptions to Pro,Analysis & Strategy,Association for European Transport,2000000939,2062.8,#,B95 5AW,
Department for Transport,Department for Transport,10/04/2014,Support Services,Aviation,LONDON SOUTHEND AIRPORT CO LTD,2000000937,24501,#,SS2 6YF,
Department for Transport,Department for Transport,10/04/2014,Support Services,Aviation,CAA INTERNATIONAL LTD,2000000910,23750,#,RH6 0YR,
Department for Transport,Department for Transport,10/04/2014,Support Services,General Counsel's Office,MORTON FRASER LLP,2000000901,44,#,EH3 9GL,
Department for Transport,Department for Transport,10/04/2014,Support Services,Group Finance,DD ACCRAILWAY PENS TRUSTEE,2000000933,2990.39,#,DL3 6XR,
Department for Transport,Department for Transport,10/04/2014,Support Services,Group Finance,DD ACCRAILWAY PENS TRUSTEE,2000000933,667.81,#,DL3 6XR,
Department for Transport,Department for Transport,10/04/2014,Support Services,General Counsel's Office,Field Fisher Waterhouse LLP,2000000954,56956.32,#,EC3N 2AA,
Department for Transport,Department for Transport,10/04/2014,Support Services,General Counsel's Office,IRON MOUNTAIN,2000000916,50.92,#,EH54 7DF,
Department for Transport,Department for Transport,10/04/2014,Training,Aviation,xxxxxx,2000000946,563.5,#,xxxxxx,
Department for Transport,Department for Transport,10/04/2014,Training,"Energy, Technology and International",xxxxxx,2000000946,584,#,xxxxxx,
Department for Transport,Department for Transport,10/04/2014,Training,Rail Accident Investigation Branch,WYVERN RAIL PLC,2000000942,595,#,DE4 4FB,
Department for Transport,Department for Transport,10/04/2014,Transport  Consult,Rail Commercial & Programme Office,TRANSPORT RESEARCH LABORATORY,2000000928,56330.26,#,RG40 3GA,
Department for Transport,Department for Transport,10/04/2014,Transport  Consult,Group Finance,PRICEWATERHOUSECOOPERS LLP,2000000923,3360,#,E14 9SQ,
Department for Transport,Department for Transport,10/04/2014,Transport  Consult,Rail Franchising,Leighfisher Ltd,2000000941,75192,#,WC2N 4HG,
Department for Transport,Department for Transport,10/04/2014,Transport  Consult,Strategy and Engagement,PARSONS BRINCKERHOFF LTD,2000000922,101070.34,#,NE4 7YQ,
Department for Transport,Department for Transport,10/04/2014,Travel Expenses UK,Air Accident Investigation Branch,AVIS RENT A CAR,2000000905,813.28,#,RG12 2EW,
Department for Transport,Department for Transport,10/04/2014,Travel Expenses UK,Air Accident Investigation Branch,REDFERN TRAVEL LTD,2000000944,63293.44,#,BD1 3AZ,
Department for Transport,Department for Transport,11/04/2014,Agency Staff Costs,Local,SPRING TECHNOLOGY LTD  ALSO T/A,2000001086,609.98,#,B37 7YE,
Department for Transport,Department for Transport,11/04/2014,Agency Staff Costs,Rail Commercial & Programme Office,BADENOCH & CLARK,2000001059,1032.73,#,EC4V 4BG,
Department for Transport,Department for Transport,11/04/2014,Agency Staff Costs,Motoring Services,SPRING TECHNOLOGY LTD  ALSO T/A,2000001086,3182.4,#,B37 7YE,
Department for Transport,Department for Transport,11/04/2014,Agency Staff Costs,Group Finance,MICHAEL PAGE INTERNATIONAL,2000001083,2400,#,SL1 3SA,
Department for Transport,Department for Transport,11/04/2014,Agency Staff Costs,Rail Franchising,BADENOCH & CLARK,2000001059,3029.33,#,EC4V 4BG,
Department for Transport,Department for Transport,11/04/2014,Agency Staff Costs,Rail Franchising,BADENOCH & CLARK,2000001059,2592,#,EC4V 4BG,
Department for Transport,Department for Transport,11/04/2014,Agency Staff Costs,Rail Franchising,BADENOCH & CLARK,2000001059,3786.66,#,EC4V 4BG,
Department for Transport,Department for Transport,11/04/2014,Agency Staff Costs,Rail Franchising,BADENOCH & CLARK,2000001059,3953.9,#,EC4V 4BG,
Department for Transport,Department for Transport,11/04/2014,Agency Staff Costs,Rail Franchising,BADENOCH & CLARK,2000001059,-2592,#,EC4V 4BG,
Department for Transport,Department for Transport,11/04/2014,Agency Staff Costs,Rail Franchising,BADENOCH & CLARK,2000001059,2592,#,EC4V 4BG,
Department for Transport,Department for Transport,11/04/2014,Agency Staff Costs,Rail Franchising,BADENOCH & CLARK,2000001059,-3953.9,#,EC4V 4BG,
Department for Transport,Department for Transport,11/04/2014,Agency Staff Costs,Rail Franchising,BADENOCH & CLARK,2000001059,3953.9,#,EC4V 4BG,
Department for Transport,Department for Transport,11/04/2014,Agency Staff Costs,Rail Franchising,BADENOCH & CLARK,2000001059,2073.6,#,EC4V 4BG,
Department for Transport,Department for Transport,11/04/2014,Agency Staff Costs,Rail Franchising,BADENOCH & CLARK,2000001059,4062,#,EC4V 4BG,
Department for Transport,Department for Transport,11/04/2014,Agency Staff Costs,Strategic Roads & Smart Ticketing,BADENOCH & CLARK,2000001059,4703.18,#,EC4V 4BG,
Department for Transport,Department for Transport,11/04/2014,Agency Staff Costs,Rail Franchising,BADENOCH & CLARK,2000001059,2592,#,EC4V 4BG,
Department for Transport,Department for Transport,11/04/2014,Agency Staff Costs,Rail Franchising,BADENOCH & CLARK,2000001059,4942.38,#,EC4V 4BG,
Department for Transport,Department for Transport,11/04/2014,Agency Staff Costs,Strategic Roads & Smart Ticketing,BADENOCH & CLARK,2000001059,5225.76,#,EC4V 4BG,
Department for Transport,Department for Transport,11/04/2014,Audit Fees (cash),Group Internal Audit,PRICEWATERHOUSECOOPERS LLP,2000001073,141391.75,#,E14 9SQ,
Department for Transport,Department for Transport,11/04/2014,Building Service Cha,Group Procurement & Estate,Amey Community Ltd,2000001101,61060.16,#,OX4 4DQ,
Department for Transport,Department for Transport,11/04/2014,Cap Grt Pri Sec-Cos.,"Energy, Technology and International",Eco GDA Ltd,2000001100,113962.61,Eco GDA partia lpayment 2014 #113962.61,NG1 7AQ,
Department for Transport,Department for Transport,11/04/2014,Cap Grt Pri Sec-Cos.,"Energy, Technology and International",TOYOTA (GB) PLC,2000001092,1145000,PiCG Multi March 2014 #1145000.00k,KT18 5XS,
Department for Transport,Department for Transport,11/04/2014,Computer equipment,Air Accident Investigation Branch,UNITY AV LTD,2000001087,1833.6,UNITY NON ETHOS WHITEBOARD SYSTEM 26/02,RG17 0QU,
Department for Transport,Department for Transport,11/04/2014,Computer equipment,Group Communication,MISCO,2000001071,1364.39,#,NN8 6GS,
Department for Transport,Department for Transport,11/04/2014,CurrGrtPriSec-P&NPIS,"Energy, Technology and International",ENERGY SAVING TRUST,2000001081,79000,PIFI March 2014 #79k,SW1H 9BP,
Department for Transport,Department for Transport,11/04/2014,Electricity,Group Procurement & Estate,CORONA ENERGY RETAIL 4 LTD,2000001064,2808.06,EDF -GMH-SW1P 2AP Feb 14,WD17 1JW,
Department for Transport,Department for Transport,11/04/2014,Electricity,Group Procurement & Estate,EDF ENERGY,2000001067,0.1,"DF - GMH London, 01 Mar 14 to 31 Mar 14",DA6 8ET,
Department for Transport,Department for Transport,11/04/2014,Electricity,Group Procurement & Estate,EDF ENERGY,2000001067,41738.27,"EDF - GMH London, 01 Mar 14 to 31 Mar 14",DA6 8ET,
Department for Transport,Department for Transport,11/04/2014,Estate Management,Group Procurement & Estate,Amey Community Ltd,2000001101,38374.85,#,OX4 4DQ,
Department for Transport,Department for Transport,11/04/2014,IT Ser Running Costs,General Counsel's Office,SELEX ES LTD,2000001089,5745.6,#,BS16 1EJ,
Department for Transport,Department for Transport,11/04/2014,IT Ser Running Costs,General Counsel's Office,SELEX ES LTD,2000001089,8681.52,#,BS16 1EJ,
Department for Transport,Department for Transport,11/04/2014,Legal Consultancy,Motoring Services,DLA PIPER UK LLP,2000001066,34464.6,#,M2 3DL,
Department for Transport,Department for Transport,11/04/2014,Maintenance Other,"Motoring, Freight & London",TDC SYSTEMS LIMITED,2000001076,11400,#,BS24 9BP,
Department for Transport,Department for Transport,11/04/2014,Maintenance Other,"Motoring, Freight & London",TDC SYSTEMS LIMITED,2000001076,2460,#,BS24 9BP,
Department for Transport,Department for Transport,11/04/2014,Management Consultan,General Counsel's Office,Crawford & Co Adjusters (UK) Ltd,2000001097,17401.2,#,B2 2PF,
Department for Transport,Department for Transport,11/04/2014,Protective Clothing,Rail Accident Investigation Branch,BODYGUARD WORKWEAR LTD,2000001062,300,RAIB Accredited Agent armband holders,B7 4LS,
Department for Transport,Department for Transport,11/04/2014,Protective Clothing,Rail Accident Investigation Branch,BODYGUARD WORKWEAR LTD,2000001062,600,#,B7 4LS,
Department for Transport,Department for Transport,11/04/2014,Purchasing Card Char,Pre Re-Organisation,BARCLAYS BANK PLC,2000001060,1015.4,DfT / HS2,NN4 7SG,
Department for Transport,Department for Transport,11/04/2014,Recruitment,Group Human Resource,BMJ PUBLISHING GROUP,2000001061,4132.8,#,WC1H 9TE,
Department for Transport,Department for Transport,11/04/2014,Recruitment Fees,"Policy, Legislation and Funding",SAXTON BAMPFLYDE HEVER,2000001051,14850,#,SW1H 9JA,
Department for Transport,Department for Transport,11/04/2014,Security,Rail Accident Investigation Branch,ADT Fire & Security PLC,2000001053,638.16,#,M40 4BH,
Department for Transport,Department for Transport,11/04/2014,Small Software,Motoring Services,INSIGHT DIRECT (UK) LTD,2000001052,598.27,Adobe Photoshop Licence,UB8 1PH,
Department for Transport,Department for Transport,11/04/2014,Small Software,Motoring Services,INSIGHT DIRECT (UK) LTD,2000001052,8044.8,#,UB8 1PH,
Department for Transport,Department for Transport,11/04/2014,Storage & Distributi,General Counsel's Office,IRON MOUNTAIN,2000001070,9858.99,#,EH54 7DF,
Department for Transport,Department for Transport,11/04/2014,Support Services,Aviation,EXETER & DEVON AIRPORT LIMITED,2000001068,29988,#,EX5 2BD,
Department for Transport,Department for Transport,11/04/2014,Support Services,Aviation,HUMBERSIDE INT AIRPORT LTD,2000001085,29988,#,DN39 6YH,
Department for Transport,Department for Transport,11/04/2014,Support Services,General Counsel's Office,IRON MOUNTAIN,2000001070,123.24,#,EH54 7DF,
Department for Transport,Department for Transport,11/04/2014,Support Services,"Motoring, Freight & London",VEHICLE CERTIFICATION AGENCY,2000001077,9500,#,BS5 6XX,
Department for Transport,Department for Transport,11/04/2014,Support Services,"Motoring, Freight & London",VEHICLE CERTIFICATION AGENCY,2000001077,24000,#,BS5 6XX,
Department for Transport,Department for Transport,11/04/2014,Traffic Survey & Cou,Rail Commercial & Programme Office,PARSONS BRINCKERHOFF LTD,2000001072,45126.97,#,NE4 7YQ,
Department for Transport,Department for Transport,11/04/2014,Training,Analysis & Strategy,EML Learning Ltd,2000001093,430,#,LS1 9PX,
Department for Transport,Department for Transport,11/04/2014,Training,Portfolio Office,THE RAILWAY CONSULTANCY LTD,2000001084,1300,#,SE19 2LT,
Department for Transport,Department for Transport,14/04/2014,Agency Staff Costs,Corporate Governance,PARITY RESOURCES LTD,2000001300,7232.33,#,SW19 3RU,
Department for Transport,Department for Transport,14/04/2014,Agency Staff Costs,Pre Re-Organisation,ADVANTAGE RESOURCING UK LTD,2000001309,4320,#,RG21 4FF,
Department for Transport,Department for Transport,14/04/2014,Agency Staff Costs,Group Finance,MICHAEL PAGE INTERNATIONAL,2000001299,2880,#,SL1 3SA,
Department for Transport,Department for Transport,14/04/2014,Agency Staff Costs,Rail Commercial & Programme Office,CAPITA RESOURCING LTD,2000001301,10717.2,#,DL1 9HN,
Department for Transport,Department for Transport,14/04/2014,Agency Staff Costs,Rail Strategy & Funding,CAPITA RESOURCING LTD,2000001301,8052,#,DL1 9HN,
Department for Transport,Department for Transport,14/04/2014,Agency Staff Costs,Group Finance,REED SPECIALIST RECRUITMENT LTD,2000001297,2264.4,#,SW20 0BA,
Department for Transport,Department for Transport,14/04/2014,Agency Staff Costs,"Policy, Legislation and Funding",CAPITA RESOURCING LTD,2000001301,26880,#,DL1 9HN,
Department for Transport,Department for Transport,14/04/2014,Agency Staff Costs,Rail Franchising,CAPITA RESOURCING LTD,2000001301,16320,#,DL1 9HN,
Department for Transport,Department for Transport,14/04/2014,Agency Staff Costs,Rail Franchising,CAPITA RESOURCING LTD,2000001301,1804.07,#,DL1 9HN,
Department for Transport,Department for Transport,14/04/2014,Agency Staff Costs,Rail Franchising,CAPITA RESOURCING LTD,2000001301,40920,#,DL1 9HN,
Department for Transport,Department for Transport,14/04/2014,Agency Staff Costs,Rail Franchising,PARITY RESOURCES LTD,2000001300,11484.5,#,SW19 3RU,
Department for Transport,Department for Transport,14/04/2014,Agency Staff Costs,Rail Franchising,PARITY RESOURCES LTD,2000001300,13717.61,#,SW19 3RU,
Department for Transport,Department for Transport,14/04/2014,Agency Staff Costs,Group Finance,PARITY RESOURCES LTD,2000001300,3510,#,SW19 3RU,
Department for Transport,Department for Transport,14/04/2014,Agency Staff Costs,Group Finance,PARITY RESOURCES LTD,2000001300,3240,#,SW19 3RU,
Department for Transport,Department for Transport,14/04/2014,Cap Grt Pri Sec-Cos.,"Energy, Technology and International",Powerpod Ltd,2000001313,9996.72,Powerpod Ltd XFeb2014 #9996.72,ST3 5TN,
Department for Transport,Department for Transport,14/04/2014,Cars Fuel,Air Accident Investigation Branch,ALLSTAR BUSINESS SOLUTIONS LIMITED,2000001290,1165.59,#,SN5 6PS,
Department for Transport,Department for Transport,14/04/2014,CurrGrt Las in AEF/A,Local,Basingstoke & Deane Borough Council,2000001244,26088,Basingstoke and Deane Borough Council,RG21 4AH,
Department for Transport,Department for Transport,14/04/2014,CurrGrt Las in AEF/A,Local,BATH & NE SOMERSET DC,2000001134,234564,Bath & North East Somerset Council,BA1 5AW,
Department for Transport,Department for Transport,14/04/2014,CurrGrt Las in AEF/A,Local,BEDFORD BC,2000001135,195548,Bedford Borough Council,MK40 1SJ,
Department for Transport,Department for Transport,14/04/2014,CurrGrt Las in AEF/A,Local,BLACKBURN WITH DARWEN BC,2000001191,65375,Blackburn with Darwen BC,BB1 7DY,
Department for Transport,Department for Transport,14/04/2014,CurrGrt Las in AEF/A,Local,Blackpool Borough Council,2000001245,9893,Blackpool Borough Council,FY4 2TS,
Department for Transport,Department for Transport,14/04/2014,CurrGrt Las in AEF/A,Local,BOURNEMOUTH BC,2000001136,64536,Bournemouth Borough Council,BH2 6DY,
Department for Transport,Department for Transport,14/04/2014,CurrGrt Las in AEF/A,Local,BRACKNELL FOREST BC,2000001129,95311,Bracknell Forest,RG12 1AQ,
Department for Transport,Department for Transport,14/04/2014,CurrGrt Las in AEF/A,Local,BRADFORD METRO DISTRICT COUNCIL,2000001219,82651,Bradford MBC,BD1 1HX,
Department for Transport,Department for Transport,14/04/2014,CurrGrt Las in AEF/A,Local,BRENT COMMUNITY TRANSPORT,2000001177,16049,London Borough of Brent,HA9 7RG,
Department for Transport,Department for Transport,14/04/2014,CurrGrt Las in AEF/A,Local,BRIGHTON & HOVE COUNCIL,2000001137,172990,Brighton and Hove City Council,BN3 2SR,
Department for Transport,Department for Transport,14/04/2014,CurrGrt Las in AEF/A,Local,Bristol City Council,2000001246,448348,Bristol City Council,BS1 5TR,
Department for Transport,Department for Transport,14/04/2014,CurrGrt Las in AEF/A,Local,BUCKINGHAMSHIRE CC (REVENUE),2000001138,464608,Buckinghamshire County Council,HP20 1UD,
Department for Transport,Department for Transport,14/04/2014,CurrGrt Las in AEF/A,Local,BURY MBC,2000001178,18993,Bury MBC,BL9 0DN,
Department for Transport,Department for Transport,14/04/2014,CurrGrt Las in AEF/A,Local,CALDERDALE MBC,2000001179,42698,Calderdale MBC,HX1 4PL,
Department for Transport,Department for Transport,14/04/2014,CurrGrt Las in AEF/A,Local,CAMBRIDGESHIRE COUNTY COUNCIL,2000001139,293458,Cambridgeshire County Council,CB3 0AP,
Department for Transport,Department for Transport,14/04/2014,CurrGrt Las in AEF/A,Local,CENTRAL BEDFORDSHIRE COUNCIL,2000001210,136394,Central Bedfordshire Council,MK42 9BD,
Department for Transport,Department for Transport,14/04/2014,CurrGrt Las in AEF/A,Local,CENTRO,2000001202,1792259,CENTRO,B19 3SD,
Department for Transport,Department for Transport,14/04/2014,CurrGrt Las in AEF/A,Local,CHESHIRE EAST BOROUGH COUNCIL,2000001208,347865,Cheshire East,CW11 1HZ,
Department for Transport,Department for Transport,14/04/2014,CurrGrt Las in AEF/A,Local,CHESHIRE WEST &,2000001209,314318,Cheshire West and Chester,CH1 9PS,
Department for Transport,Department for Transport,14/04/2014,CurrGrt Las in AEF/A,Local,City of Lincoln Council,2000001231,7130,City of Lincoln Council,LN1 1DD,
Department for Transport,Department for Transport,14/04/2014,CurrGrt Las in AEF/A,Local,CITY OF SALFORD COM & SOC SERV,2000001186,21478,Salford City Council,M50 1SW,
Department for Transport,Department for Transport,14/04/2014,CurrGrt Las in AEF/A,Local,City of Stoke on Trent,2000001233,29618,Stoke-on-Trent City Council,ST4 1RN,
Department for Transport,Department for Transport,14/04/2014,CurrGrt Las in AEF/A,Local,CITY OF YORK COUNCIL,2000001140,150416,City of York Council,Y01 7WH,
Department for Transport,Department for Transport,14/04/2014,CurrGrt Las in AEF/A,Local,CORNWALL COUNTY COUNCIL,2000001189,765118,Cornwall County Council,TR1 3AY,
Department for Transport,Department for Transport,14/04/2014,CurrGrt Las in AEF/A,Local,CUMBRIA COUNTY COUNCIL,2000001222,480314,Cumbria County Council,CA3 8NA,
Department for Transport,Department for Transport,14/04/2014,CurrGrt Las in AEF/A,Local,DARLINGTON BC,2000001141,36354,Darlington Borough Council,TS19 1JA,
Department for Transport,Department for Transport,14/04/2014,CurrGrt Las in AEF/A,Local,Derby City Council,2000001247,36542,Derby City Council,DE1 2FE,
Department for Transport,Department for Transport,14/04/2014,CurrGrt Las in AEF/A,Local,DERBYSHIRE COUNTY COUNCIL,2000001142,896586,Derbyshire County Council,DE4 3AH,
Department for Transport,Department for Transport,14/04/2014,CurrGrt Las in AEF/A,Local,DEVON COUNTY COUNCIL,2000001143,1145982,Devon County Council,EX2 4QJ,
Department for Transport,Department for Transport,14/04/2014,CurrGrt Las in AEF/A,Local,DORSET COUNTY COUNCIL,2000001144,447391,Dorset County Council,DT1 1XJ,
Department for Transport,Department for Transport,14/04/2014,CurrGrt Las in AEF/A,Local,Durham County Council,2000001248,347169,Durham County Council,DH1 5UL,
Department for Transport,Department for Transport,14/04/2014,CurrGrt Las in AEF/A,Local,EAST RIDING OF YORKSHIRE COUNCIL,2000001145,513710,East Riding of Yorkshire Council,HU17 9BA,
Department for Transport,Department for Transport,14/04/2014,CurrGrt Las in AEF/A,Local,EAST SUSSEX COUNTY COUNCIL,2000001197,425906,East Sussex County Council,BN7 1UE,
Department for Transport,Department for Transport,14/04/2014,CurrGrt Las in AEF/A,Local,Eastleigh Borough Council,2000001249,5785,Eastleigh Borough Council,SO50 9YN,
Department for Transport,Department for Transport,14/04/2014,CurrGrt Las in AEF/A,Local,Essex County Council,2000001250,1185991,Essex County Council,CM1 1LX,
Department for Transport,Department for Transport,14/04/2014,CurrGrt Las in AEF/A,Local,GATESHEAD MBC,2000001180,13419,Gateshead MBC,NE8 1HH,
Department for Transport,Department for Transport,14/04/2014,CurrGrt Las in AEF/A,Local,GLOUCESTERSHIRE COUNTY COUNCIL,2000001133,458365,Gloucestershire County Council,GL1 2TJ,
Department for Transport,Department for Transport,14/04/2014,CurrGrt Las in AEF/A,Local,HALTON BC,2000001146,89574,Halton Borough Council,WA8 6NB,
Department for Transport,Department for Transport,14/04/2014,CurrGrt Las in AEF/A,Local,HAMPSHIRE COUNTY COUNCIL (SSD),2000001181,1068177,Hampshire County Council,SO23 8UQ,
Department for Transport,Department for Transport,14/04/2014,CurrGrt Las in AEF/A,Local,HARTLEPOOL BOROUGH COUNCIL,2000001211,2954,Hartlepool Borough Council,TS24 7BT,
Department for Transport,Department for Transport,14/04/2014,CurrGrt Las in AEF/A,Local,HEREFORDSHIRE COUNCIL,2000001130,218580,Herefordshire County Council,HR4 0XH,
Department for Transport,Department for Transport,14/04/2014,CurrGrt Las in AEF/A,Local,Hertfordshire County Council,2000001234,1211630,Hertfordshire County Council,SG13 8DN,
Department for Transport,Department for Transport,14/04/2014,CurrGrt Las in AEF/A,Local,ISLE OF WIGHT COUNCIL,2000001147,22346,Isle of Wight Council,PO30 1UD,
Department for Transport,Department for Transport,14/04/2014,CurrGrt Las in AEF/A,Local,Kent County Council,2000001235,1128745,Kent County Council,ME14 1XQ,
Department for Transport,Department for Transport,14/04/2014,CurrGrt Las in AEF/A,Local,Kettering Borough Council,2000001236,5074,Kettering Borough Council,NN15 7QX,
Department for Transport,Department for Transport,14/04/2014,CurrGrt Las in AEF/A,Local,KINGSTON UPON HULL CITY COUNCIL,2000001148,134398,Kingston upon Hull City Council,HU1 2AB,
Department for Transport,Department for Transport,14/04/2014,CurrGrt Las in AEF/A,Local,KNOWSLEY MBC,2000001149,3300,Knowsley Metropolitan Borough Council,L32 1TX,
Department for Transport,Department for Transport,14/04/2014,CurrGrt Las in AEF/A,Local,LANCASHIRE COUNTY COUNCIL,2000001150,1866269,Lancashire County Council,PR1 0LD,
Department for Transport,Department for Transport,14/04/2014,CurrGrt Las in AEF/A,Local,LB ISLINGTON,2000001131,3412,London Borough of Islington,N1 1XR,
Department for Transport,Department for Transport,14/04/2014,CurrGrt Las in AEF/A,Local,LEEDS CITY COUNCIL,2000001182,177534,Leeds City Council,LS2 8JR,
Department for Transport,Department for Transport,14/04/2014,CurrGrt Las in AEF/A,Local,LEICESTER CITY COUNCIL,2000001151,100287,Leicester City Council,LE1 6ZG,
Department for Transport,Department for Transport,14/04/2014,CurrGrt Las in AEF/A,Local,LEICESTERSHIRE COUNTY COUNCIL,2000001192,534721,Leicestershire County Council,LE3 8RB,
Department for Transport,Department for Transport,14/04/2014,CurrGrt Las in AEF/A,Local,Lincolnshire County Council,2000001237,535302,Lincolnshire County Council,LN1 1DN,
Department for Transport,Department for Transport,14/04/2014,CurrGrt Las in AEF/A,Local,LIVERPOOL CITY COUNCIL,2000001204,46946,Liverpool City Council,L13 3HS,
Department for Transport,Department for Transport,14/04/2014,CurrGrt Las in AEF/A,Local,LONDON BOROUGH OF,2000001207,13989,London Borough of Barking and Dagenham,RM10 7HE,
Department for Transport,Department for Transport,14/04/2014,CurrGrt Las in AEF/A,Local,LONDON BOROUGH OF BARNET,2000001218,40628,London Borough of Barnet,N11 1NP,
Department for Transport,Department for Transport,14/04/2014,CurrGrt Las in AEF/A,Local,LONDON BOROUGH OF CAMDEN,2000001215,31827,London Borough of Camden,N1C 4BE,
Department for Transport,Department for Transport,14/04/2014,CurrGrt Las in AEF/A,Local,London Borough of Enfield,2000001221,18897,London Borough of Enfield,EN3 4QN,
Department for Transport,Department for Transport,14/04/2014,CurrGrt Las in AEF/A,Local,LONDON BOROUGH OF HARROW,2000001214,69341,London Borough of Harrow,HA1 2XF,
Department for Transport,Department for Transport,14/04/2014,CurrGrt Las in AEF/A,Local,London Borough of Hillingdon,2000001223,21666,London Borough of Hillingdon,UB8 1UW,
Department for Transport,Department for Transport,14/04/2014,CurrGrt Las in AEF/A,Local,LONDON BOROUGH OF HOUNSLOW,2000001220,24896,London Borough of Hounslow,TW3 1SQ,
Department for Transport,Department for Transport,14/04/2014,CurrGrt Las in AEF/A,Local,LONDON BOROUGH OF MERTON,2000001183,41030,London Borough of Merton,SM4 4AX,
Department for Transport,Department for Transport,14/04/2014,CurrGrt Las in AEF/A,Local,LONDON BOROUGH OF NEWHAM,2000001216,42170,London Borough of Newham,E6 4BX,
Department for Transport,Department for Transport,14/04/2014,CurrGrt Las in AEF/A,Local,LONDON BOROUGH REDBRIDGE,2000001184,44802,London Borough of Redbridge,IG1 1NN,
Department for Transport,Department for Transport,14/04/2014,CurrGrt Las in AEF/A,Local,LUTON BOROUGH COUNCIL,2000001152,74446,Luton Borough Council,LU1 2BQ,
Department for Transport,Department for Transport,14/04/2014,CurrGrt Las in AEF/A,Local,Maidstone Borough Council,2000001232,39766,Maidstone Borough Council,ME15 6JQ,
Department for Transport,Department for Transport,14/04/2014,CurrGrt Las in AEF/A,Local,MEDWAY COUNCIL,2000001196,172154,Medway Council,ME4 4TR,
Department for Transport,Department for Transport,14/04/2014,CurrGrt Las in AEF/A,Local,MERSEY TRAVEL,2000001190,1516408,Merseyside Travel PTE,L3   2AN,
Department for Transport,Department for Transport,14/04/2014,CurrGrt Las in AEF/A,Local,MIDDLESBROUGH BC,2000001132,42328,Middlesbrough Borough Council,TS1 2QQ,
Department for Transport,Department for Transport,14/04/2014,CurrGrt Las in AEF/A,Local,MILTON KEYNES BC,2000001153,464756,Milton Keynes Council,MK9 3EE,
Department for Transport,Department for Transport,14/04/2014,CurrGrt Las in AEF/A,Local,NEWCASTLE CITY COUNCIL,2000001200,19676,Newcastle City Council,NE1 8PA,
Department for Transport,Department for Transport,14/04/2014,CurrGrt Las in AEF/A,Local,NEXUS,2000001154,890798,Nexus,NE1 4AX,
Department for Transport,Department for Transport,14/04/2014,CurrGrt Las in AEF/A,Local,NORFOLK COUNTY COUNCIL,2000001164,1056189,Norfolk County Council,NR1 2UG,
Department for Transport,Department for Transport,14/04/2014,CurrGrt Las in AEF/A,Local,NORTH EAST LINCOLNSHIRE COUNCIL,2000001224,16785,North East Lincolnshire Council,DN35 8LN,
Department for Transport,Department for Transport,14/04/2014,CurrGrt Las in AEF/A,Local,North Lincolnshire Council,2000001238,212282,North Lincolnshire Council,DN20 8XY,
Department for Transport,Department for Transport,14/04/2014,CurrGrt Las in AEF/A,Local,North Somerset Council,2000001155,68153,North Somerset Council,BS23 1UJ,
Department for Transport,Department for Transport,14/04/2014,CurrGrt Las in AEF/A,Local,NORTH YORKSHIRE CC,2000001156,1039698,North Yorkshire County Council,DL7 8AL,
Department for Transport,Department for Transport,14/04/2014,CurrGrt Las in AEF/A,Local,NORTHAMPTONSHIRE CC,2000001157,215183,Northamptonshire County Council,NN4 7DB,
Department for Transport,Department for Transport,14/04/2014,CurrGrt Las in AEF/A,Local,Northumberland CC,2000001239,484417,Northumberland County Council,NE61 2EF,
Department for Transport,Department for Transport,14/04/2014,CurrGrt Las in AEF/A,Local,NOTTINGHAM CITY COUNCIL,2000001206,197557,Nottingham City Council,NG2 3AH,
Department for Transport,Department for Transport,14/04/2014,CurrGrt Las in AEF/A,Local,NOTTINGHAMSHIRE CC,2000001158,1002539,Nottinghamshire County Council,NG2 7LA,
Department for Transport,Department for Transport,14/04/2014,CurrGrt Las in AEF/A,Local,OXFORDSHIRE CC,2000001159,794733,Oxfordshire County Council,OX1 1TH,
Department for Transport,Department for Transport,14/04/2014,CurrGrt Las in AEF/A,Local,PETERBOROUGH CITY COUNCIL,2000001160,107212,Peterborough City Council,PE1 1FF,
Department for Transport,Department for Transport,14/04/2014,CurrGrt Las in AEF/A,Local,PLYMOUTH CITY COUNCIL,2000001161,85008,Plymouth City Council,PL1 2AA,
Department for Transport,Department for Transport,14/04/2014,CurrGrt Las in AEF/A,Local,POOLE BC,2000001162,177533,Poole Borough Council,BH15 2RZ,
Department for Transport,Department for Transport,14/04/2014,CurrGrt Las in AEF/A,Local,PORTSMOUTH CITY COUNCIL,2000001185,84784,Portsmouth City Council,PO1 2BG,
Department for Transport,Department for Transport,14/04/2014,CurrGrt Las in AEF/A,Local,READING BC,2000001163,74192,Reading Borough Council,RG1 7TD,
Department for Transport,Department for Transport,14/04/2014,CurrGrt Las in AEF/A,Local,REDCAR & CLEVELAND BC,2000001193,60876,Redcar and Cleveland Borough Council,TS6 9AR,
Department for Transport,Department for Transport,14/04/2014,CurrGrt Las in AEF/A,Local,ROTHERHAM METROPOLITAN BOROUGH,2000001217,20959,Rotherham MBC,S66 8QL,
Department for Transport,Department for Transport,14/04/2014,CurrGrt Las in AEF/A,Local,RUTLAND COUNTY COUNCIL,2000001165,68708,Rutland County Council,LE15 6HP,
Department for Transport,Department for Transport,14/04/2014,CurrGrt Las in AEF/A,Local,SHEFFIELD CITY COUNTY COUNCIL,2000001199,106858,Sheffield City Council,S9 3GZ,
Department for Transport,Department for Transport,14/04/2014,CurrGrt Las in AEF/A,Local,SHROPSHIRE COUNTY COUNCIL,2000001166,472107,Shropshire County Council,SY2 6ND,
Department for Transport,Department for Transport,14/04/2014,CurrGrt Las in AEF/A,Local,Slough Borough Council,2000001240,43138,Slough Borough Council,SL1 3UQ,
Department for Transport,Department for Transport,14/04/2014,CurrGrt Las in AEF/A,Local,Somerset County Council,2000001241,453947,Somerset County Council,TA1 4DY,
Department for Transport,Department for Transport,14/04/2014,CurrGrt Las in AEF/A,Local,South Gloucestershire Council,2000001242,464709,South Gloucestershire Council,BS35 1HF,
Department for Transport,Department for Transport,14/04/2014,CurrGrt Las in AEF/A,Local,SOUTH YORKSHIRE PTE,2000001203,1164420,South Yorkshire Passenger Transport Executive,S1 2BQ,
Department for Transport,Department for Transport,14/04/2014,CurrGrt Las in AEF/A,Local,SOUTHAMPTON CITY COUNCIL,2000001198,75112,Southampton City Council,SO14 7LY,
Department for Transport,Department for Transport,14/04/2014,CurrGrt Las in AEF/A,Local,ST HELENS COUNCIL SOCIAL SERVICES,2000001187,23398,St Helens MBC,WA10 1DY,
Department for Transport,Department for Transport,14/04/2014,CurrGrt Las in AEF/A,Local,Staffordshire County Council,2000001243,699869,Staffordshire County Council,ST16 2LP,
Department for Transport,Department for Transport,14/04/2014,CurrGrt Las in AEF/A,Local,STOCKPORT MBC SOCIAL SERVICES,2000001188,8983,Stockport MBC,SK3 0XT,
Department for Transport,Department for Transport,14/04/2014,CurrGrt Las in AEF/A,Local,STOCKTON ON TEES BC,2000001167,88923,Stockton-on-Tees Borough Council,TS23 2YS,
Department for Transport,Department for Transport,14/04/2014,CurrGrt Las in AEF/A,Local,Suffolk County Council,2000001225,614935,Suffolk County Council,IP1 2BX,
Department for Transport,Department for Transport,14/04/2014,CurrGrt Las in AEF/A,Local,SURREY COUNTY COUNCIL,2000001168,1125405,Surrey County Council,KT1 2DN,
Department for Transport,Department for Transport,14/04/2014,CurrGrt Las in AEF/A,Local,SWINDON BC,2000001169,176205,Swindon Borough Council,SN1 2JH,
Department for Transport,Department for Transport,14/04/2014,CurrGrt Las in AEF/A,Local,TAMESIDE METROPOLITAN,2000001213,12129,Thameside MBC,SK15 1ST,
Department for Transport,Department for Transport,14/04/2014,CurrGrt Las in AEF/A,Local,Telford & Wrekin Council,2000001226,90742,Telford and Wrekin Council,TF3 4WZ,
Department for Transport,Department for Transport,14/04/2014,CurrGrt Las in AEF/A,Local,THURROCK DC,2000001170,45263,Thurrock Council,RM17 6LT,
Department for Transport,Department for Transport,14/04/2014,CurrGrt Las in AEF/A,Local,Torbay Borough Council,2000001227,24190,Torbay Borough Council,TQ1 3DR,
Department for Transport,Department for Transport,14/04/2014,CurrGrt Las in AEF/A,Local,Transport for Greater Manchester,2000001228,2953691,Transport for Greater Manchester,M1 3BG,
Department for Transport,Department for Transport,14/04/2014,CurrGrt Las in AEF/A,Local,W YORKS PTA,2000001171,2066308,Metro,LS1 1QS,
Department for Transport,Department for Transport,14/04/2014,CurrGrt Las in AEF/A,Local,WAKEFIELD MDC PASSENGER TRANSPORT,2000001212,37753,Wakefield MDC,WF1 2TU,
Department for Transport,Department for Transport,14/04/2014,CurrGrt Las in AEF/A,Local,WARRINGTON BC,2000001172,40214,Warrington Borough Council,WA1 1BN,
Department for Transport,Department for Transport,14/04/2014,CurrGrt Las in AEF/A,Local,Warwickshire County Council,2000001194,669113,Warwickshire County Council,CV34 4RH,
Department for Transport,Department for Transport,14/04/2014,CurrGrt Las in AEF/A,Local,WEST BERKSHIRE DC,2000001173,137099,West Berkshire District Council,RG14 2AF,
Department for Transport,Department for Transport,14/04/2014,CurrGrt Las in AEF/A,Local,West Sussex County Council,2000001229,436145,West Sussex County Council,PO19 1RQ,
Department for Transport,Department for Transport,14/04/2014,CurrGrt Las in AEF/A,Local,WIGAN COUNCIL,2000001205,31455,Wigan Council,WN1 1AZ,
Department for Transport,Department for Transport,14/04/2014,CurrGrt Las in AEF/A,Local,WILTSHIRE COUNTY COUNCIL,2000001174,984479,Wiltshire County Council,BA14 8JJ,
Department for Transport,Department for Transport,14/04/2014,CurrGrt Las in AEF/A,Local,Winchester City Council,2000001230,45356,Winchester City Council,SO23 9LJ,
Department for Transport,Department for Transport,14/04/2014,CurrGrt Las in AEF/A,Local,WINDSOR & MAIDENHEAD,2000001175,76146,Royal Borough of Windsor and Maidenhead,SL6 1RF,
Department for Transport,Department for Transport,14/04/2014,CurrGrt Las in AEF/A,Local,WOKINGHAM DC,2000001176,111461,Wokingham District Council,RG40 1JW,
Department for Transport,Department for Transport,14/04/2014,CurrGrt Las in AEF/A,Local,WORCESTERSHIRE COUNTY COUNCIL,2000001195,495151,Worcestershire County Council,WR5 2NP,
Department for Transport,Department for Transport,14/04/2014,CurrGrt Las in AEF/A,Rail Strategy & Funding,TRANSPORT FOR LONDON,2000001303,2208700.87,TfL LOROL Grant April 2014 Claim,SW1H 0TL,
Department for Transport,Department for Transport,14/04/2014,Legal Consultancy,Group Procurement & Estate,BLAKE LAPTHORN,2000001304,39,#,SO53 3LG,
Department for Transport,Department for Transport,14/04/2014,Legal Consultancy,Major Projects & Growth,BEVAN BRITTAN,2000001292,2269.8,#,BS2 0HQ,
Department for Transport,Department for Transport,14/04/2014,Media & Press,Group Communication,"GORKANA GROUP LTD (""GCL"")",2000001306,5410.76,#,EC1Y 8QE,
Department for Transport,Department for Transport,14/04/2014,Occup Health Scheme,Group Human Resource,Capita Health and Wellbeing Ltd,2000001289,514.79,#,CO4 4QR,
Department for Transport,Department for Transport,14/04/2014,Printing,Group Communication,WILLIAMS LEA LIMITED,2000001307,21858.1,#,NR3 1PD,
Department for Transport,Department for Transport,14/04/2014,Prog&ProjMgmt Consul,"Policy, Legislation and Funding",PARSONS BRINCKERHOFF LTD,2000001296,14882.17,#,NE4 7YQ,
Department for Transport,Department for Transport,14/04/2014,Purchasing Card Char,RTL DG's Office,BARCLAYS BANK PLC,2000001291,2017.59,Barclays - DfT/RT&L - March 2014,NN4 7SG,
Department for Transport,Department for Transport,14/04/2014,Purchasing Card Char,RTL DG's Office,BARCLAYS BANK PLC,2000001291,29521.99,Barclays - DfT/'RT&L - March 2014,NN4 7SG,
Department for Transport,Department for Transport,14/04/2014,Rent - L&B (non-PFI),Group Procurement & Estate,DWP SHARED SERVICES,2000001286,20091.04,#,CF14 3UW,
Department for Transport,Department for Transport,14/04/2014,Research,Aviation,CIVIL AVIATION AUTHORITY,2000001294,236764.44,#,RH10 0YR,
Department for Transport,Department for Transport,14/04/2014,Research,Aviation,CIVIL AVIATION AUTHORITY,2000001294,192778.19,#,RH10 0YR,
Department for Transport,Department for Transport,14/04/2014,Small Software,Motoring Services,SOFTWARE BOX LTD,2000001288,69722.4,#,YO61 1ET,
Department for Transport,Department for Transport,14/04/2014,Small Software,Marine Accident Investigation Branch,IHS (GLOBAL) LTD,2000001295,9036,#,RG12 8FB,
Department for Transport,Department for Transport,14/04/2014,Small Software,"Motoring, Freight & London",BUCHANAN COMPUTING LTD,2000001293,914.4,#,W6 7AS,
Department for Transport,Department for Transport,14/04/2014,Small Software,General Counsel's Office,Workshare Limited,2000001314,2352,#,E1 6PX,
Department for Transport,Department for Transport,14/04/2014,Support Services,Aviation,MINISTRY OF DEFENCE,2000001302,234590,#,L2 3YL,
Department for Transport,Department for Transport,14/04/2014,Support Services,Aviation,CIVIL AVIATION AUTHORITY,2000001294,120712,#,RH10 0YR,
Department for Transport,Department for Transport,14/04/2014,Traffic Survey & Cou,Rail Commercial & Programme Office,PARSONS BRINCKERHOFF LTD,2000001296,21318.8,#,NE4 7YQ,
Department for Transport,Department for Transport,14/04/2014,Training,"Motoring, Freight & London",BUCHANAN COMPUTING LTD,2000001293,1020,#,W6 7AS,
Department for Transport,Department for Transport,14/04/2014,Transport  Consult,Group Procurement & Estate,BLAKE LAPTHORN,2000001304,3352.8,#,SO53 3LG,
Department for Transport,Department for Transport,14/04/2014,Travel Expenses UK,Rail Accident Investigation Branch,REDFERN TRAVEL LTD,2000001305,3707.79,Travel Statement March 2014 RAIB,BD1 3AZ,
Department for Transport,Department for Transport,15/04/2014,Agency Staff Costs,Strategic Roads & Smart Ticketing,EXPERIS LTD,2000001506,4666.62,#,EC1R 3DR,
Department for Transport,Department for Transport,15/04/2014,Agency Staff Costs,Group Communication,NETWORKERS INTERNATIONAL (UK) PLC,2000001517,1013.52,#,BR1 1HP,
Department for Transport,Department for Transport,15/04/2014,Agency Staff Costs,Group Procurement & Estate,NETWORKERS INTERNATIONAL (UK) PLC,2000001517,1741.02,#,BR1 1HP,
Department for Transport,Department for Transport,15/04/2014,Agency Staff Costs,Group Human Resource,HAYS PERSONNEL SERVICE LTD,2000001498,5352,#,KT3 4JQ,
Department for Transport,Department for Transport,15/04/2014,Agency Staff Costs,Group Human Resource,EXPERIS LTD,2000001506,3834.72,#,EC1R 3DR,
Department for Transport,Department for Transport,15/04/2014,Agency Staff Costs,Group Human Resource,REED SPECIALIST RECRUITMENT LTD,2000001511,894,#,SW20 0BA,
Department for Transport,Department for Transport,15/04/2014,Agency Staff Costs,Major Projects & Growth,EXPERIS LTD,2000001506,6040.02,#,EC1R 3DR,
Department for Transport,Department for Transport,15/04/2014,Agency Staff Costs,Rail Commercial & Programme Office,CAPITA RESOURCING LTD,2000001514,7368.07,#,DL1 9HN,
Department for Transport,Department for Transport,15/04/2014,Agency Staff Costs,Rail Commercial & Programme Office,MORGAN HUNT UK LTD,2000001507,4311.38,#,EC4M 7EG,
Department for Transport,Department for Transport,15/04/2014,Agency Staff Costs,Group Finance,NETWORKERS INTERNATIONAL (UK) PLC,2000001517,1689.24,#,BR1 1HP,
Department for Transport,Department for Transport,15/04/2014,Agency Staff Costs,Rail Franchising,CAPITA RESOURCING LTD,2000001514,19168.19,#,DL1 9HN,
Department for Transport,Department for Transport,15/04/2014,Agency Staff Costs,Rail Franchising,CAPITA RESOURCING LTD,2000001514,19498.06,#,DL1 9HN,
Department for Transport,Department for Transport,15/04/2014,Agency Staff Costs,Rail Franchising,EXPERIS LTD,2000001506,11053.44,#,EC1R 3DR,
Department for Transport,Department for Transport,15/04/2014,Agency Staff Costs,Rail Franchising,EXPERIS LTD,2000001506,10729.73,#,EC1R 3DR,
Department for Transport,Department for Transport,15/04/2014,Agency Staff Costs,Group Finance,EXPERIS LTD,2000001506,3080.26,#,EC1R 3DR,
Department for Transport,Department for Transport,15/04/2014,Agency Staff Costs,Rail Franchising,LA INTERNATIONAL COMPUTER,100002405,-1438.18,#,ST1 5UB,
Department for Transport,Department for Transport,15/04/2014,Agency Staff Costs,Rail Franchising,LA INTERNATIONAL COMPUTER,100002405,1438.18,#,ST1 5UB,
Department for Transport,Department for Transport,15/04/2014,Agency Staff Costs,Rail Franchising,MICHAEL PAGE INTERNATIONAL,2000001512,3333,#,SL1 3SA,
Department for Transport,Department for Transport,15/04/2014,Agency Staff Costs,Rail Franchising,NETWORKERS INTERNATIONAL (UK) PLC,2000001517,2367.84,#,BR1 1HP,
Department for Transport,Department for Transport,15/04/2014,Agency Staff Costs,Rail Franchising,PARITY RESOURCES LTD,2000001513,10527.47,#,SW19 3RU,
Department for Transport,Department for Transport,15/04/2014,Agency Staff Costs,Rail Franchising,PARITY RESOURCES LTD,2000001513,12760.56,#,SW19 3RU,
Department for Transport,Department for Transport,15/04/2014,Agency Staff Costs,Rail Franchising,PARITY RESOURCES LTD,2000001513,25521.12,#,SW19 3RU,
Department for Transport,Department for Transport,15/04/2014,Agents Fees,Motoring Services,VEHICLE & OPERATOR SERVICES AGENCY,2000001496,2000000,#,SA1 8AN,
Department for Transport,Department for Transport,15/04/2014,Agents Fees,Motoring Services,VEHICLE & OPERATOR SERVICES AGENCY,2000001496,4404118,#,SA1 8AN,
Department for Transport,Department for Transport,15/04/2014,Cap Grt Pri Sec-Cos.,Major Projects & Growth,NORTHERN RAIL LTD,8100000896,821344,Northern Rail SSF13/14,M1 2NF,
Department for Transport,Department for Transport,15/04/2014,Cap Grt Pri Sec-Cos.,Major Projects & Growth,NORTHERN RAIL LTD,8100000896,-821344,Northern Rail SSF13/14,M1 2NF,
Department for Transport,Department for Transport,15/04/2014,Cap Grt Pri Sec-Cos.,"Policy, Legislation and Funding",Eversheds LLP,2000001331,521898.32,HS2 Statutory Blight,CF10 5BT,
Department for Transport,Department for Transport,15/04/2014,Cap Grt Pri Sec-Cos.,"Policy, Legislation and Funding",Eversheds LLP,2000001331,757330,"HS2 Statutory Blight, 301 Cromwell",CF10 5BT,
Department for Transport,Department for Transport,15/04/2014,Cap Grt Pri Sec-Cos.,"Policy, Legislation and Funding",Eversheds LLP,2000001497,623727.1,"HS2 Statutory Blight, 1 Meadow/PEARCEN",CF10 5BT,
Department for Transport,Department for Transport,15/04/2014,Cap Grt Pri Sec-Cos.,"Policy, Legislation and Funding",Eversheds LLP,2000001532,427500,#,CF10 5BT,
Department for Transport,Department for Transport,15/04/2014,Cap Grt Pri Sec-Cos.,"Policy, Legislation and Funding",Eversheds LLP,2000001532,972757.6,#,CF10 5BT,
Department for Transport,Department for Transport,15/04/2014,Cap Grt Pri Sec-Cos.,"Policy, Legislation and Funding",Eversheds LLP,2000001532,310000,#,CF10 5BT,
Department for Transport,Department for Transport,15/04/2014,Cap Grt Pri Sec-Cos.,"Policy, Legislation and Funding",Eversheds LLP,2000001532,104000,#,CF10 5BT,
Department for Transport,Department for Transport,15/04/2014,Cars Maintenance,Motoring Services,Bodyshop Repair Network Ltd,2000001528,621.48,#,TN16 3BW,
Department for Transport,Department for Transport,15/04/2014,Computer Consumables,Motoring Services,XMA LIMITED GOSC,2000001526,663.7,A33K250  Konica Minolta Yellow toner,NG11 7EP,
Department for Transport,Department for Transport,15/04/2014,Computer Consumables,Motoring Services,XMA LIMITED GOSC,2000001526,693.5,CB384A Hp (CB384A) Or Compatible Black (,NG11 7EP,
Department for Transport,Department for Transport,15/04/2014,Courier Charges,Group Procurement & Estate,DX NETWORK SERVICES LTD,2000001499,1437.24,#,NN3 6YG,
Department for Transport,Department for Transport,15/04/2014,CurrGrt Las in AEF/A,Local,BLACKPOOL TRANSPORT SERVICES LTD,2000001366,254509.9,BLACKPOOL TRANSPORT SERVICES LTD,FY1 5DD,
Department for Transport,Department for Transport,15/04/2014,CurrGrt Las in AEF/A,Local,BOURNEMOUTH TRANSPORT LTD,2000001367,272896.89,BOURNEMOUTH TRANSPORT LTD,BH8 0BQ,
Department for Transport,Department for Transport,15/04/2014,CurrGrt Las in AEF/A,Local,WARRINGTON BOROUGH TRANS LTD,2000001455,140717.66,Warrington Borough Transport Ltd,WA4 6PT,
Department for Transport,Department for Transport,15/04/2014,CurrGrtPriSec-P&NPIS,"Motoring, Freight & London",RICARDO - AEA LIMITED,2000001524,44000,NCEC Q4,OX11 0PQ,
Department for Transport,Department for Transport,15/04/2014,Data Supply - TD,Transport Direct&Travel,BASEMAP LIMITED,2000001523,780,#,GU2 7YG,
Department for Transport,Department for Transport,15/04/2014,IVR Costs,Motoring Services,CABLE & WIRELESS,2000001503,-6120,Duplicate Payment UK10/102013/9797,MK3 5JP,
Department for Transport,Department for Transport,15/04/2014,Legal Consultancy,Rail Franchising,BEVAN BRITTAN,2000001502,5873.4,#,BS2 0HQ,
Department for Transport,Department for Transport,15/04/2014,Live Running Non IBM,Motoring Services,CABLE & WIRELESS,2000001503,2310.36,C&W - SAN Link ACCUK13066448 -March 2014,MK3 5JP,
Department for Transport,Department for Transport,15/04/2014,Machinery Rental,General Counsel's Office,DANWOOD GROUP LTD,2000001505,427.34,#,LN6 3DG,
Department for Transport,Department for Transport,15/04/2014,Maintenance Other,Motoring Services,ARVAL PHH,2000001501,16544.73,#,SN5 6PE,
Department for Transport,Department for Transport,15/04/2014,Management Consultan,Rail Commercial & Programme Office,RAIL MANCHE FINANCE EEIG,2000001516,12500,ACCOUNTANCY SERVICES Q/E 30/6/14,N1 9AW,
Department for Transport,Department for Transport,15/04/2014,Occup Health Scheme,Group Human Resource,Capita Health and Wellbeing Ltd,2000001500,769.79,#,CO4 4QR,
Department for Transport,Department for Transport,15/04/2014,Printing,Air Accident Investigation Branch,WILLIAMS LEA LIMITED,2000001522,927.3,#,NR3 1PD,
Department for Transport,Department for Transport,15/04/2014,Printing,Air Accident Investigation Branch,WILLIAMS LEA LIMITED,2000001522,2271.5,#,NR3 1PD,
Department for Transport,Department for Transport,15/04/2014,Printing,Air Accident Investigation Branch,WILLIAMS LEA LIMITED,2000001522,1430.24,#,NR3 1PD,
Department for Transport,Department for Transport,15/04/2014,Printing,Group Communication,WILLIAMS LEA LIMITED,2000001522,1058.2,#,NR3 1PD,
Department for Transport,Department for Transport,15/04/2014,Printing,"Policy, Legislation and Funding",WILLIAMS LEA LIMITED,2000001522,1815,#,NR3 1PD,
Department for Transport,Department for Transport,15/04/2014,Prog&ProjMgmt Consul,Group Procurement & Estate,MACE Limited,2000001534,53204.4,#,EC2M 6X,
Department for Transport,Department for Transport,15/04/2014,Publications for Res,Group Communication,CREATIVE CHOICE CIC,2000001521,1450,#,SW1H 0DJ,
Department for Transport,Department for Transport,15/04/2014,Research,Rail Strategy & Funding,PARSONS BRINCKERHOFF LTD,2000001509,1275.08,#,NE4 7YQ,
Department for Transport,Department for Transport,15/04/2014,Storage & Distributi,General Counsel's Office,COMMUNITIES AND LOCAL GOVERNMENT,2000001495,12970,#,HP2 4XN,
Department for Transport,Department for Transport,15/04/2014,Subsidies Private Se,Local,1ST BUS STOP MINIBUS,2000001473,3278.21,1st BUS STOP MINIBUS,DA13 9EW,
Department for Transport,Department for Transport,15/04/2014,Subsidies Private Se,Local,ABELLIO WEST LONDON LTD,2000001451,52422.64,ABELLIO WEST LONDON LTD,SE5 0TF,
Department for Transport,Department for Transport,15/04/2014,Subsidies Private Se,Local,ACE TRAVEL (NORTH WEST) LTD,2000001359,37990.2,ACE TRAVEL (NORTH WEST) LTD,L9 7AU,
Department for Transport,Department for Transport,15/04/2014,Subsidies Private Se,Local,ACKLAM COACHES LTD,2000001465,1331.64,ACKLAMS COACHES LTD,HU17 0LA,
Department for Transport,Department for Transport,15/04/2014,Subsidies Private Se,Local,AINTREE COACHES (INTERNATIONAL) LTD,2000001487,7026.54,AINTREE COACHES (INTERNATIONAL) LTD,CH66 1NH,
Department for Transport,Department for Transport,15/04/2014,Subsidies Private Se,Local,ALANSWAY COACHES LTD,2000001360,14538.85,ALANSWAY COACHES LTD T/A COUNTRY BUS,TQ12 6UT,
Department for Transport,Department for Transport,15/04/2014,Subsidies Private Se,Local,AXE VALLEY MINI TRAVEL,2000001361,7546.39,AXE VALLEY MINI TRAVEL,EX12 2NA,
Department for Transport,Department for Transport,15/04/2014,Subsidies Private Se,Local,BAKER BUS,2000001362,23064.8,BAKER BUS,ST8 7PL,
Department for Transport,Department for Transport,15/04/2014,Subsidies Private Se,Local,BARRATTS COACHES LTD,2000001363,5524.82,BARRATTS COACHES LTD,CW5 6LT,
Department for Transport,Department for Transport,15/04/2014,Subsidies Private Se,Local,BENNETTS COACHES LTD,2000001365,12342.81,BENNETTS COACHES LTD,GL4 4LP,
Department for Transport,Department for Transport,15/04/2014,Subsidies Private Se,Local,BRADSHAW COACHES,2000001368,1658.65,BRADSHAW COACHES LTD,M28 3LX,
Department for Transport,Department for Transport,15/04/2014,Subsidies Private Se,Local,xxxxxx,2000001483,522.16,Mostonian 2000,xxxxxx,
Department for Transport,Department for Transport,15/04/2014,Subsidies Private Se,Local,CAROSA LTD,2000001370,2098.94,CAROSA LTD t/a FARLEIGH COACHES,ME3 9LB,
Department for Transport,Department for Transport,15/04/2014,Subsidies Private Se,Local,CAROUSEL BUSES LTD,2000001371,41090.89,Carousel Buses Ltd,HP13 5SG,
Department for Transport,Department for Transport,15/04/2014,Subsidies Private Se,Local,CARTERS COACH SERVICES LTD,2000001372,9355.12,Carters Coach Services Ltd,IP9 2JT,
Department for Transport,Department for Transport,15/04/2014,Subsidies Private Se,Local,CASTLEWAYS (WINCHOMBE) LTD,2000001373,9284.24,CASTLEWAYS (WINCHCOMBE) LTD,GL54 5PU,
Department for Transport,Department for Transport,15/04/2014,Subsidies Private Se,Local,CLARKES OF LONDON,2000001358,30964.9,Clarkes of London,SE26 5AT,
Department for Transport,Department for Transport,15/04/2014,Subsidies Private Se,Local,CLEARWAY OF CATSHILL,2000001374,1099.53,CLEARWAY OF CATSHILL,B61 0JL,
Department for Transport,Department for Transport,15/04/2014,Subsidies Private Se,Local,COACH HIRE COACHES LTD,2000001375,19889.99,COACH HIRE COACHES LTD,BN5 9UU,
Department for Transport,Department for Transport,15/04/2014,Subsidies Private Se,Local,Coastal Coaches Of Warton,2000001468,7109.23,COASTAL COACHES OF WARTON,PR4 1AH,
Department for Transport,Department for Transport,15/04/2014,Subsidies Private Se,Local,COASTAL LINER LTD,2000001376,1380.43,COASTAL LINER LIMITED,WV13 3RG,
Department for Transport,Department for Transport,15/04/2014,Subsidies Private Se,Local,Cornwall Ferries Ltd,2000001493,3974.11,Cornwall Ferries Ltd,TR3 6QJ,
Department for Transport,Department for Transport,15/04/2014,Subsidies Private Se,Local,CROSSVILLE MOTOR SERVICES LIMITED,2000001484,11713.07,Crosville Motor Services Ltd,BS24 9AD,
Department for Transport,Department for Transport,15/04/2014,Subsidies Private Se,Local,DAC COACHES LTD,2000001378,3786.89,DAC Coaches Ltd,PL18 9HW,
Department for Transport,Department for Transport,15/04/2014,Subsidies Private Se,Local,Darren Mayes T/A M Travel,2000001408,30151.66,DARREN MAYES T/A M TRAVEL,WF10 4SB,
Department for Transport,Department for Transport,15/04/2014,Subsidies Private Se,Local,DARTLINE COACHES,2000001379,4341.19,DARTLINE COACHES,EX5 1AF,
Department for Transport,Department for Transport,15/04/2014,Subsidies Private Se,Local,DUDLEY'S COACHES LTD,2000001380,5313.56,DUDLEY'S COACHES LTD,WR7 4LS,
Department for Transport,Department for Transport,15/04/2014,Subsidies Private Se,Local,E STOTT & SONS LTD,2000001381,14834.32,E.STOTT & SONS LTD,HD3 4PG,
Department for Transport,Department for Transport,15/04/2014,Subsidies Private Se,Local,EMBLINGS COACHES LTD,2000001383,2355.57,EMBLINGS COACHES LTD,PE13 4ED,
Department for Transport,Department for Transport,15/04/2014,Subsidies Private Se,Local,ERIC W BOWERS COACHES LTD,2000001384,67754.66,BOWERS COACHES LTD,LE4 9HU,
Department for Transport,Department for Transport,15/04/2014,Subsidies Private Se,Local,EVERGREEN COACHES,2000001478,42393.55,Evergreen Coaches,B66 2RL,
Department for Transport,Department for Transport,15/04/2014,Subsidies Private Se,Local,EXPRESS LINES LTD,2000001386,3213.66,Expresslines Ltd,MK42 0HB,
Department for Transport,Department for Transport,15/04/2014,Subsidies Private Se,Local,FARGO COACHES,2000001387,1391.29,FARGO COACHES,RG12 2NB,
Department for Transport,Department for Transport,15/04/2014,Subsidies Private Se,Local,FELIX TAXIS,2000001388,1274.77,Felix Taxis,CO10 9AD,
Department for Transport,Department for Transport,15/04/2014,Subsidies Private Se,Local,FILERS TRAVEL LTD,2000001389,5942.91,FILER'S TRAVEL LTD,EX34 8LB,
Department for Transport,Department for Transport,15/04/2014,Subsidies Private Se,Local,FOURWAYS COACHES,2000001467,3174.94,Fourways Coaches,CM1 3QL,
Department for Transport,Department for Transport,15/04/2014,Subsidies Private Se,Local,FRANK POPPLETON & CO,2000001390,4587.33,FRANK POPPLETON & CO,WF8 4PJ,
Department for Transport,Department for Transport,15/04/2014,Subsidies Private Se,Local,Gardbus,2000001475,2496.75,Gardbus,BH24 1AF,
Department for Transport,Department for Transport,15/04/2014,Subsidies Private Se,Local,GELDARDS COACHES LTD,2000001391,30649.83,GELDARDS COACHES LTD,LS12 5JB,
Department for Transport,Department for Transport,15/04/2014,Subsidies Private Se,Local,GLEN VALLEY TOURS LTD,2000001392,583.76,GLEN VALLEY TOURS LTD,NE71 6SP,
Department for Transport,Department for Transport,15/04/2014,Subsidies Private Se,Local,GO-COACHHIRE LTD,2000001470,8505.72,GO-COACH HIRE LIMITED,TN14 5EL,
Department for Transport,Department for Transport,15/04/2014,Subsidies Private Se,Local,GRANT PALMER LIMITED,2000001395,23642.5,Grant Palmer Limited,MK45 5BP,
Department for Transport,Department for Transport,15/04/2014,Subsidies Private Se,Local,GRIFFIN COACHES T/A RELIANCE TRAVEL,2000001394,2166.26,Griffin Coaches T/A Reliance Travel,DA12 2PS,
Department for Transport,Department for Transport,15/04/2014,Subsidies Private Se,Local,HAMS TRAVEL,2000001397,2518.15,HAMS TRAVEL,TN5 7PL,
Department for Transport,Department for Transport,15/04/2014,Subsidies Private Se,Local,HANSONS (WORDSLEY) LTD,2000001398,24119.5,HANSONS (WORDSLEY) LTD,DY9 8RD,
Department for Transport,Department for Transport,15/04/2014,Subsidies Private Se,Local,HARWICH CONNEXIONS TRANSPORT,2000001485,706.91,Harwich Connexions Transport Co-Operative Ltd,CO12 3NS,
Department for Transport,Department for Transport,15/04/2014,Subsidies Private Se,Local,HOLMESWOOD COACHES,2000001399,18291.04,HOLMESWOOD COACHES LTD,L40 1UB,
Department for Transport,Department for Transport,15/04/2014,Subsidies Private Se,Local,HR RICHMOND LTD TA EPSOMCOACHES,2000001400,9232.73,Epsom Coaches,KT19 9AF,
Department for Transport,Department for Transport,15/04/2014,Subsidies Private Se,Local,Hunter Coaches Ltd,2000001491,2019.86,Hunter Coaches Ltd,LS17 5ED,
Department for Transport,Department for Transport,15/04/2014,Subsidies Private Se,Local,IMPERIAL BUS COMPANY LTD,2000001401,634.92,Imperial Bus Company Limited,PE14 8SH,
Department for Transport,Department for Transport,15/04/2014,Subsidies Private Se,Local,J & B,2000001492,2744.06,J & B Travel Ltd,LS28 6JP,
Department for Transport,Department for Transport,15/04/2014,Subsidies Private Se,Local,J & P EXECUTIVE TRAVEL,2000001402,29101.18,J P Executive Travel,M24 2AZ,
Department for Transport,Department for Transport,15/04/2014,Subsidies Private Se,Local,xxxxxx,2000001489,3892.33,xxxxxx,xxxxxx,
Department for Transport,Department for Transport,15/04/2014,Subsidies Private Se,Local,JOHN FISHWICK & SONS,2000001403,34122.06,JOHN FISHWICK & SONS,PR25 3LE,
Department for Transport,Department for Transport,15/04/2014,Subsidies Private Se,Local,KEN MILLER BUSES,2000001404,3388.52,KEN MILLER BUSES,WS14 0LP,
Department for Transport,Department for Transport,15/04/2014,Subsidies Private Se,Local,LITTLE JIMS,2000001407,1570.26,Little Jim's,HP4 2BQ,
Department for Transport,Department for Transport,15/04/2014,Subsidies Private Se,Local,M J CURLEY T/A,2000001488,1509.79,Coach of Langtoft / Langtoft Private Hire,PE6 9LS,
Department for Transport,Department for Transport,15/04/2014,Subsidies Private Se,Local,MARSHALLS COACHES LLP,2000001409,4925.9,MARSHALLS COACHES LLP,LU7 4YP,
Department for Transport,Department for Transport,15/04/2014,Subsidies Private Se,Local,MATTHEWS TRAVEL,2000001474,1037.41,Matthew Newall T/A Matthews Travel,OL9 9ER,
Department for Transport,Department for Transport,15/04/2014,Subsidies Private Se,Local,MEREDITHS COACHES LIMITED,2000001411,1220,Merediths Coaches Ltd,SY14 8DE,
Department for Transport,Department for Transport,15/04/2014,Subsidies Private Se,Local,METROBUS LTD,2000001412,311783.6,Metrobus Ltd,RH10 9UA,
Department for Transport,Department for Transport,15/04/2014,Subsidies Private Se,Local,MIKE DE COURCEY TRAVEL LTD,2000001413,44343.7,MIKE DE COURCEY TRAVEL LTD,CV3 4FG,
Department for Transport,Department for Transport,15/04/2014,Subsidies Private Se,Local,MULLANY'S COACHES (UK) LTD,2000001414,20518.83,MULLANY'S COACHES (UK) LIMITED,WD25 0GB,
Department for Transport,Department for Transport,15/04/2014,Subsidies Private Se,Local,MULLEYS MOTORWAYS LTD,2000001469,17115.09,Mulleys Motorways Ltd,IP31 2JB,
Department for Transport,Department for Transport,15/04/2014,Subsidies Private Se,Local,NIP ON TRANSPORT SERVICE,2000001417,12893.34,Nip-On Transport Service,WA9 4AF,
Department for Transport,Department for Transport,15/04/2014,Subsidies Private Se,Local,NIPPY BUS LTD,2000001418,7858.92,NIPPY BUS LTD,TA12 6HB,
Department for Transport,Department for Transport,15/04/2014,Subsidies Private Se,Local,NN Cresswell Coach Hire Ltd,2000001415,1495.55,N N Cresswell Coach Hire Ltd,WR11 4RA,
Department for Transport,Department for Transport,15/04/2014,Subsidies Private Se,Local,PAUL S WINSON (COACHES) LTD,2000001420,10649.59,PAUL S WINSON COACHES LTD,LE11 5XR,
Department for Transport,Department for Transport,15/04/2014,Subsidies Private Se,Local,PEOPLESBUS LTD,2000001472,1943.37,Peoplesbus,L30 6UQ,
Department for Transport,Department for Transport,15/04/2014,Subsidies Private Se,Local,PETER REYNOLDS COACHES,2000001481,2524.44,Peter Reynolds Coaches,HA6 3EF,
Department for Transport,Department for Transport,15/04/2014,Subsidies Private Se,Local,PILKINGTONS (ACCRINGTON) LTD,2000001421,19279.5,PILKINGTONS (ACCRINGTON) LTD,BB5 1DQ,
Department for Transport,Department for Transport,15/04/2014,Subsidies Private Se,Local,PRESTON BUS LIMITED,2000001422,104960.1,Preston Bus Limited,PR1 6NY,
Department for Transport,Department for Transport,15/04/2014,Subsidies Private Se,Local,PRIMROSE MOTOR SERVICES LTD,2000001423,3467.08,LUGG VALLEY PRIMROSE TRAVEL LTD,HR6 8PX,
Department for Transport,Department for Transport,15/04/2014,Subsidies Private Se,Local,PROCTERS COACHES,2000001424,13387.16,PROCTERS OF BEDALE,DL7 9UJ,
Department for Transport,Department for Transport,15/04/2014,Subsidies Private Se,Local,PULHAM & SON (COACHES) LTD,2000001425,10016.93,PULHAM & SONS LTD,GL542EN,
Department for Transport,Department for Transport,15/04/2014,Subsidies Private Se,Local,R S TYRER LIMITED,2000001464,1906.86,R S TYRER LIMITED,PR6 9LQ,
Department for Transport,Department for Transport,15/04/2014,Subsidies Private Se,Local,RED BUS,2000001476,2621.9,Red Bus,PE22 8RG,
Department for Transport,Department for Transport,15/04/2014,Subsidies Private Se,Local,RED KITE COMMERCIAL SERVICES,2000001426,3373.79,RED KITE COMMERICAL SERVICES,LU7 9PU,
Department for Transport,Department for Transport,15/04/2014,Subsidies Private Se,Local,REDLINE BUSES,2000001427,2533.2,REDLINE BUSES,HP19 8DB,
Department for Transport,Department for Transport,15/04/2014,Subsidies Private Se,Local,REDROUTE BUSES,2000001428,9235.09,Redroute Buses Ltd,DA11 9AX,
Department for Transport,Department for Transport,15/04/2014,Subsidies Private Se,Local,REGS COACHES LTD,2000001429,2499.48,Reg's Coaches Ltd,AL6 9TY,
Department for Transport,Department for Transport,15/04/2014,Subsidies Private Se,Local,ROJAY SERVICES T/A WIGAN COACHWAYS,2000001482,5086.28,Rojay Services T/A Wigan Coachways,WN6 7TP,
Department for Transport,Department for Transport,15/04/2014,Subsidies Private Se,Local,ROLLING SOLUTIONS LTD,2000001471,25050.88,ROLLING SOLUTIONS T/A STRAWBERRY,ST14 7JD,
Department for Transport,Department for Transport,15/04/2014,Subsidies Private Se,Local,ROSSENDALE TRANSPORT LIMITED,2000001433,123471.01,Rossendale Transport Ltd,BB4 4RS,
Department for Transport,Department for Transport,15/04/2014,Subsidies Private Se,Local,Routemaster Buses Ltd,2000001479,2524.76,Routemaster Buses Ltd,CW5 6AL,
Department for Transport,Department for Transport,15/04/2014,Subsidies Private Se,Local,SAFEGUARD COACHES LTD,2000001434,10235.91,Safeguard Coaches Ltd,GU2 7TH,
Department for Transport,Department for Transport,15/04/2014,Subsidies Private Se,Local,SGI Community Transport CIC,2000001490,13758.02,SGI Community Transport C.I.C,WF12 9DB,
Department for Transport,Department for Transport,15/04/2014,Subsidies Private Se,Local,SLEAFORDIAN COACHES,2000001436,12215.76,Sleafordian Coaches,NG34 7EH,
Department for Transport,Department for Transport,15/04/2014,Subsidies Private Se,Local,SOUTHDOWN PSV LTD,2000001438,26013.77,Southdown PSV Ltd,RH10 3EN,
Department for Transport,Department for Transport,15/04/2014,Subsidies Private Se,Local,STAGECOACH IN EAST SUSSEX,2000001382,124474.02,Stagecoach in East Sussex,CT1 2SY,
Department for Transport,Department for Transport,15/04/2014,Subsidies Private Se,Local,STAGECOACH OXFORD,2000001439,390007.47,STAGECOACH IN OXFORD,SK3 0DU,
Department for Transport,Department for Transport,15/04/2014,Subsidies Private Se,Local,SULLIVAN BUSES,2000001440,21545.22,SULLIVAN BUS & COACH T/A SULLIVAN BUSES,EN6 3NE,
Department for Transport,Department for Transport,15/04/2014,Subsidies Private Se,Local,SUMMERCOURT TRAVEL LTD,2000001441,3625.08,SUMMERCOURT TRAVEL,TR8 5DR,
Department for Transport,Department for Transport,15/04/2014,Subsidies Private Se,Local,SW COACHES LTD,2000001442,24030.37,SOUTH WEST COACHES LTD,BA9 9EB,
Department for Transport,Department for Transport,15/04/2014,Subsidies Private Se,Local,SWANBROOK TRANSPORT LTD,2000001443,6067.92,Swanbrook Transport Ltd,GL51 0TE,
Department for Transport,Department for Transport,15/04/2014,Subsidies Private Se,Local,SWEYNE COACHES & CO,2000001444,660.52,Sweyne Coaches,DN14 8EL,
Department for Transport,Department for Transport,15/04/2014,Subsidies Private Se,Local,TALLYHO COACHES,2000001445,3222.14,TALLY HO! COACHES LTD,TQ7 1ES,
Department for Transport,Department for Transport,15/04/2014,Subsidies Private Se,Local,TARGET TRAVEL,2000001447,4673.76,TARGET TRAVEL,PL7 5BG,
Department for Transport,Department for Transport,15/04/2014,Subsidies Private Se,Local,Thames Travel (Wallingford),2000001449,45843.7,THAMES TRAVEL (WALLINGFORD) LTD,OX4 6GA,
Department for Transport,Department for Transport,15/04/2014,Subsidies Private Se,Local,THAMESDOWN TRANSPORT LTD,2000001450,110476.82,THAMESDOWN TRANSPORT LTD,SN2 2DJ,
Department for Transport,Department for Transport,15/04/2014,Subsidies Private Se,Local,THE KINGS FERRY TRAVEL GROUP,2000001405,66123.61,THE KING'S FERRY LTD,ME8 6HW,
Department for Transport,Department for Transport,15/04/2014,Subsidies Private Se,Local,UNIVERSITYBUS,2000001452,130221.68,UNIVERSITYBUS,AL10 9BS,
Department for Transport,Department for Transport,15/04/2014,Subsidies Private Se,Local,UNO BUSES LTD,2000001466,26326.02,Uno Buses Ltd,AL10 9BS,
Department for Transport,Department for Transport,15/04/2014,Subsidies Private Se,Local,Viking Coaches,2000001494,5894.61,Viking Coaches Derbyshire,DE11 9EU,
Department for Transport,Department for Transport,15/04/2014,Subsidies Private Se,Local,WALSALL COMMUNITY TRANSPORT,2000001477,2090.85,Walsall Community Transport,WS3 3DH,
Department for Transport,Department for Transport,15/04/2014,Subsidies Private Se,Local,WEBBERBUS LIMITED,2000001456,54919.72,WEBBERBUS LTD,TA6 5LT,
Department for Transport,Department for Transport,15/04/2014,Subsidies Private Se,Local,WESTERN GREYHOUND LTD,2000001457,158291.55,WESTERN GREYHOUND LTD,TR8 5DR,
Department for Transport,Department for Transport,15/04/2014,Subsidies Private Se,Local,WESTWARD TRAVEL,2000001458,4484.9,Westward Travel,GL12 8RT,
Department for Transport,Department for Transport,15/04/2014,Subsidies Private Se,Local,YARRANTON BROTHERS LTD,2000001461,5535.8,YARRANTON BROS LTD,WR15 8JL,
Department for Transport,Department for Transport,15/04/2014,Subsidies Private Se,Local,YEOMANS CANYON TRAVEL,2000001462,7785.63,YEOMANS CANYON TRAVEL,HR4 9PU,
Department for Transport,Department for Transport,15/04/2014,Subsidies Private Se,Local,YORKSHIRE TERRIER LTD,2000001463,316804.97,Stagecoach Yorkshire,SK3 0DU,
Department for Transport,Department for Transport,15/04/2014,Support Services,Marine Accident Investigation Branch,xxxxxx,2000001533,4282,#,xxxxxx,
Department for Transport,Department for Transport,15/04/2014,Support Services,Group Finance,DD ACCRAILWAY PENS TRUSTEE,2000001515,1133.07,#,DL3 6XR,
Department for Transport,Department for Transport,15/04/2014,Telephone charges,Motoring Services,Azzuri Communications Ltd,2000001519,7440,Azzurri - Lync Pilot  - 25.03.14,BB11 5FH,
Department for Transport,Department for Transport,15/04/2014,Telephone Line Rent,Motoring Services,CABLE & WIRELESS,2000001503,13554.2,C&W Rental Charges - 01/04/14 to 30/04/14,MK3 5JP,
Department for Transport,Department for Transport,15/04/2014,Telephone Line Rent,Motoring Services,COLT TELECOMMUNICATIONS,2000001504,3825,Colt - Data Service - March 2014,EC3A 7QN,
Department for Transport,Department for Transport,15/04/2014,Transport  Consult,Strategic Roads & Smart Ticketing,PA CONSULTING SERVICES LIMITED,2000001508,114696,#,SW1W 9SR,
Department for Transport,Department for Transport,15/04/2014,Transport  Consult,Strategic Roads & Smart Ticketing,PA CONSULTING SERVICES LIMITED,2000001508,118392,#,SW1W 9SR,
Department for Transport,Department for Transport,15/04/2014,Transport  Consult,Rail Franchising,PRICEWATERHOUSECOOPERS LLP,2000001510,30313.2,#,E14 9SQ,
Department for Transport,Department for Transport,16/04/2014,Agency Staff Costs,Group Finance,MICHAEL PAGE INTERNATIONAL,2000001599,3240,#,SL1 3SA,
Department for Transport,Department for Transport,16/04/2014,Agency Staff Costs,Major Projects & Growth,LEND LEASE CONSULTING (EMEA) LTD,2000001600,14580,#,NW1 3BF,
Department for Transport,Department for Transport,16/04/2014,Agency Staff Costs,Rail Strategy & Funding,EXPERIS LTD,2000001590,999.9,#,EC1R 3DR,
Department for Transport,Department for Transport,16/04/2014,Agency Staff Costs,Group Finance,ALLEN LANE FINANCIAL RECRUITMENT,2000001588,2463.84,#,BN11 2BW,
Department for Transport,Department for Transport,16/04/2014,Agency Staff Costs,Rail Franchising,LEND LEASE CONSULTING (EMEA) LTD,2000001600,14136,#,NW1 3BF,
Department for Transport,Department for Transport,16/04/2014,Cap Grt Pri Sec-Cos.,"Policy, Legislation and Funding",Eversheds LLP,2000001623,150000,HS2 Property Purchase - 45 Birch Grove,CF10 5BT,
Department for Transport,Department for Transport,16/04/2014,Cap Grt Pri Sec-Cos.,"Policy, Legislation and Funding",Eversheds LLP,2000001623,1150000,HS2 Property Purchase - 480 Hale Road,CF10 5BT,
Department for Transport,Department for Transport,16/04/2014,Car Tax & Insurance,Motoring Services,Clifford Thames (Holdings) Limited,2000001618,2082.23,#,CM2 5TH,
Department for Transport,Department for Transport,16/04/2014,Cars Maintenance,Motoring Services,ATS Euromaster Ltd,2000001587,4955.39,#,EN11 1HH,
Department for Transport,Department for Transport,16/04/2014,Cars Maintenance,Motoring Services,Bodyshop Repair Network Ltd,2000001617,3964.4,#,TN16 3BW,
Department for Transport,Department for Transport,16/04/2014,Cars Maintenance,Motoring Services,Ford Retail Ltd,2000001614,2652.71,#,BS3 2TN,
Department for Transport,Department for Transport,16/04/2014,Cars Maintenance,Motoring Services,KWIK FIT (GB) LIMITED,2000001621,507.6,#,SG6 2HU,
Department for Transport,Department for Transport,16/04/2014,Cars Maintenance,Motoring Services,R A Creamer & Son Ltd,2000001615,598.35,#,W8 4LY,
Department for Transport,Department for Transport,16/04/2014,Cars Maintenance,Motoring Services,R A Creamer & Son Ltd,2000001615,2120.37,#,W8 4LY,
Department for Transport,Department for Transport,16/04/2014,Grant Payments,Rail Commercial & Programme Office,GREATER MANCHESTER PTA,2000001606,3302478.29,1501 Wk3 Northern IFA - Franchise Payment Incl Ind,M1 3BG,
Department for Transport,Department for Transport,16/04/2014,Grant Payments,Rail Commercial & Programme Office,MERSEYTRAVEL,2000001603,654733.2,1501 Wk3 Northern IFA - Franchise Payment 14-15 -,L3 2AN,
Department for Transport,Department for Transport,16/04/2014,Grant Payments,Rail Commercial & Programme Office,NEXUS (TYNE & WEAR),2000001604,195220.39,1501 Wk3 Northern IFA - Franchise Payments 14-15 -,NE1 4AX,
Department for Transport,Department for Transport,16/04/2014,Grant Payments,Rail Commercial & Programme Office,SOUTH YORKSHIRE PTE,2000001605,1252664.18,1501 Wk3 Northern IFA - Franchise Payment Incl Ind,S2 5YT,
Department for Transport,Department for Transport,16/04/2014,Grant Payments,Rail Commercial & Programme Office,WEST YORKSHIRE PTA,2000001607,3009647.7,1501 Wk3 Northern IFA - Franchise Payment Incl Ind,LS1 2DE,
Department for Transport,Department for Transport,16/04/2014,Grt Aid to NDPBs,Rail NDPB's,RAIL PASSENGER COUNCIL,2000001629,515000,PF April 2014 Claim,M1 1LQ,
Department for Transport,Department for Transport,16/04/2014,IT Ser Running Costs,Local,KENDA ELECTRONIC SYSTEMS LTD,2000001610,540,#,SO40 3NB,
Department for Transport,Department for Transport,16/04/2014,IT Ser Running Costs,Group Communication,Intelogy Limited,2000001626,4812,#,TW16 7DY,
Department for Transport,Department for Transport,16/04/2014,IT Ser Running Costs,Motoring Services,SAP (UK) LTD,2000001594,246466,#,TW14 8HD,
Department for Transport,Department for Transport,16/04/2014,IT Ser Running Costs,Motoring Services,SAP (UK) LTD,2000001594,154789,#,TW14 8HD,
Department for Transport,Department for Transport,16/04/2014,IT Ser Running Costs,Motoring Services,SAP (UK) LTD,2000001594,488735,#,TW14 8HD,
Department for Transport,Department for Transport,16/04/2014,Legal Consultancy,Rail Franchising,BEVAN BRITTAN,2000001589,70321.8,#,BS2 0HQ,
Department for Transport,Department for Transport,16/04/2014,Legal Consultancy,"Policy, Legislation and Funding",TREASURY SOLICITOR,2000001625,8137.26,#,WC2B 4TS,
Department for Transport,Department for Transport,16/04/2014,Minor Developments,Rail Accident Investigation Branch,BVISUAL LTD,2000001609,1300,#,RG5 4XG,
Department for Transport,Department for Transport,16/04/2014,Pte Cost Of Servs Ch,Rail Commercial & Programme Office,GREATER MANCHESTER PTA,2000001606,107279.45,1501 Wk3 Admin Grant 14-15 - Transport for Greater,M1 3BG,
Department for Transport,Department for Transport,16/04/2014,Pte Cost Of Servs Ch,Rail Commercial & Programme Office,GREATER MANCHESTER PTA,2000001606,600,1501 Wk3 Lloyds Database Fee 14-15 - Transport for,M1 3BG,
Department for Transport,Department for Transport,16/04/2014,Pte Cost Of Servs Ch,Rail Commercial & Programme Office,MERSEYTRAVEL,2000001603,600,1501 Wk3 Lloyds Database Fee 14-15 - MerseyRail,L3 2AN,
Department for Transport,Department for Transport,16/04/2014,Pte Cost Of Servs Ch,Rail Commercial & Programme Office,NEXUS (TYNE & WEAR),2000001604,18294.98,1501 Wk3 Admin Grant 14-15 - Nexus,NE1 4AX,
Department for Transport,Department for Transport,16/04/2014,Pte Cost Of Servs Ch,Rail Commercial & Programme Office,NEXUS (TYNE & WEAR),2000001604,600,1501 Wk3 Lloyds Database Fee 14-15 - Nexus,NE1 4AX,
Department for Transport,Department for Transport,16/04/2014,Pte Cost Of Servs Ch,Rail Commercial & Programme Office,SOUTH YORKSHIRE PTE,2000001605,88218.19,1501 Wk3 Admin Grant 14-15 - South Yorkshire PTE,S2 5YT,
Department for Transport,Department for Transport,16/04/2014,Pte Cost Of Servs Ch,Rail Commercial & Programme Office,SOUTH YORKSHIRE PTE,2000001605,600,1501 Wk3 Lloyds Database Fee 14-15 - South Yorkshi,S2 5YT,
Department for Transport,Department for Transport,16/04/2014,Pte Cost Of Servs Ch,Rail Commercial & Programme Office,WEST YORKSHIRE PTA,2000001607,64271.88,1501 Wk3 Admin Grant 14-15 - West Yorkshire PTE,LS1 2DE,
Department for Transport,Department for Transport,16/04/2014,Pte Cost Of Servs Ch,Rail Commercial & Programme Office,WEST YORKSHIRE PTA,2000001607,600,1501 Wk3 Lloyds Database Fee 14-15 - West Yorkshir,LS1 2DE,
Department for Transport,Department for Transport,16/04/2014,Recruitment Fees,Rail Accident Investigation Branch,SHL Group Ltd,2000001628,2640,#,KT7 0NE,
Department for Transport,Department for Transport,16/04/2014,Research,Strategic Roads & Smart Ticketing,TNS UK LTD,2000001595,69097.5,#,W5 1UA,
Department for Transport,Department for Transport,16/04/2014,Research,Major Projects & Growth,PARSONS BRINCKERHOFF LTD,2000001593,9084.18,#,NE4 7YQ,
Department for Transport,Department for Transport,16/04/2014,Small Software,Group Human Resource,TOWERS PERRIN FORSTER & CROSBY,2000001596,4008,#,WC1V 6TP,
Department for Transport,Department for Transport,16/04/2014,Support Services,Aviation,INFRATIL KENT AIRPORT LTD,2000001608,24501,#,CT12 5BP,
Department for Transport,Department for Transport,16/04/2014,Support Services,"Policy, Legislation and Funding",TREASURY SOLICITOR,2000001625,100,#,WC2B 4TS,
Department for Transport,Department for Transport,16/04/2014,Support Services,"Motoring, Freight & London",VEHICLE CERTIFICATION AGENCY,2000001597,17500,#,BS5 6XX,
Department for Transport,Department for Transport,16/04/2014,Support Services,"Motoring, Freight & London",VEHICLE CERTIFICATION AGENCY,2000001597,9000,#,BS5 6XX,
Department for Transport,Department for Transport,16/04/2014,Training,Local,Behavioural Insights Ltd,2000001624,2623,#,EC4A 1DE,
Department for Transport,Department for Transport,16/04/2014,Travel Expenses UK,Group Finance,RAIL STAFF TRAVEL LTD,2000001602,2917.57,#,WC1N 1BY,
Department for Transport,Department for Transport,17/04/2014,Agency Staff Costs,Group Human Resource,EXPERIS LTD,2000001680,7672.84,#,EC1R 3DR,
Department for Transport,Department for Transport,17/04/2014,Agency Staff Costs,Rail Commercial & Programme Office,MICHAEL PAGE INTERNATIONAL,2000001682,723.9,#,SL1 3SA,
Department for Transport,Department for Transport,17/04/2014,Books,Air Accident Investigation Branch,BUREAU VERITAS,2000001674,569.47,Register of civil aircraft on internet,69573,
Department for Transport,Department for Transport,17/04/2014,Cap Grt Pri Sec-Cos.,"Energy, Technology and International",AA Electrical Services,2000001699,2999.02,AA Electrical Services Feb 2014 #2999.02,BT43 7LW,
Department for Transport,Department for Transport,17/04/2014,Cap Grt Pri Sec-Cos.,"Energy, Technology and International",EDF Energy,2000001693,1724.43,EDF Energy Feb 2014 #1724.43,BN3 5SU,
Department for Transport,Department for Transport,17/04/2014,Cap Grt Pri Sec-Cos.,"Energy, Technology and International",Electrical Solutions,2000001698,6997.7,Electrical Solutions Feb 2014 #6997.7,LS15 8LZ,
Department for Transport,Department for Transport,17/04/2014,Cap Grt Pri Sec-Cos.,"Policy, Legislation and Funding",Eversheds LLP,2000001644,510016.4,HS2 Statutory Blight 1KNOX/PEARCEN,CF10 5BT,
Department for Transport,Department for Transport,17/04/2014,Cap Grt Pri Sec-Cos.,"Policy, Legislation and Funding",Eversheds LLP,2000001644,390200,Property purchase HS2 Expectional hardship,CF10 5BT,
Department for Transport,Department for Transport,17/04/2014,Cap Grt Pri Sec-Cos.,"Energy, Technology and International",Harvey Electrical Services,2000001696,51982.94,Harvey Electrical Services Feb 2014 #51982.94,DL1 5TE,
Department for Transport,Department for Transport,17/04/2014,Cap Grt Pri Sec-Cos.,"Energy, Technology and International",KDG Electrical Contractors Ltd,2000001700,63000,DRG,NG7 5PN,
Department for Transport,Department for Transport,17/04/2014,Cycle to Work Scheme,Group Human Resource,CYCLESCHEME LTD,2000001678,2208.33,Cyclescheme 2012/13,BA1 1WX,
Department for Transport,Department for Transport,17/04/2014,Cars Maintenance,Motoring Services,R A Creamer & Son Ltd,2000001691,491.32,#,W8 4LY,
Department for Transport,Department for Transport,17/04/2014,Computer Consumables,Motoring Services,XMA LIMITED GOSC,2000001689,568.8,A4NNWY1 Konica  C364 Waste Toner,NG11 7EP,
Department for Transport,Department for Transport,17/04/2014,Infrastructure Maint,Motoring Services,IBM UNITED KINGDOM LTD,2000001675,201299.4,#,PO6 3AE,
Department for Transport,Department for Transport,17/04/2014,Legal Consultancy,Major Projects & Growth,FRESHFIELDS,2000001683,1884,#,EC4Y 1HS,
Department for Transport,Department for Transport,17/04/2014,Other Professional F,Group Finance,Arvato Ltd,2000001694,224955,#,HU10 6FE,
Department for Transport,Department for Transport,17/04/2014,Research,"Motoring, Freight & London",HALCROW GROUP LTD,2000001681,12060.73,#,W6 7EF,
Department for Transport,Department for Transport,17/04/2014,Small Software,Motoring Services,INSIGHT DIRECT (UK) LTD,2000001676,4893.6,#,UB8 1PH,
Department for Transport,Department for Transport,17/04/2014,Support Services,Aviation,CIVIL AVIATION AUTHORITY,2000001677,15931.7,#,RH10 0YR,
Department for Transport,Department for Transport,17/04/2014,Support Services,Aviation,CIVIL AVIATION AUTHORITY,2000001677,16000,#,RH10 0YR,
Department for Transport,Department for Transport,17/04/2014,Support Services,Aviation,CIVIL AVIATION AUTHORITY,2000001677,6500,#,RH10 0YR,
Department for Transport,Department for Transport,17/04/2014,Support Services,General Counsel's Office,Corries Solicitors Ltd,2000001695,78262.55,#,YO1 9XF,
Department for Transport,Department for Transport,17/04/2014,Support Services,General Counsel's Office,Thomson Snell & Passmore,2000001645,134829,#,TN1 1NX,
Department for Transport,Department for Transport,17/04/2014,Transport  Consult,Rail Franchising,Leighfisher Ltd,2000001685,77628.25,#,WC2N 4HG,
Department for Transport,Department for Transport,17/04/2014,Waste disposal/Refus,Group Procurement & Estate,Banner Business Services Ltd,2000001688,636,#,NR3 1QU,
Department for Transport,Department for Transport,22/04/2014,Agency Staff Costs,Corporate Governance,BADENOCH & CLARK,2000001763,2753.95,#,EC4V 4BG,
Department for Transport,Department for Transport,22/04/2014,Agency Staff Costs,Group Finance,BADENOCH & CLARK,2000001763,4032,#,EC4V 4BG,
Department for Transport,Department for Transport,22/04/2014,Agency Staff Costs,Strategic Roads & Smart Ticketing,CAPITA RESOURCING LTD,2000001778,9159.1,#,DL1 9HN,
Department for Transport,Department for Transport,22/04/2014,Air Travel,Marine Accident Investigation Branch,CLYDE TRAVEL,2000001766,1547.72, 22/04/14 and 22/04/14,G51 1HJ,
Department for Transport,Department for Transport,22/04/2014,Cap Grt Pri Sec-Cos.,"Policy, Legislation and Funding",Eversheds LLP,2000001799,597500,#,CF10 5BT,
Department for Transport,Department for Transport,22/04/2014,Cap Grt Pri Sec-Cos.,"Policy, Legislation and Funding",Eversheds LLP,2000001799,927500,#,CF10 5BT,
Department for Transport,Department for Transport,22/04/2014,Cap Grt Pri Sec-Cos.,"Energy, Technology and International",CITROEN AUTOMOBILES UK LTD,2000001789,5000,Citroen PiCG March 2014 #5000,CV3 1ND,
Department for Transport,Department for Transport,22/04/2014,Cap Grt Pri Sec-Cos.,"Energy, Technology and International",EV Charging Solutions Ltd,2000001800,20993.11,EV Charging Solutions Ltd Feb 2014 #20993.11,NG14 7ES,
Department for Transport,Department for Transport,22/04/2014,Cap Grt Pri Sec-Cos.,"Energy, Technology and International",MERCEDES BENZ UK LTD,2000001790,32818.21,Mercedes PiCG Feb 2014 #32818.21,MK15 8BA,
Department for Transport,Department for Transport,22/04/2014,Cap Grt Pri Sec-Cos.,"Energy, Technology and International",Pod Point,2000001795,22992.46,PodPoint Feb 2014 #22992.46,E1 1EE,
Department for Transport,Department for Transport,22/04/2014,Cap Grt Pri Sec-Cos.,"Energy, Technology and International",RENAULT,2000001791,155469.58,Renault PiCG March 2014 #155469.58,WD3 9YS,
Department for Transport,Department for Transport,22/04/2014,Computer equipment,Motoring Services,E-Cycle Limited,2000001797,2561.34,#,CF39 9BW,
Department for Transport,Department for Transport,22/04/2014,Computer equipment,Motoring Services,E-Cycle Limited,2000001797,2557.68,#,CF39 9BW,
Department for Transport,Department for Transport,22/04/2014,Computer equipment,Motoring Services,E-Cycle Limited,2000001797,3621.84,#,CF39 9BW,
Department for Transport,Department for Transport,22/04/2014,Computer equipment,Motoring Services,E-Cycle Limited,2000001797,8360.4,#,CF39 9BW,
Department for Transport,Department for Transport,22/04/2014,Computer equipment,Motoring Services,E-Cycle Limited,2000001797,3287.52,#,CF39 9BW,
Department for Transport,Department for Transport,22/04/2014,Conferences / Semina,Maritime,CHAMBER OF SHIPPING LTD,2000001765,934,#,EC1M 6EZ,
Department for Transport,Department for Transport,22/04/2014,CurrGrt Las in AEF/A,Rail Strategy & Funding,MERSEY TRAVEL,2000001780,6143564.16,Marsey Travel grant 1st payment,L3   2AN,
Department for Transport,Department for Transport,22/04/2014,Eye Tests,Aviation,xxxxxx,2000001733,40,Eyetest and,xxxxxx,
Department for Transport,Department for Transport,22/04/2014,Financial Consultanc,Rail Strategy & Funding,Five Arrows Leasing Group LTD,2000001796,3600,#,HA5 5LX,
Department for Transport,Department for Transport,22/04/2014,Gas,Rail Accident Investigation Branch,CORONA ENERGY RETAIL 4 LTD,2000001767,689.8,#,WD17 1JW,
Department for Transport,Department for Transport,22/04/2014,Glasses for VDU Use,Aviation,xxxxxx,2000001733,514,Eyetest and,xxxxxx,
Department for Transport,Department for Transport,22/04/2014,IT Consultancy,Rail Strategy & Funding,IWEB LTD,2000001779,4128,#,RH13 6AA,
Department for Transport,Department for Transport,22/04/2014,IT Equip Cap Cost,Motoring Services,KELWAY LTD,2000001784,5791.82,Toshiba Z10t i5 Hybrid Laptops,SA1 8PL,
Department for Transport,Department for Transport,22/04/2014,IVR Costs,Motoring Services,VODAFONE LTD,2000001777,64253.45,W - Acc No. 13134570  01.01.14 - 31.03.14,RG14 5FF,
Department for Transport,Department for Transport,22/04/2014,Legal Consultancy,Centrally held prog-NATs,ALLEN & OVERY,100002617,-162557.28,#,E1 6AO,
Department for Transport,Department for Transport,22/04/2014,Legal Consultancy,Centrally held prog-NATs,ALLEN & OVERY,100002617,162557.28,#,E1 6AO,
Department for Transport,Department for Transport,22/04/2014,Legal Consultancy,Rail Franchising,ADDLESHAW GODDARD LIMITED,2000001781,20277,#,M2 3AB,
Department for Transport,Department for Transport,22/04/2014,Legal Consultancy,Rail Franchising,ADDLESHAW GODDARD LIMITED,2000001781,30000,#,M2 3AB,
Department for Transport,Department for Transport,22/04/2014,Legal Consultancy,Rail Franchising,BEVAN BRITTAN,2000001764,1600.2,#,BS2 0HQ,
Department for Transport,Department for Transport,22/04/2014,Legal Consultancy,Rail Franchising,Eversheds LLP,2000001786,9652.2,#,EC2V 7WS,
Department for Transport,Department for Transport,22/04/2014,Live Running Non IBM,Motoring Services,VODAFONE LTD,2000001777,2310.36,C&W - Acc No. 13066448  01.04.14 - 30.04.14,RG14 5FF,
Department for Transport,Department for Transport,22/04/2014,Security,General Counsel's Office,FCO SERVICES,2000001802,5845.2,#,MK19 7BH,
Department for Transport,Department for Transport,22/04/2014,Small Software,Local,"MELITTA, BART & PAUL BERRINO",2000001785,2640,datasets for calculation of travel times,IG8 0HQ,
Department for Transport,Department for Transport,22/04/2014,Telephone charges,Air Accident Investigation Branch,ALTERNATIVE NETWORKS PLC,2000001783,1000.44,#,SW11 3UL,
Department for Transport,Department for Transport,22/04/2014,Training,Air Accident Investigation Branch,WESTERN AIR (THRUXTON) LTD,2000001792,498.25,#,SP11 8PW,
Department for Transport,Department for Transport,22/04/2014,Travel Expenses UK,Rail Accident Investigation Branch,REDFERN TRAVEL LTD,2000001782,4768.88,Travel Statement  - Feb 2014,BD1 3AZ,
Department for Transport,Department for Transport,22/04/2014,Travel Expenses UK,Rail Accident Investigation Branch,REDFERN TRAVEL LTD,2000001782,2095.39,#,BD1 3AZ,
Department for Transport,Department for Transport,22/04/2014,Water,Rail Accident Investigation Branch,SEVERN TRENT WATER LTD,2000001774,641.18,#,CV3 6SD,
Department for Transport,Department for Transport,23/04/2014,Agency Staff Costs,Group Finance,ALLEN LANE FINANCIAL RECRUITMENT,2000001924,4036.38,#,BN11 2BW,
Department for Transport,Department for Transport,23/04/2014,Agency Staff Costs,Group Finance,ALLEN LANE FINANCIAL RECRUITMENT,2000001924,4036.38,#,BN11 2BW,
Department for Transport,Department for Transport,23/04/2014,Agency Staff Costs,Group Finance,MICHAEL PAGE INTERNATIONAL,2000001960,3210,#,SL1 3SA,
Department for Transport,Department for Transport,23/04/2014,Agency Staff Costs,Group Finance,NETWORKERS INTERNATIONAL (UK) PLC,2000001967,3393.6,#,BR1 1HP,
Department for Transport,Department for Transport,23/04/2014,Agency Staff Costs,Group Human Resource,SPRING TECHNOLOGY LTD  ALSO T/A,2000001968,2673,#,B37 7YE,
Department for Transport,Department for Transport,23/04/2014,Agency Staff Costs,Group Human Resource,SPRING TECHNOLOGY LTD  ALSO T/A,2000001968,2376,#,B37 7YE,
Department for Transport,Department for Transport,23/04/2014,Agency Staff Costs,Group Human Resource,SPRING TECHNOLOGY LTD  ALSO T/A,2000001968,2970,#,B37 7YE,
Department for Transport,Department for Transport,23/04/2014,Agency Staff Costs,Group Human Resource,SPRING TECHNOLOGY LTD  ALSO T/A,2000001968,1782,#,B37 7YE,
Department for Transport,Department for Transport,23/04/2014,Agency Staff Costs,Major Projects & Growth,EXPERIS LTD,2000001931,7248.02,#,EC1R 3DR,
Department for Transport,Department for Transport,23/04/2014,Agency Staff Costs,Rail Commercial & Programme Office,NETWORKERS INTERNATIONAL (UK) PLC,2000001967,4126.26,#,BR1 1HP,
Department for Transport,Department for Transport,23/04/2014,Agency Staff Costs,Group Finance,ALLEN LANE FINANCIAL RECRUITMENT,2000001924,2463.84,#,BN11 2BW,
Department for Transport,Department for Transport,23/04/2014,Agency Staff Costs,Group Finance,ALLEN LANE FINANCIAL RECRUITMENT,2000001924,2463.84,#,BN11 2BW,
Department for Transport,Department for Transport,23/04/2014,Agency Staff Costs,Group Finance,NETWORKERS INTERNATIONAL (UK) PLC,2000001967,1689.24,#,BR1 1HP,
Department for Transport,Department for Transport,23/04/2014,Agency Staff Costs,Group Finance,REED SPECIALIST RECRUITMENT LTD,2000001935,2264.4,#,SW20 0BA,
Department for Transport,Department for Transport,23/04/2014,Agency Staff Costs,Strategic Roads & Smart Ticketing,EXPERIS LTD,2000001931,5666.1,#,EC1R 3DR,
Department for Transport,Department for Transport,23/04/2014,Agency Staff Costs,Rail Franchising,EXPERIS LTD,2000001931,9746.17,#,EC1R 3DR,
Department for Transport,Department for Transport,23/04/2014,Agency Staff Costs,Rail Franchising,EXPERIS LTD,2000001931,11053.44,#,EC1R 3DR,
Department for Transport,Department for Transport,23/04/2014,Agency Staff Costs,Rail Franchising,MICHAEL PAGE INTERNATIONAL,2000001960,3333,#,SL1 3SA,
Department for Transport,Department for Transport,23/04/2014,Basic Franchise Pay,Rail Commercial & Programme Office,LONDON MIDLAND RAILWAY,2000001964,3949080,1501 Wk3 Basic Franchise Payment - LONDON MIDLAND,B2 4JB,
Department for Transport,Department for Transport,23/04/2014,Basic Franchise Pay,Rail Commercial & Programme Office,LONDON MIDLAND RAILWAY,2000001964,-979225.61,1501 Wk3 CP5 Interim Determination - DfT Letter 31,B2 4JB,
Department for Transport,Department for Transport,23/04/2014,Basic Franchise Pay,Rail Commercial & Programme Office,LONDON MIDLAND RAILWAY,2000001964,68739.73,1501 Wk3 Fares Flex + RPI Interim Adjustment 14/15,B2 4JB,
Department for Transport,Department for Transport,23/04/2014,Basic Franchise Pay,Rail Commercial & Programme Office,FIRST KEOLIS TRANSPENNINE,2000001962,5181703,1501 Wk3 Basic Franchise Payment - TRANSPENNINE EX,M1 6LT,
